Workbook

Sheet Identify Toxic Emitting Units
B2: Toxic Emission Units (TEUs)
B5: TEU Identifier | C5: Description | D5: Emission Type | E5: Number of TACs at TEU | F5: Stack Height | G5: Building Area | H5: Building Height
F6: m | G6: ft^2 | H6: ft
B7: Shredder-1 | C7: Metal Shredder - 10 ton/hour | D7: Fugitive | E7: 38 | G7: 100 | H7: 10
B8: Diesel Engine-1 | D8: Point | E8: 24 | F8: 5
B9: ASR-1 MH | C9: auto shredder waste emissions from drops | D9: Fugitive | E9: 25 | G9: 100 | H9: 10
B10: ASR-1 Piles | C10: auto shredder waste emissions from piles | D10: Fugitive | E10: 21 | G10: 100 | H10: 10
B11: Drain | C11: VOC emissions from draining auto fluids | D11: Fugitive | E11: 6 | G11: 100 | H11: 10

Sheet Identify Toxic Air Contaminants
B2: Toxic Air Contaminents and Emission Rates
B5: TEU Identifier | C5: TAC | D5: CAS Number | E5: Annual Emissions | F5: Daily Max Emissions
E6: lb/yr | F6: lb/day
B7: Shredder-1 | C7: Antimony and compounds | D7: =_xlfn.IFNA(IF(VLOOKUP(C7,TACcas,3,FALSE)="NoRBC","NoRBC",VLOOKUP(C7,TACcas,2,FALSE)),"NoRBC") -> 7440-36-0 | E7: 0.00505095 | F7: 1.4773304e-05
B8: Shredder-1 | C8: Arsenic and compounds | D8: =_xlfn.IFNA(IF(VLOOKUP(C8,TACcas,3,FALSE)="NoRBC","NoRBC",VLOOKUP(C8,TACcas,2,FALSE)),"NoRBC") -> 7440-38-2 | E8: 0.001585882411 | F8: 4.638478498e-06
B9: Shredder-1 | C9: Barium and compounds | D9: =_xlfn.IFNA(IF(VLOOKUP(C9,TACcas,3,FALSE)="NoRBC","NoRBC",VLOOKUP(C9,TACcas,2,FALSE)),"NoRBC") -> NoRBC | E9: 0.03542928791 | F9: 0.0001036255835
B10: Shredder-1 | C10: Beryllium and compounds | D10: =_xlfn.IFNA(IF(VLOOKUP(C10,TACcas,3,FALSE)="NoRBC","NoRBC",VLOOKUP(C10,TACcas,2,FALSE)),"NoRBC") -> 7440-41-7 | E10: 0.0003317980932 | F10: 9.704618135e-07
B11: Shredder-1 | C11: Cadmium and compounds | D11: =_xlfn.IFNA(IF(VLOOKUP(C11,TACcas,3,FALSE)="NoRBC","NoRBC",VLOOKUP(C11,TACcas,2,FALSE)),"NoRBC") -> 7440-43-9 | E11: 0.1746315 | F11: 0.00051077208
B12: Shredder-1 | C12: Chromium VI, chromate, and dichromate particulate | D12: =_xlfn.IFNA(IF(VLOOKUP(C12,TACcas,3,FALSE)="NoRBC","NoRBC",VLOOKUP(C12,TACcas,2,FALSE)),"NoRBC") -> 18540-29-9 | E12: 0.373725 | F12: 0.001093092
B13: Shredder-1 | C13: Cobalt and compounds | D13: =_xlfn.IFNA(IF(VLOOKUP(C13,TACcas,3,FALSE)="NoRBC","NoRBC",VLOOKUP(C13,TACcas,2,FALSE)),"NoRBC") -> 7440-48-4 | E13: 0.0030351 | F13: 8.877232e-06
B14: Shredder-1 | C14: Copper and compounds | D14: =_xlfn.IFNA(IF(VLOOKUP(C14,TACcas,3,FALSE)="NoRBC","NoRBC",VLOOKUP(C14,TACcas,2,FALSE)),"NoRBC") -> 7440-50-8 | E14: 0.03497939219 | F14: 0.000102309703
B15: Shredder-1 | C15: Lead and compounds | D15: =_xlfn.IFNA(IF(VLOOKUP(C15,TACcas,3,FALSE)="NoRBC","NoRBC",VLOOKUP(C15,TACcas,2,FALSE)),"NoRBC") -> 7439-92-1 | E15: 1.74858 | F15: 0.0051143456
B16: Shredder-1 | C16: Manganese and compounds | D16: =_xlfn.IFNA(IF(VLOOKUP(C16,TACcas,3,FALSE)="NoRBC","NoRBC",VLOOKUP(C16,TACcas,2,FALSE)),"NoRBC") -> 7439-96-5 | E16: 0.05404372331 | F16: 0.0001580701361
B17: Shredder-1 | C17: Mercury and compounds | D17: =_xlfn.IFNA(IF(VLOOKUP(C17,TACcas,3,FALSE)="NoRBC","NoRBC",VLOOKUP(C17,TACcas,2,FALSE)),"NoRBC") -> 7439-97-6 | E17: 1.124739299 | F17: 0.003289701063
B18: Shredder-1 | C18: Nickel compounds, insoluble | D18: =_xlfn.IFNA(IF(VLOOKUP(C18,TACcas,3,FALSE)="NoRBC","NoRBC",VLOOKUP(C18,TACcas,2,FALSE)),"NoRBC") -> 365 | E18: 0.01996412255 | F18: 5.839219386e-05
B19: Shredder-1 | C19: Phosphorus and compounds | D19: =_xlfn.IFNA(IF(VLOOKUP(C19,TACcas,3,FALSE)="NoRBC","NoRBC",VLOOKUP(C19,TACcas,2,FALSE)),"NoRBC") -> NoRBC | E19: 204140.1827 | F19: 597.0807429
B20: Shredder-1 | C20: Selenium and compounds | D20: =_xlfn.IFNA(IF(VLOOKUP(C20,TACcas,3,FALSE)="NoRBC","NoRBC",VLOOKUP(C20,TACcas,2,FALSE)),"NoRBC") -> 7782-49-2 | E20: 0.006804672758 | F20: 1.990269143e-05
B21: Shredder-1 | C21: Thallium and compounds | D21: =_xlfn.IFNA(IF(VLOOKUP(C21,TACcas,3,FALSE)="NoRBC","NoRBC",VLOOKUP(C21,TACcas,2,FALSE)),"NoRBC") -> NoRBC | E21: 0.001321568676 | F21: 3.865398749e-06
B22: Shredder-1 | C22: Silver and compounds | D22: =_xlfn.IFNA(IF(VLOOKUP(C22,TACcas,3,FALSE)="NoRBC","NoRBC",VLOOKUP(C22,TACcas,2,FALSE)),"NoRBC") -> NoRBC | E22: 0.005736170424 | F22: 1.677747542e-05
B23: Shredder-1 | C23: Zinc and compounds | D23: =_xlfn.IFNA(IF(VLOOKUP(C23,TACcas,3,FALSE)="NoRBC","NoRBC",VLOOKUP(C23,TACcas,2,FALSE)),"NoRBC") -> NoRBC | E23: 3.81848992 | F23: 0.01116853511
B24: Shredder-1 | C24: 1,1-Dichloroethane (Ethylidene dichloride) | D24: =_xlfn.IFNA(IF(VLOOKUP(C24,TACcas,3,FALSE)="NoRBC","NoRBC",VLOOKUP(C24,TACcas,2,FALSE)),"NoRBC") -> 75-34-3 | E24: 0.301245 | F24: 0.0008810984
B25: Shredder-1 | C25: Benzene | D25: =_xlfn.IFNA(IF(VLOOKUP(C25,TACcas,3,FALSE)="NoRBC","NoRBC",VLOOKUP(C25,TACcas,2,FALSE)),"NoRBC") -> 71-43-2 | E25: 25.79571509 | F25: 0.07544876527
B26: Shredder-1 | C26: Ethyl benzene | D26: =_xlfn.IFNA(IF(VLOOKUP(C26,TACcas,3,FALSE)="NoRBC","NoRBC",VLOOKUP(C26,TACcas,2,FALSE)),"NoRBC") -> 100-41-4 | E26: 23.75249013 | F26: 0.06947262545
B27: Shredder-1 | C27: Hexane | D27: =_xlfn.IFNA(IF(VLOOKUP(C27,TACcas,3,FALSE)="NoRBC","NoRBC",VLOOKUP(C27,TACcas,2,FALSE)),"NoRBC") -> 110-54-3 | E27: 77.47227965 | F27: 0.2265953016
B28: Shredder-1 | C28: Bromomethane (Methyl bromide) | D28: =_xlfn.IFNA(IF(VLOOKUP(C28,TACcas,3,FALSE)="NoRBC","NoRBC",VLOOKUP(C28,TACcas,2,FALSE)),"NoRBC") -> 74-83-9 | E28: 0.02937135877 | F28: 8.590700996e-05
B29: Shredder-1 | C29: 1,1,1-Trichloroethane (Methyl chloroform) | D29: =_xlfn.IFNA(IF(VLOOKUP(C29,TACcas,3,FALSE)="NoRBC","NoRBC",VLOOKUP(C29,TACcas,2,FALSE)),"NoRBC") -> 71-55-6 | E29: 4.53 | F29: 0.0132496
B30: Shredder-1 | C30: 2-Butanone (Methyl ethyl ketone) | D30: =_xlfn.IFNA(IF(VLOOKUP(C30,TACcas,3,FALSE)="NoRBC","NoRBC",VLOOKUP(C30,TACcas,2,FALSE)),"NoRBC") -> 78-93-3 | E30: 0.1207245 | F30: 0.00035310184
B31: Shredder-1 | C31: Methyl isobutyl ketone (MIBK, Hexone) | D31: =_xlfn.IFNA(IF(VLOOKUP(C31,TACcas,3,FALSE)="NoRBC","NoRBC",VLOOKUP(C31,TACcas,2,FALSE)),"NoRBC") -> 108-10-1 | E31: 1.94106371 | F31: 0.005677332832
B32: Shredder-1 | C32: Dichloromethane (Methylene chloride) | D32: =_xlfn.IFNA(IF(VLOOKUP(C32,TACcas,3,FALSE)="NoRBC","NoRBC",VLOOKUP(C32,TACcas,2,FALSE)),"NoRBC") -> 75-09-2 | E32: 5.363465514 | F32: 0.01568736704
B33: Shredder-1 | C33: Naphthalene | D33: =_xlfn.IFNA(IF(VLOOKUP(C33,TACcas,3,FALSE)="NoRBC","NoRBC",VLOOKUP(C33,TACcas,2,FALSE)),"NoRBC") -> 91-20-3 | E33: 0.7789795151 | F33: 0.002278403308
B34: Shredder-1 | C34: Styrene | D34: =_xlfn.IFNA(IF(VLOOKUP(C34,TACcas,3,FALSE)="NoRBC","NoRBC",VLOOKUP(C34,TACcas,2,FALSE)),"NoRBC") -> 100-42-5 | E34: 8.130332644 | F34: 0.02378005638
B35: Shredder-1 | C35: Tetrachloroethene (Perchloroethylene) | D35: =_xlfn.IFNA(IF(VLOOKUP(C35,TACcas,3,FALSE)="NoRBC","NoRBC",VLOOKUP(C35,TACcas,2,FALSE)),"NoRBC") -> 127-18-4 | E35: 0.4597256155 | F35: 0.00134463146
B36: Shredder-1 | C36: Toluene | D36: =_xlfn.IFNA(IF(VLOOKUP(C36,TACcas,3,FALSE)="NoRBC","NoRBC",VLOOKUP(C36,TACcas,2,FALSE)),"NoRBC") -> 108-88-3 | E36: 121.3164819 | F36: 0.354833302
B37: Shredder-1 | C37: Trichloroethene (TCE, Trichloroethylene) | D37: =_xlfn.IFNA(IF(VLOOKUP(C37,TACcas,3,FALSE)="NoRBC","NoRBC",VLOOKUP(C37,TACcas,2,FALSE)),"NoRBC") -> 79-01-6 | E37: 1.510755 | F37: 0.0044187416
B38: Shredder-1 | C38: Vinyl Chloride | D38: =_xlfn.IFNA(IF(VLOOKUP(C38,TACcas,3,FALSE)="NoRBC","NoRBC",VLOOKUP(C38,TACcas,2,FALSE)),"NoRBC") -> 75-01-4 | E38: 0.07789795151 | F38: 0.0002278403308
B39: Shredder-1 | C39: Vinylidene chloride | D39: =_xlfn.IFNA(IF(VLOOKUP(C39,TACcas,3,FALSE)="NoRBC","NoRBC",VLOOKUP(C39,TACcas,2,FALSE)),"NoRBC") -> 75-35-4 | E39: 0.60445405 | F39: 0.001767941364
B40: Shredder-1 | C40: Xylene (mixture), including m-xylene, o-xylene, p-xylene | D40: =_xlfn.IFNA(IF(VLOOKUP(C40,TACcas,3,FALSE)="NoRBC","NoRBC",VLOOKUP(C40,TACcas,2,FALSE)),"NoRBC") -> 1330-20-7 | E40: 110.8109002 | F40: 0.3241059831
B41: Shredder-1 | C41: Polychlorinated biphenyls (PCBs) | D41: =_xlfn.IFNA(IF(VLOOKUP(C41,TACcas,3,FALSE)="NoRBC","NoRBC",VLOOKUP(C41,TACcas,2,FALSE)),"NoRBC") -> 1336-36-3 | E41: 3.42015 | F41: 0.010003448
B42: Shredder-1 | C42: Polychlorinated biphenyls (PCBs) TEQ | D42: =_xlfn.IFNA(IF(VLOOKUP(C42,TACcas,3,FALSE)="NoRBC","NoRBC",VLOOKUP(C42,TACcas,2,FALSE)),"NoRBC") -> 645 | E42: 5.91165e-06 | F42: 1.7290728e-08
B43: Shredder-1 | C43: Polychlorinated dibenzo-p-dioxins (PCDDs) & dibenzofurans (PCDFs) TEQ | D43: =_xlfn.IFNA(IF(VLOOKUP(C43,TACcas,3,FALSE)="NoRBC","NoRBC",VLOOKUP(C43,TACcas,2,FALSE)),"NoRBC") -> 646 | E43: 3.9411e-07 | F43: 1.1527152e-09
B44: Shredder-1 | C44: Polycyclic aromatic hydrocarbons (PAHs) | D44: =_xlfn.IFNA(IF(VLOOKUP(C44,TACcas,3,FALSE)="NoRBC","NoRBC",VLOOKUP(C44,TACcas,2,FALSE)),"NoRBC") -> 401 | E44: 0.20351025 | F44: 0.00059523828
B45: Diesel Engine-1 | C45: Benzene | D45: =_xlfn.IFNA(IF(VLOOKUP(C45,TACcas,3,FALSE)="NoRBC","NoRBC",VLOOKUP(C45,TACcas,2,FALSE)),"NoRBC") -> 71-43-2 | E45: 13.503024 | F45: 0.03949440768
B46: Diesel Engine-1 | C46: 1,3-Butadiene | D46: =_xlfn.IFNA(IF(VLOOKUP(C46,TACcas,3,FALSE)="NoRBC","NoRBC",VLOOKUP(C46,TACcas,2,FALSE)),"NoRBC") -> 106-99-0 | E46: 15.757152 | F46: 0.04608740864
B47: Diesel Engine-1 | C47: Cadmium and compounds | D47: =_xlfn.IFNA(IF(VLOOKUP(C47,TACcas,3,FALSE)="NoRBC","NoRBC",VLOOKUP(C47,TACcas,2,FALSE)),"NoRBC") -> 7440-43-9 | E47: 0.10872 | F47: 0.0003179904
B48: Diesel Engine-1 | C48: Formaldehyde | D48: =_xlfn.IFNA(IF(VLOOKUP(C48,TACcas,3,FALSE)="NoRBC","NoRBC",VLOOKUP(C48,TACcas,2,FALSE)),"NoRBC") -> 50-00-0 | E48: 125.107728 | F48: 0.365922153
B49: Diesel Engine-1 | C49: Chromium VI, chromate, and dichromate particulate | D49: =_xlfn.IFNA(IF(VLOOKUP(C49,TACcas,3,FALSE)="NoRBC","NoRBC",VLOOKUP(C49,TACcas,2,FALSE)),"NoRBC") -> 18540-29-9 | E49: 0.007248 | F49: 2.119936e-05
B50: Diesel Engine-1 | C50: Arsenic and compounds | D50: =_xlfn.IFNA(IF(VLOOKUP(C50,TACcas,3,FALSE)="NoRBC","NoRBC",VLOOKUP(C50,TACcas,2,FALSE)),"NoRBC") -> 7440-38-2 | E50: 0.115968 | F50: 0.00033918976
B51: Diesel Engine-1 | C51: Lead and compounds | D51: =_xlfn.IFNA(IF(VLOOKUP(C51,TACcas,3,FALSE)="NoRBC","NoRBC",VLOOKUP(C51,TACcas,2,FALSE)),"NoRBC") -> 7439-92-1 | E51: 0.601584 | F51: 0.00175954688
B52: Diesel Engine-1 | C52: Nickel compounds, insoluble | D52: =_xlfn.IFNA(IF(VLOOKUP(C52,TACcas,3,FALSE)="NoRBC","NoRBC",VLOOKUP(C52,TACcas,2,FALSE)),"NoRBC") -> 365 | E52: 0.282672 | F52: 0.00082677504
B53: Diesel Engine-1 | C53: Naphthalene | D53: =_xlfn.IFNA(IF(VLOOKUP(C53,TACcas,3,FALSE)="NoRBC","NoRBC",VLOOKUP(C53,TACcas,2,FALSE)),"NoRBC") -> 91-20-3 | E53: 1.427856 | F53: 0.00417627392
B54: Diesel Engine-1 | C54: Polycyclic aromatic hydrocarbons (PAHs) | D54: =_xlfn.IFNA(IF(VLOOKUP(C54,TACcas,3,FALSE)="NoRBC","NoRBC",VLOOKUP(C54,TACcas,2,FALSE)),"NoRBC") -> 401 | E54: 2.623776 | F54: 0.00767416832
B55: Diesel Engine-1 | C55: Benzo[a]pyrene* | D55: =_xlfn.IFNA(IF(VLOOKUP(C55,TACcas,3,FALSE)="NoRBC","NoRBC",VLOOKUP(C55,TACcas,2,FALSE)),"NoRBC") -> 50-32-8 | E55: 0.00257304 | F55: 7.5257728e-06
B56: Diesel Engine-1 | C56: Acetaldehyde | D56: =_xlfn.IFNA(IF(VLOOKUP(C56,TACcas,3,FALSE)="NoRBC","NoRBC",VLOOKUP(C56,TACcas,2,FALSE)),"NoRBC") -> 75-07-0 | E56: 56.773584 | F56: 0.1660545869
B57: Diesel Engine-1 | C57: Acrolein | D57: =_xlfn.IFNA(IF(VLOOKUP(C57,TACcas,3,FALSE)="NoRBC","NoRBC",VLOOKUP(C57,TACcas,2,FALSE)),"NoRBC") -> 107-02-8 | E57: 2.457072 | F57: 0.00718658304
B58: Diesel Engine-1 | C58: Ammonia** | D58: =_xlfn.IFNA(IF(VLOOKUP(C58,TACcas,3,FALSE)="NoRBC","NoRBC",VLOOKUP(C58,TACcas,2,FALSE)),"NoRBC") -> 7664-41-7 | E58: 57.984 | F58: 0.16959488
B59: Diesel Engine-1 | C59: Copper and compounds | D59: =_xlfn.IFNA(IF(VLOOKUP(C59,TACcas,3,FALSE)="NoRBC","NoRBC",VLOOKUP(C59,TACcas,2,FALSE)),"NoRBC") -> 7440-50-8 | E59: 0.297168 | F59: 0.00086917376
B60: Diesel Engine-1 | C60: Ethyl benzene | D60: =_xlfn.IFNA(IF(VLOOKUP(C60,TACcas,3,FALSE)="NoRBC","NoRBC",VLOOKUP(C60,TACcas,2,FALSE)),"NoRBC") -> 100-41-4 | E60: 0.790032 | F60: 0.00231073024
B61: Diesel Engine-1 | C61: Hexane | D61: =_xlfn.IFNA(IF(VLOOKUP(C61,TACcas,3,FALSE)="NoRBC","NoRBC",VLOOKUP(C61,TACcas,2,FALSE)),"NoRBC") -> 110-54-3 | E61: 1.949712 | F61: 0.00570262784
B62: Diesel Engine-1 | C62: Hydrochloric acid | D62: =_xlfn.IFNA(IF(VLOOKUP(C62,TACcas,3,FALSE)="NoRBC","NoRBC",VLOOKUP(C62,TACcas,2,FALSE)),"NoRBC") -> 7647-01-0 | E62: 13.503024 | F62: 0.03949440768
B63: Diesel Engine-1 | C63: Manganese and compounds | D63: =_xlfn.IFNA(IF(VLOOKUP(C63,TACcas,3,FALSE)="NoRBC","NoRBC",VLOOKUP(C63,TACcas,2,FALSE)),"NoRBC") -> 7439-96-5 | E63: 0.224688 | F63: 0.00065718016
B64: Diesel Engine-1 | C64: Mercury and compounds | D64: =_xlfn.IFNA(IF(VLOOKUP(C64,TACcas,3,FALSE)="NoRBC","NoRBC",VLOOKUP(C64,TACcas,2,FALSE)),"NoRBC") -> 7439-97-6 | E64: 0.14496 | F64: 0.0004239872
B65: Diesel Engine-1 | C65: Selenium and compounds | D65: =_xlfn.IFNA(IF(VLOOKUP(C65,TACcas,3,FALSE)="NoRBC","NoRBC",VLOOKUP(C65,TACcas,2,FALSE)),"NoRBC") -> 7782-49-2 | E65: 0.159456 | F65: 0.00046638592
B66: Diesel Engine-1 | C66: Toluene | D66: =_xlfn.IFNA(IF(VLOOKUP(C66,TACcas,3,FALSE)="NoRBC","NoRBC",VLOOKUP(C66,TACcas,2,FALSE)),"NoRBC") -> 108-88-3 | E66: 7.639392 | F66: 0.02234412544
B67: Diesel Engine-1 | C67: Xylene (mixture), including m-xylene, o-xylene, p-xylene | D67: =_xlfn.IFNA(IF(VLOOKUP(C67,TACcas,3,FALSE)="NoRBC","NoRBC",VLOOKUP(C67,TACcas,2,FALSE)),"NoRBC") -> 1330-20-7 | E67: 3.073152 | F67: 0.00898852864
B68: Diesel Engine-1 | C68: Diesel Particulate Matter | D68: =_xlfn.IFNA(IF(VLOOKUP(C68,TACcas,3,FALSE)="NoRBC","NoRBC",VLOOKUP(C68,TACcas,2,FALSE)),"NoRBC") -> 200 | E68: 536.352 | F68: 1.56875264
B69: ASR-1 MH | C69: Aluminum and compounds | D69: =_xlfn.IFNA(IF(VLOOKUP(C69,TACcas,3,FALSE)="NoRBC","NoRBC",VLOOKUP(C69,TACcas,2,FALSE)),"NoRBC") -> 7429-90-5 | E69: 4.70049257 | F69: 0.0137482663
B70: ASR-1 MH | C70: Arsenic and compounds | D70: =_xlfn.IFNA(IF(VLOOKUP(C70,TACcas,3,FALSE)="NoRBC","NoRBC",VLOOKUP(C70,TACcas,2,FALSE)),"NoRBC") -> 7440-38-2 | E70: 0.009556274602 | F70: 2.7950732e-05
B71: ASR-1 MH | C71: Barium and compounds | D71: =_xlfn.IFNA(IF(VLOOKUP(C71,TACcas,3,FALSE)="NoRBC","NoRBC",VLOOKUP(C71,TACcas,2,FALSE)),"NoRBC") -> NoRBC | E71: 0.02060571711 | F71: 6.026876588e-05
B72: ASR-1 MH | C72: Cadmium and compounds | D72: =_xlfn.IFNA(IF(VLOOKUP(C72,TACcas,3,FALSE)="NoRBC","NoRBC",VLOOKUP(C72,TACcas,2,FALSE)),"NoRBC") -> 7440-43-9 | E72: 0.01517058593 | F72: 4.437178705e-05
B73: ASR-1 MH | C73: Cobalt and compounds | D73: =_xlfn.IFNA(IF(VLOOKUP(C73,TACcas,3,FALSE)="NoRBC","NoRBC",VLOOKUP(C73,TACcas,2,FALSE)),"NoRBC") -> 7440-48-4 | E73: 0.01308015086 | F73: 3.825756443e-05
B74: ASR-1 MH | C74: Copper and compounds | D74: =_xlfn.IFNA(IF(VLOOKUP(C74,TACcas,3,FALSE)="NoRBC","NoRBC",VLOOKUP(C74,TACcas,2,FALSE)),"NoRBC") -> 7440-50-8 | E74: 21.11936687 | F74: 0.06177111772
B75: ASR-1 MH | C75: Lead and compounds | D75: =_xlfn.IFNA(IF(VLOOKUP(C75,TACcas,3,FALSE)="NoRBC","NoRBC",VLOOKUP(C75,TACcas,2,FALSE)),"NoRBC") -> 7439-92-1 | E75: 6.928299086 | F75: 0.0202642807
B76: ASR-1 MH | C76: Manganese and compounds | D76: =_xlfn.IFNA(IF(VLOOKUP(C76,TACcas,3,FALSE)="NoRBC","NoRBC",VLOOKUP(C76,TACcas,2,FALSE)),"NoRBC") -> 7439-96-5 | E76: 0.3267051379 | F76: 0.0009555656503
B77: ASR-1 MH | C77: Mercury and compounds | D77: =_xlfn.IFNA(IF(VLOOKUP(C77,TACcas,3,FALSE)="NoRBC","NoRBC",VLOOKUP(C77,TACcas,2,FALSE)),"NoRBC") -> 7439-97-6 | E77: 0.0003882236557 | F77: 1.135498488e-06
B78: ASR-1 MH | C78: Nickel compounds, insoluble | D78: =_xlfn.IFNA(IF(VLOOKUP(C78,TACcas,3,FALSE)="NoRBC","NoRBC",VLOOKUP(C78,TACcas,2,FALSE)),"NoRBC") -> 365 | E78: 0.2329341934 | F78: 0.0006812990925
B79: ASR-1 MH | C79: Zinc and compounds | D79: =_xlfn.IFNA(IF(VLOOKUP(C79,TACcas,3,FALSE)="NoRBC","NoRBC",VLOOKUP(C79,TACcas,2,FALSE)),"NoRBC") -> NoRBC | E79: 6.988025802 | F79: 0.02043897278
B80: ASR-1 MH | C80: Benzene | D80: =_xlfn.IFNA(IF(VLOOKUP(C80,TACcas,3,FALSE)="NoRBC","NoRBC",VLOOKUP(C80,TACcas,2,FALSE)),"NoRBC") -> 71-43-2 | E80: 0.06795 | F80: 0.000198744
B81: ASR-1 MH | C81: Polychlorinated biphenyls (PCBs) | D81: =_xlfn.IFNA(IF(VLOOKUP(C81,TACcas,3,FALSE)="NoRBC","NoRBC",VLOOKUP(C81,TACcas,2,FALSE)),"NoRBC") -> 1336-36-3 | E81: 0.009556274602 | F81: 2.7950732e-05
B82: ASR-1 MH | C82: Polychlorinated biphenyls (PCBs) TEQ | D82: =_xlfn.IFNA(IF(VLOOKUP(C82,TACcas,3,FALSE)="NoRBC","NoRBC",VLOOKUP(C82,TACcas,2,FALSE)),"NoRBC") -> 645 | E82: 1.194534325e-07 | F82: 3.4938415e-10
B83: ASR-1 MH | C83: Polychlorinated dibenzo-p-dioxins (PCDDs) & dibenzofurans (PCDFs) TEQ | D83: =_xlfn.IFNA(IF(VLOOKUP(C83,TACcas,3,FALSE)="NoRBC","NoRBC",VLOOKUP(C83,TACcas,2,FALSE)),"NoRBC") -> 646 | E83: 1.313987758e-07 | F83: 3.84322565e-10
B84: ASR-1 MH | C84: Polychlorinated naphthalenes | D84: =_xlfn.IFNA(IF(VLOOKUP(C84,TACcas,3,FALSE)="NoRBC","NoRBC",VLOOKUP(C84,TACcas,2,FALSE)),"NoRBC") -> NoRBC | E84: 2.209888502e-05 | F84: 6.463606775e-08
B85: ASR-1 MH | C85: Hexachlorobenzene | D85: =_xlfn.IFNA(IF(VLOOKUP(C85,TACcas,3,FALSE)="NoRBC","NoRBC",VLOOKUP(C85,TACcas,2,FALSE)),"NoRBC") -> 118-74-1 | E85: 0.0006569938789 | F85: 1.921612825e-06
B86: ASR-1 MH | C86: 2,4,6-Trichlorophenol | D86: =_xlfn.IFNA(IF(VLOOKUP(C86,TACcas,3,FALSE)="NoRBC","NoRBC",VLOOKUP(C86,TACcas,2,FALSE)),"NoRBC") -> 88-06-2 | E86: 13.59 | F86: 0.0397488
B87: ASR-1 MH | C87: PBDDs/PBDFs | D87: =_xlfn.IFNA(IF(VLOOKUP(C87,TACcas,3,FALSE)="NoRBC","NoRBC",VLOOKUP(C87,TACcas,2,FALSE)),"NoRBC") -> NoRBC | E87: 3.882236557e-05 | F87: 1.135498488e-07
B88: ASR-1 MH | C88: Polybrominated diphenyl ethers (PBDEs) | D88: =_xlfn.IFNA(IF(VLOOKUP(C88,TACcas,3,FALSE)="NoRBC","NoRBC",VLOOKUP(C88,TACcas,2,FALSE)),"NoRBC") -> 447 | E88: 0.1045217535 | F88: 0.0003057111313
B89: ASR-1 MH | C89: Tetrabromobisphenol A | D89: =_xlfn.IFNA(IF(VLOOKUP(C89,TACcas,3,FALSE)="NoRBC","NoRBC",VLOOKUP(C89,TACcas,2,FALSE)),"NoRBC") -> NoRBC | E89: 7.95015 | F89: 0.023253048
B90: ASR-1 MH | C90: Hexabromocyclododecane | D90: =_xlfn.IFNA(IF(VLOOKUP(C90,TACcas,3,FALSE)="NoRBC","NoRBC",VLOOKUP(C90,TACcas,2,FALSE)),"NoRBC") -> NoRBC | E90: 0.001997858659 | F90: 5.843449909e-06
B91: ASR-1 MH | C91: 2,4,6-Tribromophenol | D91: =_xlfn.IFNA(IF(VLOOKUP(C91,TACcas,3,FALSE)="NoRBC","NoRBC",VLOOKUP(C91,TACcas,2,FALSE)),"NoRBC") -> NoRBC | E91: 1.68516 | F91: 0.0049288512
B92: ASR-1 MH | C92: Polycyclic aromatic hydrocarbons (PAHs) | D92: =_xlfn.IFNA(IF(VLOOKUP(C92,TACcas,3,FALSE)="NoRBC","NoRBC",VLOOKUP(C92,TACcas,2,FALSE)),"NoRBC") -> 401 | E92: 0.01788815152 | F92: 5.232027646e-05
B93: ASR-1 MH | C93: Bis(2-ethylhexyl) phthalate (DEHP) | D93: =_xlfn.IFNA(IF(VLOOKUP(C93,TACcas,3,FALSE)="NoRBC","NoRBC",VLOOKUP(C93,TACcas,2,FALSE)),"NoRBC") -> 117-81-7 | E93: 0.00495731745 | F93: 1.449944223e-05
B94: ASR-1 Piles | C94: Aluminum and compounds | D94: =_xlfn.IFNA(IF(VLOOKUP(C94,TACcas,3,FALSE)="NoRBC","NoRBC",VLOOKUP(C94,TACcas,2,FALSE)),"NoRBC") -> 7429-90-5 | E94: 0.07223377435 | F94: 0.0001979007517
B95: ASR-1 Piles | C95: Arsenic and compounds | D95: =_xlfn.IFNA(IF(VLOOKUP(C95,TACcas,3,FALSE)="NoRBC","NoRBC",VLOOKUP(C95,TACcas,2,FALSE)),"NoRBC") -> 7440-38-2 | E95: 0.000146853925 | F95: 4.023395205e-07
B96: ASR-1 Piles | C96: Barium and compounds | D96: =_xlfn.IFNA(IF(VLOOKUP(C96,TACcas,3,FALSE)="NoRBC","NoRBC",VLOOKUP(C96,TACcas,2,FALSE)),"NoRBC") -> NoRBC | E96: 0.0003166537758 | F96: 8.675445911e-07
B97: ASR-1 Piles | C97: Cadmium and compounds | D97: =_xlfn.IFNA(IF(VLOOKUP(C97,TACcas,3,FALSE)="NoRBC","NoRBC",VLOOKUP(C97,TACcas,2,FALSE)),"NoRBC") -> 7440-43-9 | E97: 0.0002331306059 | F97: 6.387139888e-07
B98: ASR-1 Piles | C98: Cobalt and compounds | D98: =_xlfn.IFNA(IF(VLOOKUP(C98,TACcas,3,FALSE)="NoRBC","NoRBC",VLOOKUP(C98,TACcas,2,FALSE)),"NoRBC") -> 7440-48-4 | E98: 0.0002010063098 | F98: 5.507022187e-07
B99: ASR-1 Piles | C99: Copper and compounds | D99: =_xlfn.IFNA(IF(VLOOKUP(C99,TACcas,3,FALSE)="NoRBC","NoRBC",VLOOKUP(C99,TACcas,2,FALSE)),"NoRBC") -> 7440-50-8 | E99: 0.3245471742 | F99: 0.0008891703404
B100: ASR-1 Piles | C100: Lead and compounds | D100: =_xlfn.IFNA(IF(VLOOKUP(C100,TACcas,3,FALSE)="NoRBC","NoRBC",VLOOKUP(C100,TACcas,2,FALSE)),"NoRBC") -> 7439-92-1 | E100: 0.1064690956 | F100: 0.0002916961524
B101: ASR-1 Piles | C101: Manganese and compounds | D101: =_xlfn.IFNA(IF(VLOOKUP(C101,TACcas,3,FALSE)="NoRBC","NoRBC",VLOOKUP(C101,TACcas,2,FALSE)),"NoRBC") -> 7439-96-5 | E101: 0.005020568561 | F101: 1.375498236e-05
B102: ASR-1 Piles | C102: Mercury and compounds | D102: =_xlfn.IFNA(IF(VLOOKUP(C102,TACcas,3,FALSE)="NoRBC","NoRBC",VLOOKUP(C102,TACcas,2,FALSE)),"NoRBC") -> 7439-97-6 | E102: 5.965940703e-06 | F102: 1.634504302e-08
B103: ASR-1 Piles | C103: Nickel compounds, insoluble | D103: =_xlfn.IFNA(IF(VLOOKUP(C103,TACcas,3,FALSE)="NoRBC","NoRBC",VLOOKUP(C103,TACcas,2,FALSE)),"NoRBC") -> 365 | E103: 0.003579564422 | F103: 9.807025813e-06
B104: ASR-1 Piles | C104: Zinc and compounds | D104: =_xlfn.IFNA(IF(VLOOKUP(C104,TACcas,3,FALSE)="NoRBC","NoRBC",VLOOKUP(C104,TACcas,2,FALSE)),"NoRBC") -> NoRBC | E104: 0.1073869326 | F104: 0.0002942107744
B105: ASR-1 Piles | C105: Polychlorinated biphenyls (PCBs) | D105: =_xlfn.IFNA(IF(VLOOKUP(C105,TACcas,3,FALSE)="NoRBC","NoRBC",VLOOKUP(C105,TACcas,2,FALSE)),"NoRBC") -> 1336-36-3 | E105: 0.000146853925 | F105: 4.023395205e-07
B106: ASR-1 Piles | C106: Polychlorinated biphenyls (PCBs) TEQ | D106: =_xlfn.IFNA(IF(VLOOKUP(C106,TACcas,3,FALSE)="NoRBC","NoRBC",VLOOKUP(C106,TACcas,2,FALSE)),"NoRBC") -> 645 | E106: 1.835674062e-09 | F106: 5.029244007e-12
B107: ASR-1 Piles | C107: Polychlorinated dibenzo-p-dioxins (PCDDs) & dibenzofurans (PCDFs) TEQ | D107: =_xlfn.IFNA(IF(VLOOKUP(C107,TACcas,3,FALSE)="NoRBC","NoRBC",VLOOKUP(C107,TACcas,2,FALSE)),"NoRBC") -> 646 | E107: 2.019241469e-09 | F107: 5.532168407e-12
B108: ASR-1 Piles | C108: Polychlorinated naphthalenes | D108: =_xlfn.IFNA(IF(VLOOKUP(C108,TACcas,3,FALSE)="NoRBC","NoRBC",VLOOKUP(C108,TACcas,2,FALSE)),"NoRBC") -> NoRBC | E108: 3.395997015e-07 | F108: 9.304101412e-10
B109: ASR-1 Piles | C109: Hexachlorobenzene | D109: =_xlfn.IFNA(IF(VLOOKUP(C109,TACcas,3,FALSE)="NoRBC","NoRBC",VLOOKUP(C109,TACcas,2,FALSE)),"NoRBC") -> 118-74-1 | E109: 1.009620734e-05 | F109: 2.766084204e-08
B110: ASR-1 Piles | C110: PBDDs/PBDFs | D110: =_xlfn.IFNA(IF(VLOOKUP(C110,TACcas,3,FALSE)="NoRBC","NoRBC",VLOOKUP(C110,TACcas,2,FALSE)),"NoRBC") -> NoRBC | E110: 5.965940703e-07 | F110: 1.634504302e-09
B111: ASR-1 Piles | C111: Polybrominated diphenyl ethers (PBDEs) | D111: =_xlfn.IFNA(IF(VLOOKUP(C111,TACcas,3,FALSE)="NoRBC","NoRBC",VLOOKUP(C111,TACcas,2,FALSE)),"NoRBC") -> 447 | E111: 0.001606214805 | F111: 4.400588506e-06
B112: ASR-1 Piles | C112: Hexabromocyclododecane | D112: =_xlfn.IFNA(IF(VLOOKUP(C112,TACcas,3,FALSE)="NoRBC","NoRBC",VLOOKUP(C112,TACcas,2,FALSE)),"NoRBC") -> NoRBC | E112: 3.070164869e-05 | F112: 8.411410601e-08
B113: ASR-1 Piles | C113: Polycyclic aromatic hydrocarbons (PAHs) | D113: =_xlfn.IFNA(IF(VLOOKUP(C113,TACcas,3,FALSE)="NoRBC","NoRBC",VLOOKUP(C113,TACcas,2,FALSE)),"NoRBC") -> 401 | E113: 0.0002748921908 | F113: 7.5312929e-07
B114: ASR-1 Piles | C114: Bis(2-ethylhexyl) phthalate (DEHP) | D114: =_xlfn.IFNA(IF(VLOOKUP(C114,TACcas,3,FALSE)="NoRBC","NoRBC",VLOOKUP(C114,TACcas,2,FALSE)),"NoRBC") -> 117-81-7 | E114: 7.618047359e-05 | F114: 2.087136263e-07
B115: Drain | C115: 2,2,4 Trimethylpentane | D115: =_xlfn.IFNA(IF(VLOOKUP(C115,TACcas,3,FALSE)="NoRBC","NoRBC",VLOOKUP(C115,TACcas,2,FALSE)),"NoRBC") -> NoRBC | E115: 15.89235086 | F115: 0.04648284592
B116: Drain | C116: Benzene | D116: =_xlfn.IFNA(IF(VLOOKUP(C116,TACcas,3,FALSE)="NoRBC","NoRBC",VLOOKUP(C116,TACcas,2,FALSE)),"NoRBC") -> 71-43-2 | E116: 13.44737381 | F116: 0.03933163885
B117: Drain | C117: Ethylbenzene | D117: =_xlfn.IFNA(IF(VLOOKUP(C117,TACcas,3,FALSE)="NoRBC","NoRBC",VLOOKUP(C117,TACcas,2,FALSE)),"NoRBC") -> NoRBC | E117: 3.05622132 | F117: 0.00893900883
B118: Drain | C118: Hexane | D118: =_xlfn.IFNA(IF(VLOOKUP(C118,TACcas,3,FALSE)="NoRBC","NoRBC",VLOOKUP(C118,TACcas,2,FALSE)),"NoRBC") -> 110-54-3 | E118: 26.89474761 | F118: 0.0786632777
B119: Drain | C119: Toluene | D119: =_xlfn.IFNA(IF(VLOOKUP(C119,TACcas,3,FALSE)="NoRBC","NoRBC",VLOOKUP(C119,TACcas,2,FALSE)),"NoRBC") -> 108-88-3 | E119: 24.44977056 | F119: 0.07151207064
B120: Drain | C120: Xylenes | D120: =_xlfn.IFNA(IF(VLOOKUP(C120,TACcas,3,FALSE)="NoRBC","NoRBC",VLOOKUP(C120,TACcas,2,FALSE)),"NoRBC") -> NoRBC | E120: 9.16866396 | F120: 0.02681702649

Sheet Identify Exposure Locations
B2: Exposure Locations
B3: A map with the TEI and each Exposure Location labeled should be included with the submission.
B6: TEU Identifier | C6: Residential Exposure Name | D6: Distance (m) | E6: Child Exposure Name | F6: Distance (m) | G6: Work Exposure Name | H6: Distance (m) | I6: Acute Exposure Name | J6: Distance (m)
B7: Shredder-1 | C7: Ridgecrest Timber Apartments | D7: 736 | E7: Sitton School | F7: 955 | G7: It's a better deal auto and truck recycling | H7: 30 | I7: It's a better deal auto and truck recycling | J7: 30
B8: Diesel Engine-1 | C8: Ridgecrest Timber Apartments | D8: 736 | E8: Sitton School | F8: 955 | G8: It's a better deal auto and truck recycling | H8: 30 | I8: It's a better deal auto and truck recycling | J8: 30
B9: ASR-1 MH | C9: Ridgecrest Timber Apartments | D9: 736 | E9: Sitton School | F9: 955 | G9: It's a better deal auto and truck recycling | H9: 30 | I9: It's a better deal auto and truck recycling | J9: 30
B10: ASR-1 Piles | C10: Ridgecrest Timber Apartments | D10: 736 | E10: Sitton School | F10: 955 | G10: It's a better deal auto and truck recycling | H10: 30 | I10: It's a better deal auto and truck recycling | J10: 30
B11: Drain | C11: Ridgecrest Timber Apartments | D11: 736 | E11: Sitton School | F11: 955 | G11: It's a better deal auto and truck recycling | H11: 30 | I11: It's a better deal auto and truck recycling | J11: 30

Sheet Summarize Risk
B2: Summary of Risk
B5: TEU Identifier | C5: Cancer Risk | F5: Chronic Risk | I5: Acute
C6: Residential | D6: Child | E6: Worker | F6: Residential | G6: Child | H6: Worker
B7: Shredder-1 | C7: =SUMIF('Calculate Risk'!$B$7:$B$120,$B7,'Calculate Risk'!L$7:L$120) -> 1.372210557 | D7: =SUMIF('Calculate Risk'!$B$7:$B$120,$B7,'Calculate Risk'!M$7:M$120) -> 0.03305389119 | E7: =SUMIF('Calculate Risk'!$B$7:$B$120,$B7,'Calculate Risk'!N$7:N$120) -> 4.578986849 | F7: =SUMIF('Calculate Risk'!$B$7:$B$120,$B7,'Calculate Risk'!O$7:O$120) -> 0.006171988859 | G7: =SUMIF('Calculate Risk'!$B$7:$B$120,$B7,'Calculate Risk'!P$7:P$120) -> 0.0003960072889 | H7: =SUMIF('Calculate Risk'!$B$7:$B$120,$B7,'Calculate Risk'!Q$7:Q$120) -> 0.06000110438 | I7: =SUMIF('Calculate Risk'!$B$7:$B$120,$B7,'Calculate Risk'!R$7:R$120) -> 0.3169000436
B8: Diesel Engine-1 | C8: =SUMIF('Calculate Risk'!$B$7:$B$120,$B8,'Calculate Risk'!L$7:L$120) -> 2.71979736 | D8: =SUMIF('Calculate Risk'!$B$7:$B$120,$B8,'Calculate Risk'!M$7:M$120) -> 0.0489775368 | E8: =SUMIF('Calculate Risk'!$B$7:$B$120,$B8,'Calculate Risk'!N$7:N$120) -> 5.493147524 | F8: =SUMIF('Calculate Risk'!$B$7:$B$120,$B8,'Calculate Risk'!O$7:O$120) -> 0.0325185313 | G8: =SUMIF('Calculate Risk'!$B$7:$B$120,$B8,'Calculate Risk'!P$7:P$120) -> 0.002186420461 | H8: =SUMIF('Calculate Risk'!$B$7:$B$120,$B8,'Calculate Risk'!Q$7:Q$120) -> 0.297533506 | I8: =SUMIF('Calculate Risk'!$B$7:$B$120,$B8,'Calculate Risk'!R$7:R$120) -> 0.3785794234
B9: ASR-1 MH | C9: =SUMIF('Calculate Risk'!$B$7:$B$120,$B9,'Calculate Risk'!L$7:L$120) -> 0.06556515941 | D9: =SUMIF('Calculate Risk'!$B$7:$B$120,$B9,'Calculate Risk'!M$7:M$120) -> 0.001060196767 | E9: =SUMIF('Calculate Risk'!$B$7:$B$120,$B9,'Calculate Risk'!N$7:N$120) -> 0.26297631 | F9: =SUMIF('Calculate Risk'!$B$7:$B$120,$B9,'Calculate Risk'!O$7:O$120) -> 0.005844459849 | G9: =SUMIF('Calculate Risk'!$B$7:$B$120,$B9,'Calculate Risk'!P$7:P$120) -> 0.0005857393437 | H9: =SUMIF('Calculate Risk'!$B$7:$B$120,$B9,'Calculate Risk'!Q$7:Q$120) -> 0.08874838541 | I9: =SUMIF('Calculate Risk'!$B$7:$B$120,$B9,'Calculate Risk'!R$7:R$120) -> 0.6911190766
B10: ASR-1 Piles | C10: =SUMIF('Calculate Risk'!$B$7:$B$120,$B10,'Calculate Risk'!L$7:L$120) -> 0.0008175654358 | D10: =SUMIF('Calculate Risk'!$B$7:$B$120,$B10,'Calculate Risk'!M$7:M$120) -> 1.151171966e-05 | E10: =SUMIF('Calculate Risk'!$B$7:$B$120,$B10,'Calculate Risk'!N$7:N$120) -> 0.002471787576 | F10: =SUMIF('Calculate Risk'!$B$7:$B$120,$B10,'Calculate Risk'!O$7:O$120) -> 8.979763482e-05 | G10: =SUMIF('Calculate Risk'!$B$7:$B$120,$B10,'Calculate Risk'!P$7:P$120) -> 8.998833508e-06 | H10: =SUMIF('Calculate Risk'!$B$7:$B$120,$B10,'Calculate Risk'!Q$7:Q$120) -> 0.001363459622 | I10: =SUMIF('Calculate Risk'!$B$7:$B$120,$B10,'Calculate Risk'!R$7:R$120) -> 0.009947907007
B11: Drain | C11: =SUMIF('Calculate Risk'!$B$7:$B$120,$B11,'Calculate Risk'!L$7:L$120) -> 0.004696236699 | D11: =SUMIF('Calculate Risk'!$B$7:$B$120,$B11,'Calculate Risk'!M$7:M$120) -> 0.0001210263643 | E11: =SUMIF('Calculate Risk'!$B$7:$B$120,$B11,'Calculate Risk'!N$7:N$120) -> 0.04034212142 | F11: =SUMIF('Calculate Risk'!$B$7:$B$120,$B11,'Calculate Risk'!O$7:O$120) -> 0.0002054699107 | G11: =SUMIF('Calculate Risk'!$B$7:$B$120,$B11,'Calculate Risk'!P$7:P$120) -> 3.101275331e-05 | H11: =SUMIF('Calculate Risk'!$B$7:$B$120,$B11,'Calculate Risk'!Q$7:Q$120) -> 0.004698902016 | I11: =SUMIF('Calculate Risk'!$B$7:$B$120,$B11,'Calculate Risk'!R$7:R$120) -> 0.006555832087
B12: Total Risk | C12: =SUM(C7:C11) -> 4.163086879 | D12: =SUM(D7:D11) -> 0.08322416284 | E12: =SUM(E7:E11) -> 10.37792459 | F12: =SUM(F7:F11) -> 0.04483024755 | G12: =SUM(G7:G11) -> 0.00320817868 | H12: =SUM(H7:H11) -> 0.4523453574 | I12: =SUM(I7:I11) -> 1.403102283

Sheet Calculate Dispersion Factors
B2: Dispersion Factors
B5: TEU | C5: Type | D5: DF Residential | E5: DF Child | F5: DF Worker | G5: DF Acute
D6: ug/m3/lbs/yr | E6: ug/m3/lbs/yr | F6: ug/m3/lbs/yr | G6: ug/m3/lbs/yr
B7: Shredder-1 | C7: Fugitive | D7: 4.54e-05 | E7: 2.97e-05 | F7: 0.0045 | G7: 4.8
B8: Diesel Engine-1 | C8: Point | D8: 3.712e-05 | E8: 2.425e-05 | F8: 0.0033 | G8: 8.3
B9: ASR-1 MH | C9: Fugitive | D9: 4.54e-05 | E9: 2.97e-05 | F9: 0.0045 | G9: 4.8
B10: ASR-1 Piles | C10: Fugitive | D10: 4.54e-05 | E10: 2.97e-05 | F10: 0.0045 | G10: 4.8
B11: Drain | C11: Fugitive | D11: 4.54e-05 | E11: 2.97e-05 | F11: 0.0045 | G11: 4.8

Sheet Calculate Risk
B2: Risk Calculations
B5: TEU Identifier | C5: TAC | D5: CAS Number | E5: Cancer RBC | H5: Chronic RBC | K5: Acute RBC | L5: Cancer Risk | O5: Chronic Risk | R5: Acute
E6: Residential | F6: Child | G6: Worker | H6: Residential | I6: Child | J6: Worker | L6: Residential | M6: Child | N6: Worker | O6: Residential | P6: Child | Q6: Worker
B7: Shredder-1 | C7: Antimony and compounds | D7: 7440-36-0 | E7: -- | F7: -- | G7: -- | H7: 0.3 | I7: 1.3 | J7: 1.3 | K7: 1 | L7: -- | M7: -- | N7: -- | O7: ='Identify Toxic Air Contaminants'!$E7*VLOOKUP($B7,'Calculate Dispersion Factors'!$B$7:$N$11,3,FALSE)/H7 -> 7.643771e-07 | P7: ='Identify Toxic Air Contaminants'!$E7*VLOOKUP($B7,'Calculate Dispersion Factors'!$B$7:$N$11,4,FALSE)/I7 -> 1.153947808e-07 | Q7: ='Identify Toxic Air Contaminants'!$E7*VLOOKUP($B7,'Calculate Dispersion Factors'!$B$7:$N$11,5,FALSE)/J7 -> 1.748405769e-05 | R7: ='Identify Toxic Air Contaminants'!$F7*VLOOKUP($B7,'Calculate Dispersion Factors'!$B$7:$N$11,6,FALSE)/K7 -> 7.09118592e-05
B8: Shredder-1 | C8: Arsenic and compounds | D8: 7440-38-2 | E8: 2.4e-05 | F8: 0.0013 | G8: 0.00062 | H8: 0.00017 | I8: 0.0024 | J8: 0.0024 | K8: 0.2 | L8: ='Identify Toxic Air Contaminants'!$E8*VLOOKUP($B8,'Calculate Dispersion Factors'!$B$7:$N$11,3,FALSE)/E8 -> 0.002999960895 | M8: ='Identify Toxic Air Contaminants'!$E8*VLOOKUP($B8,'Calculate Dispersion Factors'!$B$7:$N$11,4,FALSE)/F8 -> 3.623131355e-05 | N8: ='Identify Toxic Air Contaminants'!$E8*VLOOKUP($B8,'Calculate Dispersion Factors'!$B$7:$N$11,5,FALSE)/G8 -> 0.01151043686 | O8: ='Identify Toxic Air Contaminants'!$E8*VLOOKUP($B8,'Calculate Dispersion Factors'!$B$7:$N$11,3,FALSE)/H8 -> 0.000423523891 | P8: ='Identify Toxic Air Contaminants'!$E8*VLOOKUP($B8,'Calculate Dispersion Factors'!$B$7:$N$11,4,FALSE)/I8 -> 1.962529484e-05 | Q8: ='Identify Toxic Air Contaminants'!$E8*VLOOKUP($B8,'Calculate Dispersion Factors'!$B$7:$N$11,5,FALSE)/J8 -> 0.002973529521 | R8: ='Identify Toxic Air Contaminants'!$F8*VLOOKUP($B8,'Calculate Dispersion Factors'!$B$7:$N$11,6,FALSE)/K8 -> 0.000111323484
B9: Shredder-1 | C9: Barium and compounds | D9: NoRBC | E9: -- | F9: -- | G9: -- | H9: -- | I9: -- | J9: -- | K9: --
B10: Shredder-1 | C10: Beryllium and compounds | D10: 7440-41-7 | E10: 0.00042 | F10: 0.011 | G10: 0.005 | H10: 0.007 | I10: 0.031 | J10: 0.031 | K10: 0.02 | L10: ='Identify Toxic Air Contaminants'!$E10*VLOOKUP($B10,'Calculate Dispersion Factors'!$B$7:$N$11,3,FALSE)/E10 -> 3.586579388e-05 | M10: ='Identify Toxic Air Contaminants'!$E10*VLOOKUP($B10,'Calculate Dispersion Factors'!$B$7:$N$11,4,FALSE)/F10 -> 8.958548515e-07 | N10: ='Identify Toxic Air Contaminants'!$E10*VLOOKUP($B10,'Calculate Dispersion Factors'!$B$7:$N$11,5,FALSE)/G10 -> 0.0002986182838 | O10: ='Identify Toxic Air Contaminants'!$E10*VLOOKUP($B10,'Calculate Dispersion Factors'!$B$7:$N$11,3,FALSE)/H10 -> 2.151947633e-06 | P10: ='Identify Toxic Air Contaminants'!$E10*VLOOKUP($B10,'Calculate Dispersion Factors'!$B$7:$N$11,4,FALSE)/I10 -> 3.178839796e-07 | Q10: ='Identify Toxic Air Contaminants'!$E10*VLOOKUP($B10,'Calculate Dispersion Factors'!$B$7:$N$11,5,FALSE)/J10 -> 4.816423933e-05 | R10: ='Identify Toxic Air Contaminants'!$F10*VLOOKUP($B10,'Calculate Dispersion Factors'!$B$7:$N$11,6,FALSE)/K10 -> 0.0002329108352
B11: Shredder-1 | C11: Cadmium and compounds | D11: 7440-43-9 | E11: 0.00056 | F11: 0.014 | G11: 0.0067 | H11: 0.005 | I11: 0.037 | J11: 0.037 | K11: 0.03 | L11: ='Identify Toxic Air Contaminants'!$E11*VLOOKUP($B11,'Calculate Dispersion Factors'!$B$7:$N$11,3,FALSE)/E11 -> 0.01415762518 | M11: ='Identify Toxic Air Contaminants'!$E11*VLOOKUP($B11,'Calculate Dispersion Factors'!$B$7:$N$11,4,FALSE)/F11 -> 0.0003704682536 | N11: ='Identify Toxic Air Contaminants'!$E11*VLOOKUP($B11,'Calculate Dispersion Factors'!$B$7:$N$11,5,FALSE)/G11 -> 0.1172898134 | O11: ='Identify Toxic Air Contaminants'!$E11*VLOOKUP($B11,'Calculate Dispersion Factors'!$B$7:$N$11,3,FALSE)/H11 -> 0.00158565402 | P11: ='Identify Toxic Air Contaminants'!$E11*VLOOKUP($B11,'Calculate Dispersion Factors'!$B$7:$N$11,4,FALSE)/I11 -> 0.000140177177 | Q11: ='Identify Toxic Air Contaminants'!$E11*VLOOKUP($B11,'Calculate Dispersion Factors'!$B$7:$N$11,5,FALSE)/J11 -> 0.02123896622 | R11: ='Identify Toxic Air Contaminants'!$F11*VLOOKUP($B11,'Calculate Dispersion Factors'!$B$7:$N$11,6,FALSE)/K11 -> 0.0817235328
B12: Shredder-1 | C12: Chromium VI, chromate, and dichromate particulate | D12: 18540-29-9 | E12: 3.1e-05 | F12: 0.00052 | G12: 0.001 | H12: 0.083 | I12: 0.88 | J12: 0.88 | K12: 0.3 | L12: ='Identify Toxic Air Contaminants'!$E12*VLOOKUP($B12,'Calculate Dispersion Factors'!$B$7:$N$11,3,FALSE)/E12 -> 0.5473262903 | M12: ='Identify Toxic Air Contaminants'!$E12*VLOOKUP($B12,'Calculate Dispersion Factors'!$B$7:$N$11,4,FALSE)/F12 -> 0.02134544712 | N12: ='Identify Toxic Air Contaminants'!$E12*VLOOKUP($B12,'Calculate Dispersion Factors'!$B$7:$N$11,5,FALSE)/G12 -> 1.6817625 | O12: ='Identify Toxic Air Contaminants'!$E12*VLOOKUP($B12,'Calculate Dispersion Factors'!$B$7:$N$11,3,FALSE)/H12 -> 0.0002044230723 | P12: ='Identify Toxic Air Contaminants'!$E12*VLOOKUP($B12,'Calculate Dispersion Factors'!$B$7:$N$11,4,FALSE)/I12 -> 1.261321875e-05 | Q12: ='Identify Toxic Air Contaminants'!$E12*VLOOKUP($B12,'Calculate Dispersion Factors'!$B$7:$N$11,5,FALSE)/J12 -> 0.00191109375 | R12: ='Identify Toxic Air Contaminants'!$F12*VLOOKUP($B12,'Calculate Dispersion Factors'!$B$7:$N$11,6,FALSE)/K12 -> 0.017489472
B13: Shredder-1 | C13: Cobalt and compounds | D13: 7440-48-4 | E13: -- | F13: -- | G13: -- | H13: 0.1 | I13: 0.44 | J13: 0.44 | K13: -- | L13: -- | M13: -- | N13: -- | O13: ='Identify Toxic Air Contaminants'!$E13*VLOOKUP($B13,'Calculate Dispersion Factors'!$B$7:$N$11,3,FALSE)/H13 -> 1.3779354e-06 | P13: ='Identify Toxic Air Contaminants'!$E13*VLOOKUP($B13,'Calculate Dispersion Factors'!$B$7:$N$11,4,FALSE)/I13 -> 2.0486925e-07 | Q13: ='Identify Toxic Air Contaminants'!$E13*VLOOKUP($B13,'Calculate Dispersion Factors'!$B$7:$N$11,5,FALSE)/J13 -> 3.104079545e-05 | R13: --
B14: Shredder-1 | C14: Copper and compounds | D14: 7440-50-8 | E14: -- | F14: -- | G14: -- | H14: -- | I14: -- | J14: -- | K14: 100 | L14: -- | M14: -- | N14: -- | O14: -- | P14: -- | Q14: -- | R14: ='Identify Toxic Air Contaminants'!$F14*VLOOKUP($B14,'Calculate Dispersion Factors'!$B$7:$N$11,6,FALSE)/K14 -> 4.910865746e-06
B15: Shredder-1 | C15: Lead and compounds | D15: 7439-92-1 | E15: -- | F15: -- | G15: -- | H15: 0.15 | I15: 0.66 | J15: 0.66 | K15: 0.15 | L15: -- | M15: -- | N15: -- | O15: ='Identify Toxic Air Contaminants'!$E15*VLOOKUP($B15,'Calculate Dispersion Factors'!$B$7:$N$11,3,FALSE)/H15 -> 0.00052923688 | P15: ='Identify Toxic Air Contaminants'!$E15*VLOOKUP($B15,'Calculate Dispersion Factors'!$B$7:$N$11,4,FALSE)/I15 -> 7.86861e-05 | Q15: ='Identify Toxic Air Contaminants'!$E15*VLOOKUP($B15,'Calculate Dispersion Factors'!$B$7:$N$11,5,FALSE)/J15 -> 0.01192213636 | R15: ='Identify Toxic Air Contaminants'!$F15*VLOOKUP($B15,'Calculate Dispersion Factors'!$B$7:$N$11,6,FALSE)/K15 -> 0.1636590592
B16: Shredder-1 | C16: Manganese and compounds | D16: 7439-96-5 | E16: -- | F16: -- | G16: -- | H16: 0.09 | I16: 0.4 | J16: 0.4 | K16: 0.3 | L16: -- | M16: -- | N16: -- | O16: ='Identify Toxic Air Contaminants'!$E16*VLOOKUP($B16,'Calculate Dispersion Factors'!$B$7:$N$11,3,FALSE)/H16 -> 2.726205598e-05 | P16: ='Identify Toxic Air Contaminants'!$E16*VLOOKUP($B16,'Calculate Dispersion Factors'!$B$7:$N$11,4,FALSE)/I16 -> 4.012746456e-06 | Q16: ='Identify Toxic Air Contaminants'!$E16*VLOOKUP($B16,'Calculate Dispersion Factors'!$B$7:$N$11,5,FALSE)/J16 -> 0.0006079918872 | R16: ='Identify Toxic Air Contaminants'!$F16*VLOOKUP($B16,'Calculate Dispersion Factors'!$B$7:$N$11,6,FALSE)/K16 -> 0.002529122177
B17: Shredder-1 | C17: Mercury and compounds | D17: 7439-97-6 | E17: -- | F17: -- | G17: -- | H17: 0.077 | I17: 0.63 | J17: 0.63 | K17: 0.6 | L17: -- | M17: -- | N17: -- | O17: ='Identify Toxic Air Contaminants'!$E17*VLOOKUP($B17,'Calculate Dispersion Factors'!$B$7:$N$11,3,FALSE)/H17 -> 0.0006631579762 | P17: ='Identify Toxic Air Contaminants'!$E17*VLOOKUP($B17,'Calculate Dispersion Factors'!$B$7:$N$11,4,FALSE)/I17 -> 5.302342409e-05 | Q17: ='Identify Toxic Air Contaminants'!$E17*VLOOKUP($B17,'Calculate Dispersion Factors'!$B$7:$N$11,5,FALSE)/J17 -> 0.008033852135 | R17: ='Identify Toxic Air Contaminants'!$F17*VLOOKUP($B17,'Calculate Dispersion Factors'!$B$7:$N$11,6,FALSE)/K17 -> 0.0263176085
B18: Shredder-1 | C18: Nickel compounds, insoluble | D18: 365 | E18: 0.0038 | F18: 0.1 | G18: 0.046 | H18: 0.014 | I18: 0.062 | J18: 0.062 | K18: 0.2 | L18: ='Identify Toxic Air Contaminants'!$E18*VLOOKUP($B18,'Calculate Dispersion Factors'!$B$7:$N$11,3,FALSE)/E18 -> 0.0002385187274 | M18: ='Identify Toxic Air Contaminants'!$E18*VLOOKUP($B18,'Calculate Dispersion Factors'!$B$7:$N$11,4,FALSE)/F18 -> 5.929344399e-06 | N18: ='Identify Toxic Air Contaminants'!$E18*VLOOKUP($B18,'Calculate Dispersion Factors'!$B$7:$N$11,5,FALSE)/G18 -> 0.001953011989 | O18: ='Identify Toxic Air Contaminants'!$E18*VLOOKUP($B18,'Calculate Dispersion Factors'!$B$7:$N$11,3,FALSE)/H18 -> 6.474079743e-05 | P18: ='Identify Toxic Air Contaminants'!$E18*VLOOKUP($B18,'Calculate Dispersion Factors'!$B$7:$N$11,4,FALSE)/I18 -> 9.563458707e-06 | Q18: ='Identify Toxic Air Contaminants'!$E18*VLOOKUP($B18,'Calculate Dispersion Factors'!$B$7:$N$11,5,FALSE)/J18 -> 0.001449008895 | R18: ='Identify Toxic Air Contaminants'!$F18*VLOOKUP($B18,'Calculate Dispersion Factors'!$B$7:$N$11,6,FALSE)/K18 -> 0.001401412653
B19: Shredder-1 | C19: Phosphorus and compounds | D19: NoRBC | E19: -- | F19: -- | G19: -- | H19: -- | I19: -- | J19: -- | K19: --
B20: Shredder-1 | C20: Selenium and compounds | D20: 7782-49-2 | E20: -- | F20: -- | G20: -- | H20: -- | I20: -- | J20: -- | K20: 2 | L20: -- | M20: -- | N20: -- | O20: -- | P20: -- | Q20: -- | R20: ='Identify Toxic Air Contaminants'!$F20*VLOOKUP($B20,'Calculate Dispersion Factors'!$B$7:$N$11,6,FALSE)/K20 -> 4.776645943e-05
B21: Shredder-1 | C21: Thallium and compounds | D21: NoRBC | E21: -- | F21: -- | G21: -- | H21: -- | I21: -- | J21: -- | K21: --
B22: Shredder-1 | C22: Silver and compounds | D22: NoRBC | E22: -- | F22: -- | G22: -- | H22: -- | I22: -- | J22: -- | K22: --
B23: Shredder-1 | C23: Zinc and compounds | D23: NoRBC | E23: -- | F23: -- | G23: -- | H23: -- | I23: -- | J23: -- | K23: --
B24: Shredder-1 | C24: 1,1-Dichloroethane (Ethylidene dichloride) | D24: 75-34-3 | E24: 0.63 | F24: 16 | G24: 7.5 | H24: -- | I24: -- | J24: -- | K24: -- | L24: ='Identify Toxic Air Contaminants'!$E24*VLOOKUP($B24,'Calculate Dispersion Factors'!$B$7:$N$11,3,FALSE)/E24 -> 2.170876667e-05 | M24: ='Identify Toxic Air Contaminants'!$E24*VLOOKUP($B24,'Calculate Dispersion Factors'!$B$7:$N$11,4,FALSE)/F24 -> 5.591860312e-07 | N24: ='Identify Toxic Air Contaminants'!$E24*VLOOKUP($B24,'Calculate Dispersion Factors'!$B$7:$N$11,5,FALSE)/G24 -> 0.000180747 | O24: -- | P24: -- | Q24: -- | R24: --
B25: Shredder-1 | C25: Benzene | D25: 71-43-2 | E25: 0.13 | F25: 3.3 | G25: 1.5 | H25: 3 | I25: 13 | J25: 13 | K25: 29 | L25: ='Identify Toxic Air Contaminants'!$E25*VLOOKUP($B25,'Calculate Dispersion Factors'!$B$7:$N$11,3,FALSE)/E25 -> 0.009008657424 | M25: ='Identify Toxic Air Contaminants'!$E25*VLOOKUP($B25,'Calculate Dispersion Factors'!$B$7:$N$11,4,FALSE)/F25 -> 0.0002321614358 | N25: ='Identify Toxic Air Contaminants'!$E25*VLOOKUP($B25,'Calculate Dispersion Factors'!$B$7:$N$11,5,FALSE)/G25 -> 0.07738714527 | O25: ='Identify Toxic Air Contaminants'!$E25*VLOOKUP($B25,'Calculate Dispersion Factors'!$B$7:$N$11,3,FALSE)/H25 -> 0.000390375155 | P25: ='Identify Toxic Air Contaminants'!$E25*VLOOKUP($B25,'Calculate Dispersion Factors'!$B$7:$N$11,4,FALSE)/I25 -> 5.893328755e-05 | Q25: ='Identify Toxic Air Contaminants'!$E25*VLOOKUP($B25,'Calculate Dispersion Factors'!$B$7:$N$11,5,FALSE)/J25 -> 0.008929285993 | R25: ='Identify Toxic Air Contaminants'!$F25*VLOOKUP($B25,'Calculate Dispersion Factors'!$B$7:$N$11,6,FALSE)/K25 -> 0.01248807149
B26: Shredder-1 | C26: Ethyl benzene | D26: 100-41-4 | E26: 0.4 | F26: 10 | G26: 4.8 | H26: 260 | I26: 1100 | J26: 1100 | K26: 22000 | L26: ='Identify Toxic Air Contaminants'!$E26*VLOOKUP($B26,'Calculate Dispersion Factors'!$B$7:$N$11,3,FALSE)/E26 -> 0.00269590763 | M26: ='Identify Toxic Air Contaminants'!$E26*VLOOKUP($B26,'Calculate Dispersion Factors'!$B$7:$N$11,4,FALSE)/F26 -> 7.05448957e-05 | N26: ='Identify Toxic Air Contaminants'!$E26*VLOOKUP($B26,'Calculate Dispersion Factors'!$B$7:$N$11,5,FALSE)/G26 -> 0.0222679595 | O26: ='Identify Toxic Air Contaminants'!$E26*VLOOKUP($B26,'Calculate Dispersion Factors'!$B$7:$N$11,3,FALSE)/H26 -> 4.1475502e-06 | P26: ='Identify Toxic Air Contaminants'!$E26*VLOOKUP($B26,'Calculate Dispersion Factors'!$B$7:$N$11,4,FALSE)/I26 -> 6.413172336e-07 | Q26: ='Identify Toxic Air Contaminants'!$E26*VLOOKUP($B26,'Calculate Dispersion Factors'!$B$7:$N$11,5,FALSE)/J26 -> 9.716927782e-05 | R26: ='Identify Toxic Air Contaminants'!$F26*VLOOKUP($B26,'Calculate Dispersion Factors'!$B$7:$N$11,6,FALSE)/K26 -> 1.515766373e-05
B27: Shredder-1 | C27: Hexane | D27: 110-54-3 | E27: -- | F27: -- | G27: -- | H27: 700 | I27: 3100 | J27: 3100 | K27: -- | L27: -- | M27: -- | N27: -- | O27: ='Identify Toxic Air Contaminants'!$E27*VLOOKUP($B27,'Calculate Dispersion Factors'!$B$7:$N$11,3,FALSE)/H27 -> 5.024630709e-06 | P27: ='Identify Toxic Air Contaminants'!$E27*VLOOKUP($B27,'Calculate Dispersion Factors'!$B$7:$N$11,4,FALSE)/I27 -> 7.422344211e-07 | Q27: ='Identify Toxic Air Contaminants'!$E27*VLOOKUP($B27,'Calculate Dispersion Factors'!$B$7:$N$11,5,FALSE)/J27 -> 0.0001124597608 | R27: --
B28: Shredder-1 | C28: Bromomethane (Methyl bromide) | D28: 74-83-9 | E28: -- | F28: -- | G28: -- | H28: 5 | I28: 22 | J28: 22 | K28: 3900 | L28: -- | M28: -- | N28: -- | O28: ='Identify Toxic Air Contaminants'!$E28*VLOOKUP($B28,'Calculate Dispersion Factors'!$B$7:$N$11,3,FALSE)/H28 -> 2.666919376e-07 | P28: ='Identify Toxic Air Contaminants'!$E28*VLOOKUP($B28,'Calculate Dispersion Factors'!$B$7:$N$11,4,FALSE)/I28 -> 3.965133434e-08 | Q28: ='Identify Toxic Air Contaminants'!$E28*VLOOKUP($B28,'Calculate Dispersion Factors'!$B$7:$N$11,5,FALSE)/J28 -> 6.00777793e-06 | R28: ='Identify Toxic Air Contaminants'!$F28*VLOOKUP($B28,'Calculate Dispersion Factors'!$B$7:$N$11,6,FALSE)/K28 -> 1.057317046e-07
B29: Shredder-1 | C29: 1,1,1-Trichloroethane (Methyl chloroform) | D29: 71-55-6 | E29: -- | F29: -- | G29: -- | H29: 5000 | I29: 22000 | J29: 22000 | K29: 11000 | L29: -- | M29: -- | N29: -- | O29: ='Identify Toxic Air Contaminants'!$E29*VLOOKUP($B29,'Calculate Dispersion Factors'!$B$7:$N$11,3,FALSE)/H29 -> 4.11324e-08 | P29: ='Identify Toxic Air Contaminants'!$E29*VLOOKUP($B29,'Calculate Dispersion Factors'!$B$7:$N$11,4,FALSE)/I29 -> 6.1155e-09 | Q29: ='Identify Toxic Air Contaminants'!$E29*VLOOKUP($B29,'Calculate Dispersion Factors'!$B$7:$N$11,5,FALSE)/J29 -> 9.265909091e-07 | R29: ='Identify Toxic Air Contaminants'!$F29*VLOOKUP($B29,'Calculate Dispersion Factors'!$B$7:$N$11,6,FALSE)/K29 -> 5.781643636e-06
B30: Shredder-1 | C30: 2-Butanone (Methyl ethyl ketone) | D30: 78-93-3 | E30: -- | F30: -- | G30: -- | H30: 5000 | I30: 22000 | J30: 22000 | K30: 5000 | L30: -- | M30: -- | N30: -- | O30: ='Identify Toxic Air Contaminants'!$E30*VLOOKUP($B30,'Calculate Dispersion Factors'!$B$7:$N$11,3,FALSE)/H30 -> 1.09617846e-09 | P30: ='Identify Toxic Air Contaminants'!$E30*VLOOKUP($B30,'Calculate Dispersion Factors'!$B$7:$N$11,4,FALSE)/I30 -> 1.62978075e-10 | Q30: ='Identify Toxic Air Contaminants'!$E30*VLOOKUP($B30,'Calculate Dispersion Factors'!$B$7:$N$11,5,FALSE)/J30 -> 2.469364773e-08 | R30: ='Identify Toxic Air Contaminants'!$F30*VLOOKUP($B30,'Calculate Dispersion Factors'!$B$7:$N$11,6,FALSE)/K30 -> 3.389777664e-07
B31: Shredder-1 | C31: Methyl isobutyl ketone (MIBK, Hexone) | D31: 108-10-1 | E31: -- | F31: -- | G31: -- | H31: 3000 | I31: 13000 | J31: 13000 | K31: -- | L31: -- | M31: -- | N31: -- | O31: ='Identify Toxic Air Contaminants'!$E31*VLOOKUP($B31,'Calculate Dispersion Factors'!$B$7:$N$11,3,FALSE)/H31 -> 2.937476414e-08 | P31: ='Identify Toxic Air Contaminants'!$E31*VLOOKUP($B31,'Calculate Dispersion Factors'!$B$7:$N$11,4,FALSE)/I31 -> 4.434584014e-09 | Q31: ='Identify Toxic Air Contaminants'!$E31*VLOOKUP($B31,'Calculate Dispersion Factors'!$B$7:$N$11,5,FALSE)/J31 -> 6.719066688e-07 | R31: --
B32: Shredder-1 | C32: Dichloromethane (Methylene chloride) | D32: 75-09-2 | E32: 59 | F32: 620 | G32: 1200 | H32: 600 | I32: 2600 | J32: 2600 | K32: 2100 | L32: ='Identify Toxic Air Contaminants'!$E32*VLOOKUP($B32,'Calculate Dispersion Factors'!$B$7:$N$11,3,FALSE)/E32 -> 4.12714126e-06 | M32: ='Identify Toxic Air Contaminants'!$E32*VLOOKUP($B32,'Calculate Dispersion Factors'!$B$7:$N$11,4,FALSE)/F32 -> 2.569272996e-07 | N32: ='Identify Toxic Air Contaminants'!$E32*VLOOKUP($B32,'Calculate Dispersion Factors'!$B$7:$N$11,5,FALSE)/G32 -> 2.011299568e-05 | O32: ='Identify Toxic Air Contaminants'!$E32*VLOOKUP($B32,'Calculate Dispersion Factors'!$B$7:$N$11,3,FALSE)/H32 -> 4.058355572e-07 | P32: ='Identify Toxic Air Contaminants'!$E32*VLOOKUP($B32,'Calculate Dispersion Factors'!$B$7:$N$11,4,FALSE)/I32 -> 6.126727914e-08 | Q32: ='Identify Toxic Air Contaminants'!$E32*VLOOKUP($B32,'Calculate Dispersion Factors'!$B$7:$N$11,5,FALSE)/J32 -> 9.282921082e-06 | R32: ='Identify Toxic Air Contaminants'!$F32*VLOOKUP($B32,'Calculate Dispersion Factors'!$B$7:$N$11,6,FALSE)/K32 -> 3.585683894e-05
B33: Shredder-1 | C33: Naphthalene | D33: 91-20-3 | E33: 0.029 | F33: 0.76 | G33: 0.35 | H33: 3.7 | I33: 16 | J33: 16 | K33: 200 | L33: ='Identify Toxic Air Contaminants'!$E33*VLOOKUP($B33,'Calculate Dispersion Factors'!$B$7:$N$11,3,FALSE)/E33 -> 0.001219505862 | M33: ='Identify Toxic Air Contaminants'!$E33*VLOOKUP($B33,'Calculate Dispersion Factors'!$B$7:$N$11,4,FALSE)/F33 -> 3.044169947e-05 | N33: ='Identify Toxic Air Contaminants'!$E33*VLOOKUP($B33,'Calculate Dispersion Factors'!$B$7:$N$11,5,FALSE)/G33 -> 0.01001545091 | O33: ='Identify Toxic Air Contaminants'!$E33*VLOOKUP($B33,'Calculate Dispersion Factors'!$B$7:$N$11,3,FALSE)/H33 -> 9.558289186e-06 | P33: ='Identify Toxic Air Contaminants'!$E33*VLOOKUP($B33,'Calculate Dispersion Factors'!$B$7:$N$11,4,FALSE)/I33 -> 1.445980725e-06 | Q33: ='Identify Toxic Air Contaminants'!$E33*VLOOKUP($B33,'Calculate Dispersion Factors'!$B$7:$N$11,5,FALSE)/J33 -> 0.0002190879886 | R33: ='Identify Toxic Air Contaminants'!$F33*VLOOKUP($B33,'Calculate Dispersion Factors'!$B$7:$N$11,6,FALSE)/K33 -> 5.468167938e-05
B34: Shredder-1 | C34: Styrene | D34: 100-42-5 | E34: -- | F34: -- | G34: -- | H34: 1000 | I34: 4400 | J34: 4400 | K34: 21000 | L34: -- | M34: -- | N34: -- | O34: ='Identify Toxic Air Contaminants'!$E34*VLOOKUP($B34,'Calculate Dispersion Factors'!$B$7:$N$11,3,FALSE)/H34 -> 3.69117102e-07 | P34: ='Identify Toxic Air Contaminants'!$E34*VLOOKUP($B34,'Calculate Dispersion Factors'!$B$7:$N$11,4,FALSE)/I34 -> 5.487974535e-08 | Q34: ='Identify Toxic Air Contaminants'!$E34*VLOOKUP($B34,'Calculate Dispersion Factors'!$B$7:$N$11,5,FALSE)/J34 -> 8.315112932e-06 | R34: ='Identify Toxic Air Contaminants'!$F34*VLOOKUP($B34,'Calculate Dispersion Factors'!$B$7:$N$11,6,FALSE)/K34 -> 5.435441458e-06
B35: Shredder-1 | C35: Tetrachloroethene (Perchloroethylene) | D35: 127-18-4 | E35: 3.8 | F35: 100 | G35: 46 | H35: 41 | I35: 180 | J35: 180 | K35: 41 | L35: ='Identify Toxic Air Contaminants'!$E35*VLOOKUP($B35,'Calculate Dispersion Factors'!$B$7:$N$11,3,FALSE)/E35 -> 5.492511301e-06 | M35: ='Identify Toxic Air Contaminants'!$E35*VLOOKUP($B35,'Calculate Dispersion Factors'!$B$7:$N$11,4,FALSE)/F35 -> 1.365385078e-07 | N35: ='Identify Toxic Air Contaminants'!$E35*VLOOKUP($B35,'Calculate Dispersion Factors'!$B$7:$N$11,5,FALSE)/G35 -> 4.497315804e-05 | O35: ='Identify Toxic Air Contaminants'!$E35*VLOOKUP($B35,'Calculate Dispersion Factors'!$B$7:$N$11,3,FALSE)/H35 -> 5.09062023e-07 | P35: ='Identify Toxic Air Contaminants'!$E35*VLOOKUP($B35,'Calculate Dispersion Factors'!$B$7:$N$11,4,FALSE)/I35 -> 7.585472656e-08 | Q35: ='Identify Toxic Air Contaminants'!$E35*VLOOKUP($B35,'Calculate Dispersion Factors'!$B$7:$N$11,5,FALSE)/J35 -> 1.149314039e-05 | R35: ='Identify Toxic Air Contaminants'!$F35*VLOOKUP($B35,'Calculate Dispersion Factors'!$B$7:$N$11,6,FALSE)/K35 -> 0.0001574202685
B36: Shredder-1 | C36: Toluene | D36: 108-88-3 | E36: -- | F36: -- | G36: -- | H36: 5000 | I36: 22000 | J36: 22000 | K36: 7500 | L36: -- | M36: -- | N36: -- | O36: ='Identify Toxic Air Contaminants'!$E36*VLOOKUP($B36,'Calculate Dispersion Factors'!$B$7:$N$11,3,FALSE)/H36 -> 1.101553655e-06 | P36: ='Identify Toxic Air Contaminants'!$E36*VLOOKUP($B36,'Calculate Dispersion Factors'!$B$7:$N$11,4,FALSE)/I36 -> 1.637772505e-07 | Q36: ='Identify Toxic Air Contaminants'!$E36*VLOOKUP($B36,'Calculate Dispersion Factors'!$B$7:$N$11,5,FALSE)/J36 -> 2.481473493e-05 | R36: ='Identify Toxic Air Contaminants'!$F36*VLOOKUP($B36,'Calculate Dispersion Factors'!$B$7:$N$11,6,FALSE)/K36 -> 0.0002270933133
B37: Shredder-1 | C37: Trichloroethene (TCE, Trichloroethylene) | D37: 79-01-6 | E37: 0.2 | F37: 3.5 | G37: 2.9 | H37: 2.1 | I37: 9.2 | J37: 9.2 | K37: 2.1 | L37: ='Identify Toxic Air Contaminants'!$E37*VLOOKUP($B37,'Calculate Dispersion Factors'!$B$7:$N$11,3,FALSE)/E37 -> 0.000342941385 | M37: ='Identify Toxic Air Contaminants'!$E37*VLOOKUP($B37,'Calculate Dispersion Factors'!$B$7:$N$11,4,FALSE)/F37 -> 1.281983529e-05 | N37: ='Identify Toxic Air Contaminants'!$E37*VLOOKUP($B37,'Calculate Dispersion Factors'!$B$7:$N$11,5,FALSE)/G37 -> 0.002344275 | O37: ='Identify Toxic Air Contaminants'!$E37*VLOOKUP($B37,'Calculate Dispersion Factors'!$B$7:$N$11,3,FALSE)/H37 -> 3.266108429e-05 | P37: ='Identify Toxic Air Contaminants'!$E37*VLOOKUP($B37,'Calculate Dispersion Factors'!$B$7:$N$11,4,FALSE)/I37 -> 4.87711125e-06 | Q37: ='Identify Toxic Air Contaminants'!$E37*VLOOKUP($B37,'Calculate Dispersion Factors'!$B$7:$N$11,5,FALSE)/J37 -> 0.00073895625 | R37: ='Identify Toxic Air Contaminants'!$F37*VLOOKUP($B37,'Calculate Dispersion Factors'!$B$7:$N$11,6,FALSE)/K37 -> 0.0100999808
B38: Shredder-1 | C38: Vinyl Chloride | D38: 75-01-4 | E38: 0.11 | F38: 0.22 | G38: 2.7 | H38: 100 | I38: 440 | J38: 440 | K38: 1300 | L38: ='Identify Toxic Air Contaminants'!$E38*VLOOKUP($B38,'Calculate Dispersion Factors'!$B$7:$N$11,3,FALSE)/E38 -> 3.215060908e-05 | M38: ='Identify Toxic Air Contaminants'!$E38*VLOOKUP($B38,'Calculate Dispersion Factors'!$B$7:$N$11,4,FALSE)/F38 -> 1.051622345e-05 | N38: ='Identify Toxic Air Contaminants'!$E38*VLOOKUP($B38,'Calculate Dispersion Factors'!$B$7:$N$11,5,FALSE)/G38 -> 0.0001298299192 | O38: ='Identify Toxic Air Contaminants'!$E38*VLOOKUP($B38,'Calculate Dispersion Factors'!$B$7:$N$11,3,FALSE)/H38 -> 3.536566999e-08 | P38: ='Identify Toxic Air Contaminants'!$E38*VLOOKUP($B38,'Calculate Dispersion Factors'!$B$7:$N$11,4,FALSE)/I38 -> 5.258111727e-09 | Q38: ='Identify Toxic Air Contaminants'!$E38*VLOOKUP($B38,'Calculate Dispersion Factors'!$B$7:$N$11,5,FALSE)/J38 -> 7.96683595e-07 | R38: ='Identify Toxic Air Contaminants'!$F38*VLOOKUP($B38,'Calculate Dispersion Factors'!$B$7:$N$11,6,FALSE)/K38 -> 8.412566059e-07
B39: Shredder-1 | C39: Vinylidene chloride | D39: 75-35-4 | E39: -- | F39: -- | G39: -- | H39: 200 | I39: 880 | J39: 880 | K39: 200 | L39: -- | M39: -- | N39: -- | O39: ='Identify Toxic Air Contaminants'!$E39*VLOOKUP($B39,'Calculate Dispersion Factors'!$B$7:$N$11,3,FALSE)/H39 -> 1.372110693e-07 | P39: ='Identify Toxic Air Contaminants'!$E39*VLOOKUP($B39,'Calculate Dispersion Factors'!$B$7:$N$11,4,FALSE)/I39 -> 2.040032419e-08 | Q39: ='Identify Toxic Air Contaminants'!$E39*VLOOKUP($B39,'Calculate Dispersion Factors'!$B$7:$N$11,5,FALSE)/J39 -> 3.09095821e-06 | R39: ='Identify Toxic Air Contaminants'!$F39*VLOOKUP($B39,'Calculate Dispersion Factors'!$B$7:$N$11,6,FALSE)/K39 -> 4.243059275e-05
B40: Shredder-1 | C40: Xylene (mixture), including m-xylene, o-xylene, p-xylene | D40: 1330-20-7 | E40: -- | F40: -- | G40: -- | H40: 220 | I40: 970 | J40: 970 | K40: 8700 | L40: -- | M40: -- | N40: -- | O40: ='Identify Toxic Air Contaminants'!$E40*VLOOKUP($B40,'Calculate Dispersion Factors'!$B$7:$N$11,3,FALSE)/H40 -> 2.286734032e-05 | P40: ='Identify Toxic Air Contaminants'!$E40*VLOOKUP($B40,'Calculate Dispersion Factors'!$B$7:$N$11,4,FALSE)/I40 -> 3.392869831e-06 | Q40: ='Identify Toxic Air Contaminants'!$E40*VLOOKUP($B40,'Calculate Dispersion Factors'!$B$7:$N$11,5,FALSE)/J40 -> 0.0005140711865 | R40: ='Identify Toxic Air Contaminants'!$F40*VLOOKUP($B40,'Calculate Dispersion Factors'!$B$7:$N$11,6,FALSE)/K40 -> 0.0001788170941
B41: Shredder-1 | C41: Polychlorinated biphenyls (PCBs) | D41: 1336-36-3 | E41: 0.00053 | F41: 0.02 | G41: 0.0092 | H41: -- | I41: -- | J41: -- | K41: -- | L41: ='Identify Toxic Air Contaminants'!$E41*VLOOKUP($B41,'Calculate Dispersion Factors'!$B$7:$N$11,3,FALSE)/E41 -> 0.2929713396 | M41: ='Identify Toxic Air Contaminants'!$E41*VLOOKUP($B41,'Calculate Dispersion Factors'!$B$7:$N$11,4,FALSE)/F41 -> 0.00507892275 | N41: ='Identify Toxic Air Contaminants'!$E41*VLOOKUP($B41,'Calculate Dispersion Factors'!$B$7:$N$11,5,FALSE)/G41 -> 1.672899457 | O41: -- | P41: -- | Q41: -- | R41: --
B42: Shredder-1 | C42: Polychlorinated biphenyls (PCBs) TEQ | D42: 645 | E42: 1e-09 | F42: 9e-08 | G42: 4.2e-08 | H42: 1.3e-07 | I42: 2.6e-05 | J42: 2.6e-05 | K42: -- | L42: ='Identify Toxic Air Contaminants'!$E42*VLOOKUP($B42,'Calculate Dispersion Factors'!$B$7:$N$11,3,FALSE)/E42 -> 0.26838891 | M42: ='Identify Toxic Air Contaminants'!$E42*VLOOKUP($B42,'Calculate Dispersion Factors'!$B$7:$N$11,4,FALSE)/F42 -> 0.0019508445 | N42: ='Identify Toxic Air Contaminants'!$E42*VLOOKUP($B42,'Calculate Dispersion Factors'!$B$7:$N$11,5,FALSE)/G42 -> 0.6333910714 | O42: ='Identify Toxic Air Contaminants'!$E42*VLOOKUP($B42,'Calculate Dispersion Factors'!$B$7:$N$11,3,FALSE)/H42 -> 0.002064530077 | P42: ='Identify Toxic Air Contaminants'!$E42*VLOOKUP($B42,'Calculate Dispersion Factors'!$B$7:$N$11,4,FALSE)/I42 -> 6.752923269e-06 | Q42: ='Identify Toxic Air Contaminants'!$E42*VLOOKUP($B42,'Calculate Dispersion Factors'!$B$7:$N$11,5,FALSE)/J42 -> 0.001023170192 | R42: --
B43: Shredder-1 | C43: Polychlorinated dibenzo-p-dioxins (PCDDs) & dibenzofurans (PCDFs) TEQ | D43: 646 | E43: 1e-09 | F43: 9e-08 | G43: 4.2e-08 | H43: 1.3e-07 | I43: 2.6e-05 | J43: 2.6e-05 | K43: -- | L43: ='Identify Toxic Air Contaminants'!$E43*VLOOKUP($B43,'Calculate Dispersion Factors'!$B$7:$N$11,3,FALSE)/E43 -> 0.017892594 | M43: ='Identify Toxic Air Contaminants'!$E43*VLOOKUP($B43,'Calculate Dispersion Factors'!$B$7:$N$11,4,FALSE)/F43 -> 0.0001300563 | N43: ='Identify Toxic Air Contaminants'!$E43*VLOOKUP($B43,'Calculate Dispersion Factors'!$B$7:$N$11,5,FALSE)/G43 -> 0.04222607143 | O43: ='Identify Toxic Air Contaminants'!$E43*VLOOKUP($B43,'Calculate Dispersion Factors'!$B$7:$N$11,3,FALSE)/H43 -> 0.0001376353385 | P43: ='Identify Toxic Air Contaminants'!$E43*VLOOKUP($B43,'Calculate Dispersion Factors'!$B$7:$N$11,4,FALSE)/I43 -> 4.501948846e-07 | Q43: ='Identify Toxic Air Contaminants'!$E43*VLOOKUP($B43,'Calculate Dispersion Factors'!$B$7:$N$11,5,FALSE)/J43 -> 6.821134615e-05 | R43: --
B44: Shredder-1 | C44: Polycyclic aromatic hydrocarbons (PAHs) | D44: 401 | E44: 4.3e-05 | F44: 0.0016 | G44: 0.003 | H44: -- | I44: -- | J44: -- | K44: -- | L44: ='Identify Toxic Air Contaminants'!$E44*VLOOKUP($B44,'Calculate Dispersion Factors'!$B$7:$N$11,3,FALSE)/E44 -> 0.2148689616 | M44: ='Identify Toxic Air Contaminants'!$E44*VLOOKUP($B44,'Calculate Dispersion Factors'!$B$7:$N$11,4,FALSE)/F44 -> 0.003777659016 | N44: ='Identify Toxic Air Contaminants'!$E44*VLOOKUP($B44,'Calculate Dispersion Factors'!$B$7:$N$11,5,FALSE)/G44 -> 0.305265375 | O44: -- | P44: -- | Q44: -- | R44: --
B45: Diesel Engine-1 | C45: Benzene | D45: 71-43-2 | E45: 0.13 | F45: 3.3 | G45: 1.5 | H45: 3 | I45: 13 | J45: 13 | K45: 29 | L45: ='Identify Toxic Air Contaminants'!$E45*VLOOKUP($B45,'Calculate Dispersion Factors'!$B$7:$N$11,3,FALSE)/E45 -> 0.003855632699 | M45: ='Identify Toxic Air Contaminants'!$E45*VLOOKUP($B45,'Calculate Dispersion Factors'!$B$7:$N$11,4,FALSE)/F45 -> 9.922676727e-05 | N45: ='Identify Toxic Air Contaminants'!$E45*VLOOKUP($B45,'Calculate Dispersion Factors'!$B$7:$N$11,5,FALSE)/G45 -> 0.0297066528 | O45: ='Identify Toxic Air Contaminants'!$E45*VLOOKUP($B45,'Calculate Dispersion Factors'!$B$7:$N$11,3,FALSE)/H45 -> 0.000167077417 | P45: ='Identify Toxic Air Contaminants'!$E45*VLOOKUP($B45,'Calculate Dispersion Factors'!$B$7:$N$11,4,FALSE)/I45 -> 2.518833323e-05 | Q45: ='Identify Toxic Air Contaminants'!$E45*VLOOKUP($B45,'Calculate Dispersion Factors'!$B$7:$N$11,5,FALSE)/J45 -> 0.003427690708 | R45: ='Identify Toxic Air Contaminants'!$F45*VLOOKUP($B45,'Calculate Dispersion Factors'!$B$7:$N$11,6,FALSE)/K45 -> 0.01130357185
B46: Diesel Engine-1 | C46: 1,3-Butadiene | D46: 106-99-0 | E46: 0.033 | F46: 0.86 | G46: 0.4 | H46: 2 | I46: 8.8 | J46: 8.8 | K46: 660 | L46: ='Identify Toxic Air Contaminants'!$E46*VLOOKUP($B46,'Calculate Dispersion Factors'!$B$7:$N$11,3,FALSE)/E46 -> 0.01772440855 | M46: ='Identify Toxic Air Contaminants'!$E46*VLOOKUP($B46,'Calculate Dispersion Factors'!$B$7:$N$11,4,FALSE)/F46 -> 0.0004443150419 | N46: ='Identify Toxic Air Contaminants'!$E46*VLOOKUP($B46,'Calculate Dispersion Factors'!$B$7:$N$11,5,FALSE)/G46 -> 0.129996504 | O46: ='Identify Toxic Air Contaminants'!$E46*VLOOKUP($B46,'Calculate Dispersion Factors'!$B$7:$N$11,3,FALSE)/H46 -> 0.0002924527411 | P46: ='Identify Toxic Air Contaminants'!$E46*VLOOKUP($B46,'Calculate Dispersion Factors'!$B$7:$N$11,4,FALSE)/I46 -> 4.342169727e-05 | Q46: ='Identify Toxic Air Contaminants'!$E46*VLOOKUP($B46,'Calculate Dispersion Factors'!$B$7:$N$11,5,FALSE)/J46 -> 0.005908932 | R46: ='Identify Toxic Air Contaminants'!$F46*VLOOKUP($B46,'Calculate Dispersion Factors'!$B$7:$N$11,6,FALSE)/K46 -> 0.0005795840784
B47: Diesel Engine-1 | C47: Cadmium and compounds | D47: 7440-43-9 | E47: 0.00056 | F47: 0.014 | G47: 0.0067 | H47: 0.005 | I47: 0.037 | J47: 0.037 | K47: 0.03 | L47: ='Identify Toxic Air Contaminants'!$E47*VLOOKUP($B47,'Calculate Dispersion Factors'!$B$7:$N$11,3,FALSE)/E47 -> 0.007206582857 | M47: ='Identify Toxic Air Contaminants'!$E47*VLOOKUP($B47,'Calculate Dispersion Factors'!$B$7:$N$11,4,FALSE)/F47 -> 0.0001883185714 | N47: ='Identify Toxic Air Contaminants'!$E47*VLOOKUP($B47,'Calculate Dispersion Factors'!$B$7:$N$11,5,FALSE)/G47 -> 0.05354865672 | O47: ='Identify Toxic Air Contaminants'!$E47*VLOOKUP($B47,'Calculate Dispersion Factors'!$B$7:$N$11,3,FALSE)/H47 -> 0.00080713728 | P47: ='Identify Toxic Air Contaminants'!$E47*VLOOKUP($B47,'Calculate Dispersion Factors'!$B$7:$N$11,4,FALSE)/I47 -> 7.125567568e-05 | Q47: ='Identify Toxic Air Contaminants'!$E47*VLOOKUP($B47,'Calculate Dispersion Factors'!$B$7:$N$11,5,FALSE)/J47 -> 0.009696648649 | R47: ='Identify Toxic Air Contaminants'!$F47*VLOOKUP($B47,'Calculate Dispersion Factors'!$B$7:$N$11,6,FALSE)/K47 -> 0.087977344
B48: Diesel Engine-1 | C48: Formaldehyde | D48: 50-00-0 | E48: 0.17 | F48: 4.3 | G48: 2 | H48: 9 | I48: 40 | J48: 40 | K48: 49 | L48: ='Identify Toxic Air Contaminants'!$E48*VLOOKUP($B48,'Calculate Dispersion Factors'!$B$7:$N$11,3,FALSE)/E48 -> 0.02731764037 | M48: ='Identify Toxic Air Contaminants'!$E48*VLOOKUP($B48,'Calculate Dispersion Factors'!$B$7:$N$11,4,FALSE)/F48 -> 0.0007055493963 | N48: ='Identify Toxic Air Contaminants'!$E48*VLOOKUP($B48,'Calculate Dispersion Factors'!$B$7:$N$11,5,FALSE)/G48 -> 0.2064277512 | O48: ='Identify Toxic Air Contaminants'!$E48*VLOOKUP($B48,'Calculate Dispersion Factors'!$B$7:$N$11,3,FALSE)/H48 -> 0.0005159998737 | P48: ='Identify Toxic Air Contaminants'!$E48*VLOOKUP($B48,'Calculate Dispersion Factors'!$B$7:$N$11,4,FALSE)/I48 -> 7.58465601e-05 | Q48: ='Identify Toxic Air Contaminants'!$E48*VLOOKUP($B48,'Calculate Dispersion Factors'!$B$7:$N$11,5,FALSE)/J48 -> 0.01032138756 | R48: ='Identify Toxic Air Contaminants'!$F48*VLOOKUP($B48,'Calculate Dispersion Factors'!$B$7:$N$11,6,FALSE)/K48 -> 0.06198273203
B49: Diesel Engine-1 | C49: Chromium VI, chromate, and dichromate particulate | D49: 18540-29-9 | E49: 3.1e-05 | F49: 0.00052 | G49: 0.001 | H49: 0.083 | I49: 0.88 | J49: 0.88 | K49: 0.3 | L49: ='Identify Toxic Air Contaminants'!$E49*VLOOKUP($B49,'Calculate Dispersion Factors'!$B$7:$N$11,3,FALSE)/E49 -> 0.008678895484 | M49: ='Identify Toxic Air Contaminants'!$E49*VLOOKUP($B49,'Calculate Dispersion Factors'!$B$7:$N$11,4,FALSE)/F49 -> 0.0003380076923 | N49: ='Identify Toxic Air Contaminants'!$E49*VLOOKUP($B49,'Calculate Dispersion Factors'!$B$7:$N$11,5,FALSE)/G49 -> 0.0239184 | O49: ='Identify Toxic Air Contaminants'!$E49*VLOOKUP($B49,'Calculate Dispersion Factors'!$B$7:$N$11,3,FALSE)/H49 -> 3.241515181e-06 | P49: ='Identify Toxic Air Contaminants'!$E49*VLOOKUP($B49,'Calculate Dispersion Factors'!$B$7:$N$11,4,FALSE)/I49 -> 1.997318182e-07 | Q49: ='Identify Toxic Air Contaminants'!$E49*VLOOKUP($B49,'Calculate Dispersion Factors'!$B$7:$N$11,5,FALSE)/J49 -> 2.718e-05 | R49: ='Identify Toxic Air Contaminants'!$F49*VLOOKUP($B49,'Calculate Dispersion Factors'!$B$7:$N$11,6,FALSE)/K49 -> 0.0005865156267
B50: Diesel Engine-1 | C50: Arsenic and compounds | D50: 7440-38-2 | E50: 2.4e-05 | F50: 0.0013 | G50: 0.00062 | H50: 0.00017 | I50: 0.0024 | J50: 0.0024 | K50: 0.2 | L50: ='Identify Toxic Air Contaminants'!$E50*VLOOKUP($B50,'Calculate Dispersion Factors'!$B$7:$N$11,3,FALSE)/E50 -> 0.17936384 | M50: ='Identify Toxic Air Contaminants'!$E50*VLOOKUP($B50,'Calculate Dispersion Factors'!$B$7:$N$11,4,FALSE)/F50 -> 0.002163249231 | N50: ='Identify Toxic Air Contaminants'!$E50*VLOOKUP($B50,'Calculate Dispersion Factors'!$B$7:$N$11,5,FALSE)/G50 -> 0.6172490323 | O50: ='Identify Toxic Air Contaminants'!$E50*VLOOKUP($B50,'Calculate Dispersion Factors'!$B$7:$N$11,3,FALSE)/H50 -> 0.02532195388 | P50: ='Identify Toxic Air Contaminants'!$E50*VLOOKUP($B50,'Calculate Dispersion Factors'!$B$7:$N$11,4,FALSE)/I50 -> 0.00117176 | Q50: ='Identify Toxic Air Contaminants'!$E50*VLOOKUP($B50,'Calculate Dispersion Factors'!$B$7:$N$11,5,FALSE)/J50 -> 0.159456 | R50: ='Identify Toxic Air Contaminants'!$F50*VLOOKUP($B50,'Calculate Dispersion Factors'!$B$7:$N$11,6,FALSE)/K50 -> 0.01407637504
B51: Diesel Engine-1 | C51: Lead and compounds | D51: 7439-92-1 | E51: -- | F51: -- | G51: -- | H51: 0.15 | I51: 0.66 | J51: 0.66 | K51: 0.15 | L51: -- | M51: -- | N51: -- | O51: ='Identify Toxic Air Contaminants'!$E51*VLOOKUP($B51,'Calculate Dispersion Factors'!$B$7:$N$11,3,FALSE)/H51 -> 0.0001488719872 | P51: ='Identify Toxic Air Contaminants'!$E51*VLOOKUP($B51,'Calculate Dispersion Factors'!$B$7:$N$11,4,FALSE)/I51 -> 2.210365455e-05 | Q51: ='Identify Toxic Air Contaminants'!$E51*VLOOKUP($B51,'Calculate Dispersion Factors'!$B$7:$N$11,5,FALSE)/J51 -> 0.00300792 | R51: ='Identify Toxic Air Contaminants'!$F51*VLOOKUP($B51,'Calculate Dispersion Factors'!$B$7:$N$11,6,FALSE)/K51 -> 0.09736159403
B52: Diesel Engine-1 | C52: Nickel compounds, insoluble | D52: 365 | E52: 0.0038 | F52: 0.1 | G52: 0.046 | H52: 0.014 | I52: 0.062 | J52: 0.062 | K52: 0.2 | L52: ='Identify Toxic Air Contaminants'!$E52*VLOOKUP($B52,'Calculate Dispersion Factors'!$B$7:$N$11,3,FALSE)/E52 -> 0.002761259116 | M52: ='Identify Toxic Air Contaminants'!$E52*VLOOKUP($B52,'Calculate Dispersion Factors'!$B$7:$N$11,4,FALSE)/F52 -> 6.854796e-05 | N52: ='Identify Toxic Air Contaminants'!$E52*VLOOKUP($B52,'Calculate Dispersion Factors'!$B$7:$N$11,5,FALSE)/G52 -> 0.02027864348 | O52: ='Identify Toxic Air Contaminants'!$E52*VLOOKUP($B52,'Calculate Dispersion Factors'!$B$7:$N$11,3,FALSE)/H52 -> 0.0007494846171 | P52: ='Identify Toxic Air Contaminants'!$E52*VLOOKUP($B52,'Calculate Dispersion Factors'!$B$7:$N$11,4,FALSE)/I52 -> 0.0001105612258 | Q52: ='Identify Toxic Air Contaminants'!$E52*VLOOKUP($B52,'Calculate Dispersion Factors'!$B$7:$N$11,5,FALSE)/J52 -> 0.01504544516 | R52: ='Identify Toxic Air Contaminants'!$F52*VLOOKUP($B52,'Calculate Dispersion Factors'!$B$7:$N$11,6,FALSE)/K52 -> 0.03431116416
B53: Diesel Engine-1 | C53: Naphthalene | D53: 91-20-3 | E53: 0.029 | F53: 0.76 | G53: 0.35 | H53: 3.7 | I53: 16 | J53: 16 | K53: 200 | L53: ='Identify Toxic Air Contaminants'!$E53*VLOOKUP($B53,'Calculate Dispersion Factors'!$B$7:$N$11,3,FALSE)/E53 -> 0.00182765568 | M53: ='Identify Toxic Air Contaminants'!$E53*VLOOKUP($B53,'Calculate Dispersion Factors'!$B$7:$N$11,4,FALSE)/F53 -> 4.555987895e-05 | N53: ='Identify Toxic Air Contaminants'!$E53*VLOOKUP($B53,'Calculate Dispersion Factors'!$B$7:$N$11,5,FALSE)/G53 -> 0.01346264229 | O53: ='Identify Toxic Air Contaminants'!$E53*VLOOKUP($B53,'Calculate Dispersion Factors'!$B$7:$N$11,3,FALSE)/H53 -> 1.432486884e-05 | P53: ='Identify Toxic Air Contaminants'!$E53*VLOOKUP($B53,'Calculate Dispersion Factors'!$B$7:$N$11,4,FALSE)/I53 -> 2.16409425e-06 | Q53: ='Identify Toxic Air Contaminants'!$E53*VLOOKUP($B53,'Calculate Dispersion Factors'!$B$7:$N$11,5,FALSE)/J53 -> 0.0002944953 | R53: ='Identify Toxic Air Contaminants'!$F53*VLOOKUP($B53,'Calculate Dispersion Factors'!$B$7:$N$11,6,FALSE)/K53 -> 0.0001733153677
B54: Diesel Engine-1 | C54: Polycyclic aromatic hydrocarbons (PAHs) | D54: 401 | E54: 4.3e-05 | F54: 0.0016 | G54: 0.003 | H54: -- | I54: -- | J54: -- | K54: -- | L54: ='Identify Toxic Air Contaminants'!$E54*VLOOKUP($B54,'Calculate Dispersion Factors'!$B$7:$N$11,3,FALSE)/E54 -> 2.264989887 | M54: ='Identify Toxic Air Contaminants'!$E54*VLOOKUP($B54,'Calculate Dispersion Factors'!$B$7:$N$11,4,FALSE)/F54 -> 0.039766605 | N54: ='Identify Toxic Air Contaminants'!$E54*VLOOKUP($B54,'Calculate Dispersion Factors'!$B$7:$N$11,5,FALSE)/G54 -> 2.8861536 | O54: -- | P54: -- | Q54: -- | R54: --
B55: Diesel Engine-1 | C55: Benzo[a]pyrene* | D55: 50-32-8 | E55: 4.3e-05 | F55: 0.0016 | G55: 0.003 | H55: 0.002 | I55: 0.0088 | J55: 0.0088 | K55: 0.002 | L55: ='Identify Toxic Air Contaminants'!$E55*VLOOKUP($B55,'Calculate Dispersion Factors'!$B$7:$N$11,3,FALSE)/E55 -> 0.00222119174 | M55: ='Identify Toxic Air Contaminants'!$E55*VLOOKUP($B55,'Calculate Dispersion Factors'!$B$7:$N$11,4,FALSE)/F55 -> 3.89976375e-05 | N55: ='Identify Toxic Air Contaminants'!$E55*VLOOKUP($B55,'Calculate Dispersion Factors'!$B$7:$N$11,5,FALSE)/G55 -> 0.002830344 | O55: ='Identify Toxic Air Contaminants'!$E55*VLOOKUP($B55,'Calculate Dispersion Factors'!$B$7:$N$11,3,FALSE)/H55 -> 4.77556224e-05 | P55: ='Identify Toxic Air Contaminants'!$E55*VLOOKUP($B55,'Calculate Dispersion Factors'!$B$7:$N$11,4,FALSE)/I55 -> 7.090479545e-06 | Q55: ='Identify Toxic Air Contaminants'!$E55*VLOOKUP($B55,'Calculate Dispersion Factors'!$B$7:$N$11,5,FALSE)/J55 -> 0.00096489 | R55: ='Identify Toxic Air Contaminants'!$F55*VLOOKUP($B55,'Calculate Dispersion Factors'!$B$7:$N$11,6,FALSE)/K55 -> 0.03123195712
B56: Diesel Engine-1 | C56: Acetaldehyde | D56: 75-07-0 | E56: 0.45 | F56: 12 | G56: 5.5 | H56: 140 | I56: 620 | J56: 620 | K56: 470 | L56: ='Identify Toxic Air Contaminants'!$E56*VLOOKUP($B56,'Calculate Dispersion Factors'!$B$7:$N$11,3,FALSE)/E56 -> 0.004683189862 | M56: ='Identify Toxic Air Contaminants'!$E56*VLOOKUP($B56,'Calculate Dispersion Factors'!$B$7:$N$11,4,FALSE)/F56 -> 0.000114729951 | N56: ='Identify Toxic Air Contaminants'!$E56*VLOOKUP($B56,'Calculate Dispersion Factors'!$B$7:$N$11,5,FALSE)/G56 -> 0.0340641504 | O56: ='Identify Toxic Air Contaminants'!$E56*VLOOKUP($B56,'Calculate Dispersion Factors'!$B$7:$N$11,3,FALSE)/H56 -> 1.505311027e-05 | P56: ='Identify Toxic Air Contaminants'!$E56*VLOOKUP($B56,'Calculate Dispersion Factors'!$B$7:$N$11,4,FALSE)/I56 -> 2.220579697e-06 | Q56: ='Identify Toxic Air Contaminants'!$E56*VLOOKUP($B56,'Calculate Dispersion Factors'!$B$7:$N$11,5,FALSE)/J56 -> 0.0003021819794 | R56: ='Identify Toxic Air Contaminants'!$F56*VLOOKUP($B56,'Calculate Dispersion Factors'!$B$7:$N$11,6,FALSE)/K56 -> 0.002932453343
B57: Diesel Engine-1 | C57: Acrolein | D57: 107-02-8 | E57: -- | F57: -- | G57: -- | H57: 0.35 | I57: 1.5 | J57: 1.5 | K57: 6.9 | L57: -- | M57: -- | N57: -- | O57: ='Identify Toxic Air Contaminants'!$E57*VLOOKUP($B57,'Calculate Dispersion Factors'!$B$7:$N$11,3,FALSE)/H57 -> 0.0002605900361 | P57: ='Identify Toxic Air Contaminants'!$E57*VLOOKUP($B57,'Calculate Dispersion Factors'!$B$7:$N$11,4,FALSE)/I57 -> 3.9722664e-05 | Q57: ='Identify Toxic Air Contaminants'!$E57*VLOOKUP($B57,'Calculate Dispersion Factors'!$B$7:$N$11,5,FALSE)/J57 -> 0.0054055584 | R57: ='Identify Toxic Air Contaminants'!$F57*VLOOKUP($B57,'Calculate Dispersion Factors'!$B$7:$N$11,6,FALSE)/K57 -> 0.008644730323
B58: Diesel Engine-1 | C58: Ammonia** | D58: 7664-41-7 | E58: -- | F58: -- | G58: -- | H58: 500 | I58: 2200 | J58: 2200 | K58: 1200 | L58: -- | M58: -- | N58: -- | O58: ='Identify Toxic Air Contaminants'!$E58*VLOOKUP($B58,'Calculate Dispersion Factors'!$B$7:$N$11,3,FALSE)/H58 -> 4.30473216e-06 | P58: ='Identify Toxic Air Contaminants'!$E58*VLOOKUP($B58,'Calculate Dispersion Factors'!$B$7:$N$11,4,FALSE)/I58 -> 6.391418182e-07 | Q58: ='Identify Toxic Air Contaminants'!$E58*VLOOKUP($B58,'Calculate Dispersion Factors'!$B$7:$N$11,5,FALSE)/J58 -> 8.6976e-05 | R58: ='Identify Toxic Air Contaminants'!$F58*VLOOKUP($B58,'Calculate Dispersion Factors'!$B$7:$N$11,6,FALSE)/K58 -> 0.001173031253
B59: Diesel Engine-1 | C59: Copper and compounds | D59: 7440-50-8 | E59: -- | F59: -- | G59: -- | H59: -- | I59: -- | J59: -- | K59: 100 | L59: -- | M59: -- | N59: -- | O59: -- | P59: -- | Q59: -- | R59: ='Identify Toxic Air Contaminants'!$F59*VLOOKUP($B59,'Calculate Dispersion Factors'!$B$7:$N$11,6,FALSE)/K59 -> 7.214142208e-05
B60: Diesel Engine-1 | C60: Ethyl benzene | D60: 100-41-4 | E60: 0.4 | F60: 10 | G60: 4.8 | H60: 260 | I60: 1100 | J60: 1100 | K60: 22000 | L60: ='Identify Toxic Air Contaminants'!$E60*VLOOKUP($B60,'Calculate Dispersion Factors'!$B$7:$N$11,3,FALSE)/E60 -> 7.33149696e-05 | M60: ='Identify Toxic Air Contaminants'!$E60*VLOOKUP($B60,'Calculate Dispersion Factors'!$B$7:$N$11,4,FALSE)/F60 -> 1.9158276e-06 | N60: ='Identify Toxic Air Contaminants'!$E60*VLOOKUP($B60,'Calculate Dispersion Factors'!$B$7:$N$11,5,FALSE)/G60 -> 0.000543147 | O60: ='Identify Toxic Air Contaminants'!$E60*VLOOKUP($B60,'Calculate Dispersion Factors'!$B$7:$N$11,3,FALSE)/H60 -> 1.127922609e-07 | P60: ='Identify Toxic Air Contaminants'!$E60*VLOOKUP($B60,'Calculate Dispersion Factors'!$B$7:$N$11,4,FALSE)/I60 -> 1.741661455e-08 | Q60: ='Identify Toxic Air Contaminants'!$E60*VLOOKUP($B60,'Calculate Dispersion Factors'!$B$7:$N$11,5,FALSE)/J60 -> 2.370096e-06 | R60: ='Identify Toxic Air Contaminants'!$F60*VLOOKUP($B60,'Calculate Dispersion Factors'!$B$7:$N$11,6,FALSE)/K60 -> 8.717754996e-07
B61: Diesel Engine-1 | C61: Hexane | D61: 110-54-3 | E61: -- | F61: -- | G61: -- | H61: 700 | I61: 3100 | J61: 3100 | K61: -- | L61: -- | M61: -- | N61: -- | O61: ='Identify Toxic Air Contaminants'!$E61*VLOOKUP($B61,'Calculate Dispersion Factors'!$B$7:$N$11,3,FALSE)/H61 -> 1.033904421e-07 | P61: ='Identify Toxic Air Contaminants'!$E61*VLOOKUP($B61,'Calculate Dispersion Factors'!$B$7:$N$11,4,FALSE)/I61 -> 1.525177935e-08 | Q61: ='Identify Toxic Air Contaminants'!$E61*VLOOKUP($B61,'Calculate Dispersion Factors'!$B$7:$N$11,5,FALSE)/J61 -> 2.075499871e-06 | R61: --
B62: Diesel Engine-1 | C62: Hydrochloric acid | D62: 7647-01-0 | E62: -- | F62: -- | G62: -- | H62: 20 | I62: 88 | J62: 88 | K62: 2100 | L62: -- | M62: -- | N62: -- | O62: ='Identify Toxic Air Contaminants'!$E62*VLOOKUP($B62,'Calculate Dispersion Factors'!$B$7:$N$11,3,FALSE)/H62 -> 2.506161254e-05 | P62: ='Identify Toxic Air Contaminants'!$E62*VLOOKUP($B62,'Calculate Dispersion Factors'!$B$7:$N$11,4,FALSE)/I62 -> 3.721003773e-06 | Q62: ='Identify Toxic Air Contaminants'!$E62*VLOOKUP($B62,'Calculate Dispersion Factors'!$B$7:$N$11,5,FALSE)/J62 -> 0.0005063634 | R62: ='Identify Toxic Air Contaminants'!$F62*VLOOKUP($B62,'Calculate Dispersion Factors'!$B$7:$N$11,6,FALSE)/K62 -> 0.0001560969446
B63: Diesel Engine-1 | C63: Manganese and compounds | D63: 7439-96-5 | E63: -- | F63: -- | G63: -- | H63: 0.09 | I63: 0.4 | J63: 0.4 | K63: 0.3 | L63: -- | M63: -- | N63: -- | O63: ='Identify Toxic Air Contaminants'!$E63*VLOOKUP($B63,'Calculate Dispersion Factors'!$B$7:$N$11,3,FALSE)/H63 -> 9.267131733e-05 | P63: ='Identify Toxic Air Contaminants'!$E63*VLOOKUP($B63,'Calculate Dispersion Factors'!$B$7:$N$11,4,FALSE)/I63 -> 1.362171e-05 | Q63: ='Identify Toxic Air Contaminants'!$E63*VLOOKUP($B63,'Calculate Dispersion Factors'!$B$7:$N$11,5,FALSE)/J63 -> 0.001853676 | R63: ='Identify Toxic Air Contaminants'!$F63*VLOOKUP($B63,'Calculate Dispersion Factors'!$B$7:$N$11,6,FALSE)/K63 -> 0.01818198443
B64: Diesel Engine-1 | C64: Mercury and compounds | D64: 7439-97-6 | E64: -- | F64: -- | G64: -- | H64: 0.077 | I64: 0.63 | J64: 0.63 | K64: 0.6 | L64: -- | M64: -- | N64: -- | O64: ='Identify Toxic Air Contaminants'!$E64*VLOOKUP($B64,'Calculate Dispersion Factors'!$B$7:$N$11,3,FALSE)/H64 -> 6.988201558e-05 | P64: ='Identify Toxic Air Contaminants'!$E64*VLOOKUP($B64,'Calculate Dispersion Factors'!$B$7:$N$11,4,FALSE)/I64 -> 5.579809524e-06 | Q64: ='Identify Toxic Air Contaminants'!$E64*VLOOKUP($B64,'Calculate Dispersion Factors'!$B$7:$N$11,5,FALSE)/J64 -> 0.0007593142857 | R64: ='Identify Toxic Air Contaminants'!$F64*VLOOKUP($B64,'Calculate Dispersion Factors'!$B$7:$N$11,6,FALSE)/K64 -> 0.005865156267
B65: Diesel Engine-1 | C65: Selenium and compounds | D65: 7782-49-2 | E65: -- | F65: -- | G65: -- | H65: -- | I65: -- | J65: -- | K65: 2 | L65: -- | M65: -- | N65: -- | O65: -- | P65: -- | Q65: -- | R65: ='Identify Toxic Air Contaminants'!$F65*VLOOKUP($B65,'Calculate Dispersion Factors'!$B$7:$N$11,6,FALSE)/K65 -> 0.001935501568
B66: Diesel Engine-1 | C66: Toluene | D66: 108-88-3 | E66: -- | F66: -- | G66: -- | H66: 5000 | I66: 22000 | J66: 22000 | K66: 7500 | L66: -- | M66: -- | N66: -- | O66: ='Identify Toxic Air Contaminants'!$E66*VLOOKUP($B66,'Calculate Dispersion Factors'!$B$7:$N$11,3,FALSE)/H66 -> 5.671484621e-08 | P66: ='Identify Toxic Air Contaminants'!$E66*VLOOKUP($B66,'Calculate Dispersion Factors'!$B$7:$N$11,4,FALSE)/I66 -> 8.420693455e-09 | Q66: ='Identify Toxic Air Contaminants'!$E66*VLOOKUP($B66,'Calculate Dispersion Factors'!$B$7:$N$11,5,FALSE)/J66 -> 1.1459088e-06 | R66: ='Identify Toxic Air Contaminants'!$F66*VLOOKUP($B66,'Calculate Dispersion Factors'!$B$7:$N$11,6,FALSE)/K66 -> 2.472749882e-05
B67: Diesel Engine-1 | C67: Xylene (mixture), including m-xylene, o-xylene, p-xylene | D67: 1330-20-7 | E67: -- | F67: -- | G67: -- | H67: 220 | I67: 970 | J67: 970 | K67: 8700 | L67: -- | M67: -- | N67: -- | O67: ='Identify Toxic Air Contaminants'!$E67*VLOOKUP($B67,'Calculate Dispersion Factors'!$B$7:$N$11,3,FALSE)/H67 -> 5.185245556e-07 | P67: ='Identify Toxic Air Contaminants'!$E67*VLOOKUP($B67,'Calculate Dispersion Factors'!$B$7:$N$11,4,FALSE)/I67 -> 7.68288e-08 | Q67: ='Identify Toxic Air Contaminants'!$E67*VLOOKUP($B67,'Calculate Dispersion Factors'!$B$7:$N$11,5,FALSE)/J67 -> 1.04550532e-05 | R67: ='Identify Toxic Air Contaminants'!$F67*VLOOKUP($B67,'Calculate Dispersion Factors'!$B$7:$N$11,6,FALSE)/K67 -> 8.575262955e-06
B68: Diesel Engine-1 | C68: Diesel Particulate Matter | D68: 200 | E68: 0.1 | F68: 2.6 | G68: 1.2 | H68: 5 | I68: 22 | J68: 22 | K68: -- | L68: ='Identify Toxic Air Contaminants'!$E68*VLOOKUP($B68,'Calculate Dispersion Factors'!$B$7:$N$11,3,FALSE)/E68 -> 0.1990938624 | M68: ='Identify Toxic Air Contaminants'!$E68*VLOOKUP($B68,'Calculate Dispersion Factors'!$B$7:$N$11,4,FALSE)/F68 -> 0.005002513846 | N68: ='Identify Toxic Air Contaminants'!$E68*VLOOKUP($B68,'Calculate Dispersion Factors'!$B$7:$N$11,5,FALSE)/G68 -> 1.474968 | O68: ='Identify Toxic Air Contaminants'!$E68*VLOOKUP($B68,'Calculate Dispersion Factors'!$B$7:$N$11,3,FALSE)/H68 -> 0.003981877248 | P68: ='Identify Toxic Air Contaminants'!$E68*VLOOKUP($B68,'Calculate Dispersion Factors'!$B$7:$N$11,4,FALSE)/I68 -> 0.0005912061818 | Q68: ='Identify Toxic Air Contaminants'!$E68*VLOOKUP($B68,'Calculate Dispersion Factors'!$B$7:$N$11,5,FALSE)/J68 -> 0.0804528 | R68: --
B69: ASR-1 MH | C69: Aluminum and compounds | D69: 7429-90-5 | E69: -- | F69: -- | G69: -- | H69: 5 | I69: 22 | J69: 22 | K69: -- | L69: -- | M69: -- | N69: -- | O69: ='Identify Toxic Air Contaminants'!$E69*VLOOKUP($B69,'Calculate Dispersion Factors'!$B$7:$N$11,3,FALSE)/H69 -> 4.268047253e-05 | P69: ='Identify Toxic Air Contaminants'!$E69*VLOOKUP($B69,'Calculate Dispersion Factors'!$B$7:$N$11,4,FALSE)/I69 -> 6.345664969e-06 | Q69: ='Identify Toxic Air Contaminants'!$E69*VLOOKUP($B69,'Calculate Dispersion Factors'!$B$7:$N$11,5,FALSE)/J69 -> 0.0009614643892 | R69: --
B70: ASR-1 MH | C70: Arsenic and compounds | D70: 7440-38-2 | E70: 2.4e-05 | F70: 0.0013 | G70: 0.00062 | H70: 0.00017 | I70: 0.0024 | J70: 0.0024 | K70: 0.2 | L70: ='Identify Toxic Air Contaminants'!$E70*VLOOKUP($B70,'Calculate Dispersion Factors'!$B$7:$N$11,3,FALSE)/E70 -> 0.01807728612 | M70: ='Identify Toxic Air Contaminants'!$E70*VLOOKUP($B70,'Calculate Dispersion Factors'!$B$7:$N$11,4,FALSE)/F70 -> 0.0002183241197 | N70: ='Identify Toxic Air Contaminants'!$E70*VLOOKUP($B70,'Calculate Dispersion Factors'!$B$7:$N$11,5,FALSE)/G70 -> 0.06936005759 | O70: ='Identify Toxic Air Contaminants'!$E70*VLOOKUP($B70,'Calculate Dispersion Factors'!$B$7:$N$11,3,FALSE)/H70 -> 0.002552087452 | P70: ='Identify Toxic Air Contaminants'!$E70*VLOOKUP($B70,'Calculate Dispersion Factors'!$B$7:$N$11,4,FALSE)/I70 -> 0.0001182588982 | Q70: ='Identify Toxic Air Contaminants'!$E70*VLOOKUP($B70,'Calculate Dispersion Factors'!$B$7:$N$11,5,FALSE)/J70 -> 0.01791801488 | R70: ='Identify Toxic Air Contaminants'!$F70*VLOOKUP($B70,'Calculate Dispersion Factors'!$B$7:$N$11,6,FALSE)/K70 -> 0.000670817568
B71: ASR-1 MH | C71: Barium and compounds | D71: NoRBC | E71: -- | F71: -- | G71: -- | H71: -- | I71: -- | J71: -- | K71: --
B72: ASR-1 MH | C72: Cadmium and compounds | D72: 7440-43-9 | E72: 0.00056 | F72: 0.014 | G72: 0.0067 | H72: 0.005 | I72: 0.037 | J72: 0.037 | K72: 0.03 | L72: ='Identify Toxic Air Contaminants'!$E72*VLOOKUP($B72,'Calculate Dispersion Factors'!$B$7:$N$11,3,FALSE)/E72 -> 0.001229901074 | M72: ='Identify Toxic Air Contaminants'!$E72*VLOOKUP($B72,'Calculate Dispersion Factors'!$B$7:$N$11,4,FALSE)/F72 -> 3.218331444e-05 | N72: ='Identify Toxic Air Contaminants'!$E72*VLOOKUP($B72,'Calculate Dispersion Factors'!$B$7:$N$11,5,FALSE)/G72 -> 0.01018919951 | O72: ='Identify Toxic Air Contaminants'!$E72*VLOOKUP($B72,'Calculate Dispersion Factors'!$B$7:$N$11,3,FALSE)/H72 -> 0.0001377489202 | P72: ='Identify Toxic Air Contaminants'!$E72*VLOOKUP($B72,'Calculate Dispersion Factors'!$B$7:$N$11,4,FALSE)/I72 -> 1.217747033e-05 | Q72: ='Identify Toxic Air Contaminants'!$E72*VLOOKUP($B72,'Calculate Dispersion Factors'!$B$7:$N$11,5,FALSE)/J72 -> 0.001845071262 | R72: ='Identify Toxic Air Contaminants'!$F72*VLOOKUP($B72,'Calculate Dispersion Factors'!$B$7:$N$11,6,FALSE)/K72 -> 0.007099485928
B73: ASR-1 MH | C73: Cobalt and compounds | D73: 7440-48-4 | E73: -- | F73: -- | G73: -- | H73: 0.1 | I73: 0.44 | J73: 0.44 | K73: -- | L73: -- | M73: -- | N73: -- | O73: ='Identify Toxic Air Contaminants'!$E73*VLOOKUP($B73,'Calculate Dispersion Factors'!$B$7:$N$11,3,FALSE)/H73 -> 5.938388491e-06 | P73: ='Identify Toxic Air Contaminants'!$E73*VLOOKUP($B73,'Calculate Dispersion Factors'!$B$7:$N$11,4,FALSE)/I73 -> 8.829101831e-07 | Q73: ='Identify Toxic Air Contaminants'!$E73*VLOOKUP($B73,'Calculate Dispersion Factors'!$B$7:$N$11,5,FALSE)/J73 -> 0.0001337742702 | R73: --
B74: ASR-1 MH | C74: Copper and compounds | D74: 7440-50-8 | E74: -- | F74: -- | G74: -- | H74: -- | I74: -- | J74: -- | K74: 100 | L74: -- | M74: -- | N74: -- | O74: -- | P74: -- | Q74: -- | R74: ='Identify Toxic Air Contaminants'!$F74*VLOOKUP($B74,'Calculate Dispersion Factors'!$B$7:$N$11,6,FALSE)/K74 -> 0.002965013651
B75: ASR-1 MH | C75: Lead and compounds | D75: 7439-92-1 | E75: -- | F75: -- | G75: -- | H75: 0.15 | I75: 0.66 | J75: 0.66 | K75: 0.15 | L75: -- | M75: -- | N75: -- | O75: ='Identify Toxic Air Contaminants'!$E75*VLOOKUP($B75,'Calculate Dispersion Factors'!$B$7:$N$11,3,FALSE)/H75 -> 0.00209696519 | P75: ='Identify Toxic Air Contaminants'!$E75*VLOOKUP($B75,'Calculate Dispersion Factors'!$B$7:$N$11,4,FALSE)/I75 -> 0.0003117734589 | Q75: ='Identify Toxic Air Contaminants'!$E75*VLOOKUP($B75,'Calculate Dispersion Factors'!$B$7:$N$11,5,FALSE)/J75 -> 0.04723840286 | R75: ='Identify Toxic Air Contaminants'!$F75*VLOOKUP($B75,'Calculate Dispersion Factors'!$B$7:$N$11,6,FALSE)/K75 -> 0.6484569824
B76: ASR-1 MH | C76: Manganese and compounds | D76: 7439-96-5 | E76: -- | F76: -- | G76: -- | H76: 0.09 | I76: 0.4 | J76: 0.4 | K76: 0.3 | L76: -- | M76: -- | N76: -- | O76: ='Identify Toxic Air Contaminants'!$E76*VLOOKUP($B76,'Calculate Dispersion Factors'!$B$7:$N$11,3,FALSE)/H76 -> 0.0001648045918 | P76: ='Identify Toxic Air Contaminants'!$E76*VLOOKUP($B76,'Calculate Dispersion Factors'!$B$7:$N$11,4,FALSE)/I76 -> 2.425785649e-05 | Q76: ='Identify Toxic Air Contaminants'!$E76*VLOOKUP($B76,'Calculate Dispersion Factors'!$B$7:$N$11,5,FALSE)/J76 -> 0.003675432802 | R76: ='Identify Toxic Air Contaminants'!$F76*VLOOKUP($B76,'Calculate Dispersion Factors'!$B$7:$N$11,6,FALSE)/K76 -> 0.0152890504
B77: ASR-1 MH | C77: Mercury and compounds | D77: 7439-97-6 | E77: -- | F77: -- | G77: -- | H77: 0.077 | I77: 0.63 | J77: 0.63 | K77: 0.6 | L77: -- | M77: -- | N77: -- | O77: ='Identify Toxic Air Contaminants'!$E77*VLOOKUP($B77,'Calculate Dispersion Factors'!$B$7:$N$11,3,FALSE)/H77 -> 2.289007009e-07 | P77: ='Identify Toxic Air Contaminants'!$E77*VLOOKUP($B77,'Calculate Dispersion Factors'!$B$7:$N$11,4,FALSE)/I77 -> 1.830197234e-08 | Q77: ='Identify Toxic Air Contaminants'!$E77*VLOOKUP($B77,'Calculate Dispersion Factors'!$B$7:$N$11,5,FALSE)/J77 -> 2.773026112e-06 | R77: ='Identify Toxic Air Contaminants'!$F77*VLOOKUP($B77,'Calculate Dispersion Factors'!$B$7:$N$11,6,FALSE)/K77 -> 9.0839879e-06
B78: ASR-1 MH | C78: Nickel compounds, insoluble | D78: 365 | E78: 0.0038 | F78: 0.1 | G78: 0.046 | H78: 0.014 | I78: 0.062 | J78: 0.062 | K78: 0.2 | L78: ='Identify Toxic Air Contaminants'!$E78*VLOOKUP($B78,'Calculate Dispersion Factors'!$B$7:$N$11,3,FALSE)/E78 -> 0.002782950627 | M78: ='Identify Toxic Air Contaminants'!$E78*VLOOKUP($B78,'Calculate Dispersion Factors'!$B$7:$N$11,4,FALSE)/F78 -> 6.918145544e-05 | N78: ='Identify Toxic Air Contaminants'!$E78*VLOOKUP($B78,'Calculate Dispersion Factors'!$B$7:$N$11,5,FALSE)/G78 -> 0.02278704066 | O78: ='Identify Toxic Air Contaminants'!$E78*VLOOKUP($B78,'Calculate Dispersion Factors'!$B$7:$N$11,3,FALSE)/H78 -> 0.0007553723129 | P78: ='Identify Toxic Air Contaminants'!$E78*VLOOKUP($B78,'Calculate Dispersion Factors'!$B$7:$N$11,4,FALSE)/I78 -> 0.0001115829927 | Q78: ='Identify Toxic Air Contaminants'!$E78*VLOOKUP($B78,'Calculate Dispersion Factors'!$B$7:$N$11,5,FALSE)/J78 -> 0.01690651404 | R78: ='Identify Toxic Air Contaminants'!$F78*VLOOKUP($B78,'Calculate Dispersion Factors'!$B$7:$N$11,6,FALSE)/K78 -> 0.01635117822
B79: ASR-1 MH | C79: Zinc and compounds | D79: NoRBC | E79: -- | F79: -- | G79: -- | H79: -- | I79: -- | J79: -- | K79: --
B80: ASR-1 MH | C80: Benzene | D80: 71-43-2 | E80: 0.13 | F80: 3.3 | G80: 1.5 | H80: 3 | I80: 13 | J80: 13 | K80: 29 | L80: ='Identify Toxic Air Contaminants'!$E80*VLOOKUP($B80,'Calculate Dispersion Factors'!$B$7:$N$11,3,FALSE)/E80 -> 2.373023077e-05 | M80: ='Identify Toxic Air Contaminants'!$E80*VLOOKUP($B80,'Calculate Dispersion Factors'!$B$7:$N$11,4,FALSE)/F80 -> 6.1155e-07 | N80: ='Identify Toxic Air Contaminants'!$E80*VLOOKUP($B80,'Calculate Dispersion Factors'!$B$7:$N$11,5,FALSE)/G80 -> 0.00020385 | O80: ='Identify Toxic Air Contaminants'!$E80*VLOOKUP($B80,'Calculate Dispersion Factors'!$B$7:$N$11,3,FALSE)/H80 -> 1.02831e-06 | P80: ='Identify Toxic Air Contaminants'!$E80*VLOOKUP($B80,'Calculate Dispersion Factors'!$B$7:$N$11,4,FALSE)/I80 -> 1.552396154e-07 | Q80: ='Identify Toxic Air Contaminants'!$E80*VLOOKUP($B80,'Calculate Dispersion Factors'!$B$7:$N$11,5,FALSE)/J80 -> 2.352115385e-05 | R80: ='Identify Toxic Air Contaminants'!$F80*VLOOKUP($B80,'Calculate Dispersion Factors'!$B$7:$N$11,6,FALSE)/K80 -> 3.289555862e-05
B81: ASR-1 MH | C81: Polychlorinated biphenyls (PCBs) | D81: 1336-36-3 | E81: 0.00053 | F81: 0.02 | G81: 0.0092 | H81: -- | I81: -- | J81: -- | K81: -- | L81: ='Identify Toxic Air Contaminants'!$E81*VLOOKUP($B81,'Calculate Dispersion Factors'!$B$7:$N$11,3,FALSE)/E81 -> 0.0008185940885 | M81: ='Identify Toxic Air Contaminants'!$E81*VLOOKUP($B81,'Calculate Dispersion Factors'!$B$7:$N$11,4,FALSE)/F81 -> 1.419106778e-05 | N81: ='Identify Toxic Air Contaminants'!$E81*VLOOKUP($B81,'Calculate Dispersion Factors'!$B$7:$N$11,5,FALSE)/G81 -> 0.004674264751 | O81: -- | P81: -- | Q81: -- | R81: --
B82: ASR-1 MH | C82: Polychlorinated biphenyls (PCBs) TEQ | D82: 645 | E82: 1e-09 | F82: 9e-08 | G82: 4.2e-08 | H82: 1.3e-07 | I82: 2.6e-05 | J82: 2.6e-05 | K82: -- | L82: ='Identify Toxic Air Contaminants'!$E82*VLOOKUP($B82,'Calculate Dispersion Factors'!$B$7:$N$11,3,FALSE)/E82 -> 0.005423185836 | M82: ='Identify Toxic Air Contaminants'!$E82*VLOOKUP($B82,'Calculate Dispersion Factors'!$B$7:$N$11,4,FALSE)/F82 -> 3.941963273e-05 | N82: ='Identify Toxic Air Contaminants'!$E82*VLOOKUP($B82,'Calculate Dispersion Factors'!$B$7:$N$11,5,FALSE)/G82 -> 0.01279858206 | O82: ='Identify Toxic Air Contaminants'!$E82*VLOOKUP($B82,'Calculate Dispersion Factors'!$B$7:$N$11,3,FALSE)/H82 -> 4.171681413e-05 | P82: ='Identify Toxic Air Contaminants'!$E82*VLOOKUP($B82,'Calculate Dispersion Factors'!$B$7:$N$11,4,FALSE)/I82 -> 1.364525748e-07 | Q82: ='Identify Toxic Air Contaminants'!$E82*VLOOKUP($B82,'Calculate Dispersion Factors'!$B$7:$N$11,5,FALSE)/J82 -> 2.067463255e-05 | R82: --
B83: ASR-1 MH | C83: Polychlorinated dibenzo-p-dioxins (PCDDs) & dibenzofurans (PCDFs) TEQ | D83: 646 | E83: 1e-09 | F83: 9e-08 | G83: 4.2e-08 | H83: 1.3e-07 | I83: 2.6e-05 | J83: 2.6e-05 | K83: -- | L83: ='Identify Toxic Air Contaminants'!$E83*VLOOKUP($B83,'Calculate Dispersion Factors'!$B$7:$N$11,3,FALSE)/E83 -> 0.00596550442 | M83: ='Identify Toxic Air Contaminants'!$E83*VLOOKUP($B83,'Calculate Dispersion Factors'!$B$7:$N$11,4,FALSE)/F83 -> 4.3361596e-05 | N83: ='Identify Toxic Air Contaminants'!$E83*VLOOKUP($B83,'Calculate Dispersion Factors'!$B$7:$N$11,5,FALSE)/G83 -> 0.01407844026 | O83: ='Identify Toxic Air Contaminants'!$E83*VLOOKUP($B83,'Calculate Dispersion Factors'!$B$7:$N$11,3,FALSE)/H83 -> 4.588849554e-05 | P83: ='Identify Toxic Air Contaminants'!$E83*VLOOKUP($B83,'Calculate Dispersion Factors'!$B$7:$N$11,4,FALSE)/I83 -> 1.500978323e-07 | Q83: ='Identify Toxic Air Contaminants'!$E83*VLOOKUP($B83,'Calculate Dispersion Factors'!$B$7:$N$11,5,FALSE)/J83 -> 2.274209581e-05 | R83: --
B84: ASR-1 MH | C84: Polychlorinated naphthalenes | D84: NoRBC | E84: -- | F84: -- | G84: -- | H84: -- | I84: -- | J84: -- | K84: --
B85: ASR-1 MH | C85: Hexachlorobenzene | D85: 118-74-1 | E85: 0.002 | F85: 0.051 | G85: 0.024 | H85: -- | I85: -- | J85: -- | K85: -- | L85: ='Identify Toxic Air Contaminants'!$E85*VLOOKUP($B85,'Calculate Dispersion Factors'!$B$7:$N$11,3,FALSE)/E85 -> 1.491376105e-05 | M85: ='Identify Toxic Air Contaminants'!$E85*VLOOKUP($B85,'Calculate Dispersion Factors'!$B$7:$N$11,4,FALSE)/F85 -> 3.826023177e-07 | N85: ='Identify Toxic Air Contaminants'!$E85*VLOOKUP($B85,'Calculate Dispersion Factors'!$B$7:$N$11,5,FALSE)/G85 -> 0.0001231863523 | O85: -- | P85: -- | Q85: -- | R85: --
B86: ASR-1 MH | C86: 2,4,6-Trichlorophenol | D86: 88-06-2 | E86: 0.05 | F86: 1.3 | G86: 0.6 | H86: -- | I86: -- | J86: -- | K86: -- | L86: ='Identify Toxic Air Contaminants'!$E86*VLOOKUP($B86,'Calculate Dispersion Factors'!$B$7:$N$11,3,FALSE)/E86 -> 0.01233972 | M86: ='Identify Toxic Air Contaminants'!$E86*VLOOKUP($B86,'Calculate Dispersion Factors'!$B$7:$N$11,4,FALSE)/F86 -> 0.0003104792308 | N86: ='Identify Toxic Air Contaminants'!$E86*VLOOKUP($B86,'Calculate Dispersion Factors'!$B$7:$N$11,5,FALSE)/G86 -> 0.101925 | O86: -- | P86: -- | Q86: -- | R86: --
B87: ASR-1 MH | C87: PBDDs/PBDFs | D87: NoRBC | E87: -- | F87: -- | G87: -- | H87: -- | I87: -- | J87: -- | K87: --
B88: ASR-1 MH | C88: Polybrominated diphenyl ethers (PBDEs) | D88: 447 | E88: -- | F88: -- | G88: -- | H88: -- | I88: -- | J88: -- | K88: 6 | L88: -- | M88: -- | N88: -- | O88: -- | P88: -- | Q88: -- | R88: ='Identify Toxic Air Contaminants'!$F88*VLOOKUP($B88,'Calculate Dispersion Factors'!$B$7:$N$11,6,FALSE)/K88 -> 0.000244568905
B89: ASR-1 MH | C89: Tetrabromobisphenol A | D89: NoRBC | E89: -- | F89: -- | G89: -- | H89: -- | I89: -- | J89: -- | K89: --
B90: ASR-1 MH | C90: Hexabromocyclododecane | D90: NoRBC | E90: -- | F90: -- | G90: -- | H90: -- | I90: -- | J90: -- | K90: --
B91: ASR-1 MH | C91: 2,4,6-Tribromophenol | D91: NoRBC | E91: -- | F91: -- | G91: -- | H91: -- | I91: -- | J91: -- | K91: --
B92: ASR-1 MH | C92: Polycyclic aromatic hydrocarbons (PAHs) | D92: 401 | E92: 4.3e-05 | F92: 0.0016 | G92: 0.003 | H92: -- | I92: -- | J92: -- | K92: -- | L92: ='Identify Toxic Air Contaminants'!$E92*VLOOKUP($B92,'Calculate Dispersion Factors'!$B$7:$N$11,3,FALSE)/E92 -> 0.01888655998 | M92: ='Identify Toxic Air Contaminants'!$E92*VLOOKUP($B92,'Calculate Dispersion Factors'!$B$7:$N$11,4,FALSE)/F92 -> 0.0003320488126 | N92: ='Identify Toxic Air Contaminants'!$E92*VLOOKUP($B92,'Calculate Dispersion Factors'!$B$7:$N$11,5,FALSE)/G92 -> 0.02683222728 | O92: -- | P92: -- | Q92: -- | R92: --
B93: ASR-1 MH | C93: Bis(2-ethylhexyl) phthalate (DEHP) | D93: 117-81-7 | E93: 0.08 | F93: 11 | G93: 5 | H93: -- | I93: -- | J93: -- | K93: -- | L93: ='Identify Toxic Air Contaminants'!$E93*VLOOKUP($B93,'Calculate Dispersion Factors'!$B$7:$N$11,3,FALSE)/E93 -> 2.813277653e-06 | M93: ='Identify Toxic Air Contaminants'!$E93*VLOOKUP($B93,'Calculate Dispersion Factors'!$B$7:$N$11,4,FALSE)/F93 -> 1.338475711e-08 | N93: ='Identify Toxic Air Contaminants'!$E93*VLOOKUP($B93,'Calculate Dispersion Factors'!$B$7:$N$11,5,FALSE)/G93 -> 4.461585705e-06 | O93: -- | P93: -- | Q93: -- | R93: --
B94: ASR-1 Piles | C94: Aluminum and compounds | D94: 7429-90-5 | E94: -- | F94: -- | G94: -- | H94: 5 | I94: 22 | J94: 22 | K94: -- | L94: -- | M94: -- | N94: -- | O94: ='Identify Toxic Air Contaminants'!$E94*VLOOKUP($B94,'Calculate Dispersion Factors'!$B$7:$N$11,3,FALSE)/H94 -> 6.558826711e-07 | P94: ='Identify Toxic Air Contaminants'!$E94*VLOOKUP($B94,'Calculate Dispersion Factors'!$B$7:$N$11,4,FALSE)/I94 -> 9.751559538e-08 | Q94: ='Identify Toxic Air Contaminants'!$E94*VLOOKUP($B94,'Calculate Dispersion Factors'!$B$7:$N$11,5,FALSE)/J94 -> 1.477509021e-05 | R94: --
B95: ASR-1 Piles | C95: Arsenic and compounds | D95: 7440-38-2 | E95: 2.4e-05 | F95: 0.0013 | G95: 0.00062 | H95: 0.00017 | I95: 0.0024 | J95: 0.0024 | K95: 0.2 | L95: ='Identify Toxic Air Contaminants'!$E95*VLOOKUP($B95,'Calculate Dispersion Factors'!$B$7:$N$11,3,FALSE)/E95 -> 0.0002777986748 | M95: ='Identify Toxic Air Contaminants'!$E95*VLOOKUP($B95,'Calculate Dispersion Factors'!$B$7:$N$11,4,FALSE)/F95 -> 3.355047363e-06 | N95: ='Identify Toxic Air Contaminants'!$E95*VLOOKUP($B95,'Calculate Dispersion Factors'!$B$7:$N$11,5,FALSE)/G95 -> 0.001065875262 | O95: ='Identify Toxic Air Contaminants'!$E95*VLOOKUP($B95,'Calculate Dispersion Factors'!$B$7:$N$11,3,FALSE)/H95 -> 3.921863644e-05 | P95: ='Identify Toxic Air Contaminants'!$E95*VLOOKUP($B95,'Calculate Dispersion Factors'!$B$7:$N$11,4,FALSE)/I95 -> 1.817317322e-06 | Q95: ='Identify Toxic Air Contaminants'!$E95*VLOOKUP($B95,'Calculate Dispersion Factors'!$B$7:$N$11,5,FALSE)/J95 -> 0.0002753511094 | R95: ='Identify Toxic Air Contaminants'!$F95*VLOOKUP($B95,'Calculate Dispersion Factors'!$B$7:$N$11,6,FALSE)/K95 -> 9.656148492e-06
B96: ASR-1 Piles | C96: Barium and compounds | D96: NoRBC | E96: -- | F96: -- | G96: -- | H96: -- | I96: -- | J96: -- | K96: --
B97: ASR-1 Piles | C97: Cadmium and compounds | D97: 7440-43-9 | E97: 0.00056 | F97: 0.014 | G97: 0.0067 | H97: 0.005 | I97: 0.037 | J97: 0.037 | K97: 0.03 | L97: ='Identify Toxic Air Contaminants'!$E97*VLOOKUP($B97,'Calculate Dispersion Factors'!$B$7:$N$11,3,FALSE)/E97 -> 1.890023127e-05 | M97: ='Identify Toxic Air Contaminants'!$E97*VLOOKUP($B97,'Calculate Dispersion Factors'!$B$7:$N$11,4,FALSE)/F97 -> 4.945699283e-07 | N97: ='Identify Toxic Air Contaminants'!$E97*VLOOKUP($B97,'Calculate Dispersion Factors'!$B$7:$N$11,5,FALSE)/G97 -> 0.0001565802577 | O97: ='Identify Toxic Air Contaminants'!$E97*VLOOKUP($B97,'Calculate Dispersion Factors'!$B$7:$N$11,3,FALSE)/H97 -> 2.116825902e-06 | P97: ='Identify Toxic Air Contaminants'!$E97*VLOOKUP($B97,'Calculate Dispersion Factors'!$B$7:$N$11,4,FALSE)/I97 -> 1.871345675e-07 | Q97: ='Identify Toxic Air Contaminants'!$E97*VLOOKUP($B97,'Calculate Dispersion Factors'!$B$7:$N$11,5,FALSE)/J97 -> 2.835372234e-05 | R97: ='Identify Toxic Air Contaminants'!$F97*VLOOKUP($B97,'Calculate Dispersion Factors'!$B$7:$N$11,6,FALSE)/K97 -> 0.0001021942382
B98: ASR-1 Piles | C98: Cobalt and compounds | D98: 7440-48-4 | E98: -- | F98: -- | G98: -- | H98: 0.1 | I98: 0.44 | J98: 0.44 | K98: -- | L98: -- | M98: -- | N98: -- | O98: ='Identify Toxic Air Contaminants'!$E98*VLOOKUP($B98,'Calculate Dispersion Factors'!$B$7:$N$11,3,FALSE)/H98 -> 9.125686466e-08 | P98: ='Identify Toxic Air Contaminants'!$E98*VLOOKUP($B98,'Calculate Dispersion Factors'!$B$7:$N$11,4,FALSE)/I98 -> 1.356792591e-08 | Q98: ='Identify Toxic Air Contaminants'!$E98*VLOOKUP($B98,'Calculate Dispersion Factors'!$B$7:$N$11,5,FALSE)/J98 -> 2.055746351e-06 | R98: --
B99: ASR-1 Piles | C99: Copper and compounds | D99: 7440-50-8 | E99: -- | F99: -- | G99: -- | H99: -- | I99: -- | J99: -- | K99: 100 | L99: -- | M99: -- | N99: -- | O99: -- | P99: -- | Q99: -- | R99: ='Identify Toxic Air Contaminants'!$F99*VLOOKUP($B99,'Calculate Dispersion Factors'!$B$7:$N$11,6,FALSE)/K99 -> 4.268017634e-05
B100: ASR-1 Piles | C100: Lead and compounds | D100: 7439-92-1 | E100: -- | F100: -- | G100: -- | H100: 0.15 | I100: 0.66 | J100: 0.66 | K100: 0.15 | L100: -- | M100: -- | N100: -- | O100: ='Identify Toxic Air Contaminants'!$E100*VLOOKUP($B100,'Calculate Dispersion Factors'!$B$7:$N$11,3,FALSE)/H100 -> 3.222464627e-05 | P100: ='Identify Toxic Air Contaminants'!$E100*VLOOKUP($B100,'Calculate Dispersion Factors'!$B$7:$N$11,4,FALSE)/I100 -> 4.791109303e-06 | Q100: ='Identify Toxic Air Contaminants'!$E100*VLOOKUP($B100,'Calculate Dispersion Factors'!$B$7:$N$11,5,FALSE)/J100 -> 0.0007259256519 | R100: ='Identify Toxic Air Contaminants'!$F100*VLOOKUP($B100,'Calculate Dispersion Factors'!$B$7:$N$11,6,FALSE)/K100 -> 0.009334276876
B101: ASR-1 Piles | C101: Manganese and compounds | D101: 7439-96-5 | E101: -- | F101: -- | G101: -- | H101: 0.09 | I101: 0.4 | J101: 0.4 | K101: 0.3 | L101: -- | M101: -- | N101: -- | O101: ='Identify Toxic Air Contaminants'!$E101*VLOOKUP($B101,'Calculate Dispersion Factors'!$B$7:$N$11,3,FALSE)/H101 -> 2.532597918e-06 | P101: ='Identify Toxic Air Contaminants'!$E101*VLOOKUP($B101,'Calculate Dispersion Factors'!$B$7:$N$11,4,FALSE)/I101 -> 3.727772156e-07 | Q101: ='Identify Toxic Air Contaminants'!$E101*VLOOKUP($B101,'Calculate Dispersion Factors'!$B$7:$N$11,5,FALSE)/J101 -> 5.648139631e-05 | R101: ='Identify Toxic Air Contaminants'!$F101*VLOOKUP($B101,'Calculate Dispersion Factors'!$B$7:$N$11,6,FALSE)/K101 -> 0.0002200797177
B102: ASR-1 Piles | C102: Mercury and compounds | D102: 7439-97-6 | E102: -- | F102: -- | G102: -- | H102: 0.077 | I102: 0.63 | J102: 0.63 | K102: 0.6 | L102: -- | M102: -- | N102: -- | O102: ='Identify Toxic Air Contaminants'!$E102*VLOOKUP($B102,'Calculate Dispersion Factors'!$B$7:$N$11,3,FALSE)/H102 -> 3.517580622e-09 | P102: ='Identify Toxic Air Contaminants'!$E102*VLOOKUP($B102,'Calculate Dispersion Factors'!$B$7:$N$11,4,FALSE)/I102 -> 2.812514903e-10 | Q102: ='Identify Toxic Air Contaminants'!$E102*VLOOKUP($B102,'Calculate Dispersion Factors'!$B$7:$N$11,5,FALSE)/J102 -> 4.261386216e-08 | R102: ='Identify Toxic Air Contaminants'!$F102*VLOOKUP($B102,'Calculate Dispersion Factors'!$B$7:$N$11,6,FALSE)/K102 -> 1.307603442e-07
B103: ASR-1 Piles | C103: Nickel compounds, insoluble | D103: 365 | E103: 0.0038 | F103: 0.1 | G103: 0.046 | H103: 0.014 | I103: 0.062 | J103: 0.062 | K103: 0.2 | L103: ='Identify Toxic Air Contaminants'!$E103*VLOOKUP($B103,'Calculate Dispersion Factors'!$B$7:$N$11,3,FALSE)/E103 -> 4.276637493e-05 | M103: ='Identify Toxic Air Contaminants'!$E103*VLOOKUP($B103,'Calculate Dispersion Factors'!$B$7:$N$11,4,FALSE)/F103 -> 1.063130633e-06 | N103: ='Identify Toxic Air Contaminants'!$E103*VLOOKUP($B103,'Calculate Dispersion Factors'!$B$7:$N$11,5,FALSE)/G103 -> 0.0003501747804 | O103: ='Identify Toxic Air Contaminants'!$E103*VLOOKUP($B103,'Calculate Dispersion Factors'!$B$7:$N$11,3,FALSE)/H103 -> 1.160801605e-05 | P103: ='Identify Toxic Air Contaminants'!$E103*VLOOKUP($B103,'Calculate Dispersion Factors'!$B$7:$N$11,4,FALSE)/I103 -> 1.714726828e-06 | Q103: ='Identify Toxic Air Contaminants'!$E103*VLOOKUP($B103,'Calculate Dispersion Factors'!$B$7:$N$11,5,FALSE)/J103 -> 0.0002598070951 | R103: ='Identify Toxic Air Contaminants'!$F103*VLOOKUP($B103,'Calculate Dispersion Factors'!$B$7:$N$11,6,FALSE)/K103 -> 0.0002353686195
B104: ASR-1 Piles | C104: Zinc and compounds | D104: NoRBC | E104: -- | F104: -- | G104: -- | H104: -- | I104: -- | J104: -- | K104: --
B105: ASR-1 Piles | C105: Polychlorinated biphenyls (PCBs) | D105: 1336-36-3 | E105: 0.00053 | F105: 0.02 | G105: 0.0092 | H105: -- | I105: -- | J105: -- | K105: -- | L105: ='Identify Toxic Air Contaminants'!$E105*VLOOKUP($B105,'Calculate Dispersion Factors'!$B$7:$N$11,3,FALSE)/E105 -> 1.257956263e-05 | M105: ='Identify Toxic Air Contaminants'!$E105*VLOOKUP($B105,'Calculate Dispersion Factors'!$B$7:$N$11,4,FALSE)/F105 -> 2.180780786e-07 | N105: ='Identify Toxic Air Contaminants'!$E105*VLOOKUP($B105,'Calculate Dispersion Factors'!$B$7:$N$11,5,FALSE)/G105 -> 7.183072418e-05 | O105: -- | P105: -- | Q105: -- | R105: --
B106: ASR-1 Piles | C106: Polychlorinated biphenyls (PCBs) TEQ | D106: 645 | E106: 1e-09 | F106: 9e-08 | G106: 4.2e-08 | H106: 1.3e-07 | I106: 2.6e-05 | J106: 2.6e-05 | K106: -- | L106: ='Identify Toxic Air Contaminants'!$E106*VLOOKUP($B106,'Calculate Dispersion Factors'!$B$7:$N$11,3,FALSE)/E106 -> 8.333960243e-05 | M106: ='Identify Toxic Air Contaminants'!$E106*VLOOKUP($B106,'Calculate Dispersion Factors'!$B$7:$N$11,4,FALSE)/F106 -> 6.057724406e-07 | N106: ='Identify Toxic Air Contaminants'!$E106*VLOOKUP($B106,'Calculate Dispersion Factors'!$B$7:$N$11,5,FALSE)/G106 -> 0.0001966793638 | O106: ='Identify Toxic Air Contaminants'!$E106*VLOOKUP($B106,'Calculate Dispersion Factors'!$B$7:$N$11,3,FALSE)/H106 -> 6.410738649e-07 | P106: ='Identify Toxic Air Contaminants'!$E106*VLOOKUP($B106,'Calculate Dispersion Factors'!$B$7:$N$11,4,FALSE)/I106 -> 2.096904602e-09 | Q106: ='Identify Toxic Air Contaminants'!$E106*VLOOKUP($B106,'Calculate Dispersion Factors'!$B$7:$N$11,5,FALSE)/J106 -> 3.177128185e-07 | R106: --
B107: ASR-1 Piles | C107: Polychlorinated dibenzo-p-dioxins (PCDDs) & dibenzofurans (PCDFs) TEQ | D107: 646 | E107: 1e-09 | F107: 9e-08 | G107: 4.2e-08 | H107: 1.3e-07 | I107: 2.6e-05 | J107: 2.6e-05 | K107: -- | L107: ='Identify Toxic Air Contaminants'!$E107*VLOOKUP($B107,'Calculate Dispersion Factors'!$B$7:$N$11,3,FALSE)/E107 -> 9.167356267e-05 | M107: ='Identify Toxic Air Contaminants'!$E107*VLOOKUP($B107,'Calculate Dispersion Factors'!$B$7:$N$11,4,FALSE)/F107 -> 6.663496846e-07 | N107: ='Identify Toxic Air Contaminants'!$E107*VLOOKUP($B107,'Calculate Dispersion Factors'!$B$7:$N$11,5,FALSE)/G107 -> 0.0002163473002 | O107: ='Identify Toxic Air Contaminants'!$E107*VLOOKUP($B107,'Calculate Dispersion Factors'!$B$7:$N$11,3,FALSE)/H107 -> 7.051812513e-07 | P107: ='Identify Toxic Air Contaminants'!$E107*VLOOKUP($B107,'Calculate Dispersion Factors'!$B$7:$N$11,4,FALSE)/I107 -> 2.306595062e-09 | Q107: ='Identify Toxic Air Contaminants'!$E107*VLOOKUP($B107,'Calculate Dispersion Factors'!$B$7:$N$11,5,FALSE)/J107 -> 3.494841003e-07 | R107: --
B108: ASR-1 Piles | C108: Polychlorinated naphthalenes | D108: NoRBC | E108: -- | F108: -- | G108: -- | H108: -- | I108: -- | J108: -- | K108: --
B109: ASR-1 Piles | C109: Hexachlorobenzene | D109: 118-74-1 | E109: 0.002 | F109: 0.051 | G109: 0.024 | H109: -- | I109: -- | J109: -- | K109: -- | L109: ='Identify Toxic Air Contaminants'!$E109*VLOOKUP($B109,'Calculate Dispersion Factors'!$B$7:$N$11,3,FALSE)/E109 -> 2.291839067e-07 | M109: ='Identify Toxic Air Contaminants'!$E109*VLOOKUP($B109,'Calculate Dispersion Factors'!$B$7:$N$11,4,FALSE)/F109 -> 5.879556041e-09 | N109: ='Identify Toxic Air Contaminants'!$E109*VLOOKUP($B109,'Calculate Dispersion Factors'!$B$7:$N$11,5,FALSE)/G109 -> 1.893038877e-06 | O109: -- | P109: -- | Q109: -- | R109: --
B110: ASR-1 Piles | C110: PBDDs/PBDFs | D110: NoRBC | E110: -- | F110: -- | G110: -- | H110: -- | I110: -- | J110: -- | K110: --
B111: ASR-1 Piles | C111: Polybrominated diphenyl ethers (PBDEs) | D111: 447 | E111: -- | F111: -- | G111: -- | H111: -- | I111: -- | J111: -- | K111: 6 | L111: -- | M111: -- | N111: -- | O111: -- | P111: -- | Q111: -- | R111: ='Identify Toxic Air Contaminants'!$F111*VLOOKUP($B111,'Calculate Dispersion Factors'!$B$7:$N$11,6,FALSE)/K111 -> 3.520470805e-06
B112: ASR-1 Piles | C112: Hexabromocyclododecane | D112: NoRBC | E112: -- | F112: -- | G112: -- | H112: -- | I112: -- | J112: -- | K112: --
B113: ASR-1 Piles | C113: Polycyclic aromatic hydrocarbons (PAHs) | D113: 401 | E113: 4.3e-05 | F113: 0.0016 | G113: 0.003 | H113: -- | I113: -- | J113: -- | K113: -- | L113: ='Identify Toxic Air Contaminants'!$E113*VLOOKUP($B113,'Calculate Dispersion Factors'!$B$7:$N$11,3,FALSE)/E113 -> 0.0002902350108 | M113: ='Identify Toxic Air Contaminants'!$E113*VLOOKUP($B113,'Calculate Dispersion Factors'!$B$7:$N$11,4,FALSE)/F113 -> 5.102686292e-06 | N113: ='Identify Toxic Air Contaminants'!$E113*VLOOKUP($B113,'Calculate Dispersion Factors'!$B$7:$N$11,5,FALSE)/G113 -> 0.0004123382863 | O113: -- | P113: -- | Q113: -- | R113: --
B114: ASR-1 Piles | C114: Bis(2-ethylhexyl) phthalate (DEHP) | D114: 117-81-7 | E114: 0.08 | F114: 11 | G114: 5 | H114: -- | I114: -- | J114: -- | K114: -- | L114: ='Identify Toxic Air Contaminants'!$E114*VLOOKUP($B114,'Calculate Dispersion Factors'!$B$7:$N$11,3,FALSE)/E114 -> 4.323241876e-08 | M114: ='Identify Toxic Air Contaminants'!$E114*VLOOKUP($B114,'Calculate Dispersion Factors'!$B$7:$N$11,4,FALSE)/F114 -> 2.056872787e-10 | N114: ='Identify Toxic Air Contaminants'!$E114*VLOOKUP($B114,'Calculate Dispersion Factors'!$B$7:$N$11,5,FALSE)/G114 -> 6.856242623e-08 | O114: -- | P114: -- | Q114: -- | R114: --
B115: Drain | C115: 2,2,4 Trimethylpentane | D115: NoRBC | E115: -- | F115: -- | G115: -- | H115: -- | I115: -- | J115: -- | K115: --
B116: Drain | C116: Benzene | D116: 71-43-2 | E116: 0.13 | F116: 3.3 | G116: 1.5 | H116: 3 | I116: 13 | J116: 13 | K116: 29 | L116: ='Identify Toxic Air Contaminants'!$E116*VLOOKUP($B116,'Calculate Dispersion Factors'!$B$7:$N$11,3,FALSE)/E116 -> 0.004696236699 | M116: ='Identify Toxic Air Contaminants'!$E116*VLOOKUP($B116,'Calculate Dispersion Factors'!$B$7:$N$11,4,FALSE)/F116 -> 0.0001210263643 | N116: ='Identify Toxic Air Contaminants'!$E116*VLOOKUP($B116,'Calculate Dispersion Factors'!$B$7:$N$11,5,FALSE)/G116 -> 0.04034212142 | O116: ='Identify Toxic Air Contaminants'!$E116*VLOOKUP($B116,'Calculate Dispersion Factors'!$B$7:$N$11,3,FALSE)/H116 -> 0.0002035035903 | P116: ='Identify Toxic Air Contaminants'!$E116*VLOOKUP($B116,'Calculate Dispersion Factors'!$B$7:$N$11,4,FALSE)/I116 -> 3.072207708e-05 | Q116: ='Identify Toxic Air Contaminants'!$E116*VLOOKUP($B116,'Calculate Dispersion Factors'!$B$7:$N$11,5,FALSE)/J116 -> 0.004654860164 | R116: ='Identify Toxic Air Contaminants'!$F116*VLOOKUP($B116,'Calculate Dispersion Factors'!$B$7:$N$11,6,FALSE)/K116 -> 0.006510064362
B117: Drain | C117: Ethylbenzene | D117: NoRBC | E117: -- | F117: -- | G117: -- | H117: -- | I117: -- | J117: -- | K117: --
B118: Drain | C118: Hexane | D118: 110-54-3 | E118: -- | F118: -- | G118: -- | H118: 700 | I118: 3100 | J118: 3100 | K118: -- | L118: -- | M118: -- | N118: -- | O118: ='Identify Toxic Air Contaminants'!$E118*VLOOKUP($B118,'Calculate Dispersion Factors'!$B$7:$N$11,3,FALSE)/H118 -> 1.744316488e-06 | P118: ='Identify Toxic Air Contaminants'!$E118*VLOOKUP($B118,'Calculate Dispersion Factors'!$B$7:$N$11,4,FALSE)/I118 -> 2.576690336e-07 | Q118: ='Identify Toxic Air Contaminants'!$E118*VLOOKUP($B118,'Calculate Dispersion Factors'!$B$7:$N$11,5,FALSE)/J118 -> 3.904076267e-05 | R118: --
B119: Drain | C119: Toluene | D119: 108-88-3 | E119: -- | F119: -- | G119: -- | H119: 5000 | I119: 22000 | J119: 22000 | K119: 7500 | L119: -- | M119: -- | N119: -- | O119: ='Identify Toxic Air Contaminants'!$E119*VLOOKUP($B119,'Calculate Dispersion Factors'!$B$7:$N$11,3,FALSE)/H119 -> 2.220039167e-07 | P119: ='Identify Toxic Air Contaminants'!$E119*VLOOKUP($B119,'Calculate Dispersion Factors'!$B$7:$N$11,4,FALSE)/I119 -> 3.300719025e-08 | Q119: ='Identify Toxic Air Contaminants'!$E119*VLOOKUP($B119,'Calculate Dispersion Factors'!$B$7:$N$11,5,FALSE)/J119 -> 5.001089433e-06 | R119: ='Identify Toxic Air Contaminants'!$F119*VLOOKUP($B119,'Calculate Dispersion Factors'!$B$7:$N$11,6,FALSE)/K119 -> 4.576772521e-05
B120: Drain | C120: Xylenes | D120: NoRBC | E120: -- | F120: -- | G120: -- | H120: -- | I120: -- | J120: -- | K120: --

Sheet RBCs
B2: CAS# | C2: Chemical | D2: Residential | F2: Non-Residential | J2: Acute
D3: Cancer | E3: Noncancer | F3: Child Cancer | G3: Child Noncancer | H3: Worker Cancer | I3: Worker Noncancer | J3: Acute
D4: (µg/m3) | E4: (µg/m3) | F4: (µg/m3) | G4: (µg/m3) | H4: (µg/m3) | I4: (µg/m3) | J4: (µg/m3)
B5: 75-07-0 | C5: Acetaldehyde | D5: 0.45 | E5: 140 | F5: 12 | G5: 620 | H5: 5.5 | I5: 620 | J5: 470
B6: 60-35-5 | C6: Acetamide | D6: 0.05 | E6: -- | F6: 1.3 | G6: -- | H6: 0.6 | I6: -- | J6: --
B7: 67-64-1 | C7: Acetone | D7: -- | E7: 31000 | F7: -- | G7: 140000 | H7: -- | I7: 140000 | J7: 62000
B8: 75-05-8 | C8: Acetonitrile | D8: -- | E8: 60 | F8: -- | G8: 260 | H8: -- | I8: 260 | J8: --
B9: 107-02-8 | C9: Acrolein | D9: -- | E9: 0.35 | F9: -- | G9: 1.5 | H9: -- | I9: 1.5 | J9: 6.9
B10: 79-06-1 | C10: Acrylamide | D10: 0.0059 | E10: 6 | F10: 0.062 | G10: 26 | H10: 0.12 | I10: 26 | J10: --
B11: 79-10-7 | C11: Acrylic acid | D11: -- | E11: 1 | F11: -- | G11: 4.4 | H11: -- | I11: 4.4 | J11: 6000
B12: 107-13-1 | C12: Acrylonitrile | D12: 0.015 | E12: 5 | F12: 0.38 | G12: 22 | H12: 0.18 | I12: 22 | J12: 220
B13: 309-00-2 | C13: Aldrin | D13: 0.0002 | E13: -- | F13: 0.0053 | G13: -- | H13: 0.0024 | I13: -- | J13: --
B14: 107-05-1 | C14: Allyl chloride | D14: 0.17 | E14: 1 | F14: 4.3 | G14: 4.4 | H14: 2 | I14: 4.4 | J14: --
B15: 7429-90-5 | C15: Aluminum and compounds | D15: -- | E15: 5 | F15: -- | G15: 22 | H15: -- | I15: 22 | J15: --
B16: 7664-41-7 | C16: Ammonia | D16: -- | E16: 500 | F16: -- | G16: 2200 | H16: -- | I16: 2200 | J16: 1200
B17: 62-53-3 | C17: Aniline | D17: 0.63 | E17: 1 | F17: 16 | G17: 4.4 | H17: 7.5 | I17: 4.4 | J17: --
B18: 7440-36-0 | C18: Antimony and compounds | D18: -- | E18: 0.3 | F18: -- | G18: 1.3 | H18: -- | I18: 1.3 | J18: 1
B19: 140-57-8 | C19: Aramite | D19: 0.14 | E19: -- | F19: 3.7 | G19: -- | H19: 1.7 | I19: -- | J19: --
B20: 7440-38-2 | C20: Arsenic and compounds | D20: 2.4e-05 | E20: 0.00017 | F20: 0.0013 | G20: 0.0024 | H20: 0.00062 | I20: 0.0024 | J20: 0.2
B21: 7784-42-1 | C21: Arsine | D21: -- | E21: 0.015 | F21: -- | G21: 0.066 | H21: -- | I21: 0.066 | J21: 0.2
B22: 1332-21-4 | C22: Asbestos | D22: 4.3e-06 | E22: -- | F22: 0.00011 | G22: -- | H22: 5.2e-05 | I22: -- | J22: --
B23: 103-33-3 | C23: Azobenzene | D23: 0.032 | E23: -- | F23: 0.84 | G23: -- | H23: 0.39 | I23: -- | J23: --
B24: 71-43-2 | C24: Benzene | D24: 0.13 | E24: 3 | F24: 3.3 | G24: 13 | H24: 1.5 | I24: 13 | J24: 29
B25: 92-87-5 | C25: Benzidine (and its salts) | D25: 4.2e-06 | E25: -- | F25: 4.4e-05 | G25: -- | H25: 8.6e-05 | I25: -- | J25: --
B26: 100-44-7 | C26: Benzyl chloride | D26: 0.02 | E26: 1 | F26: 0.53 | G26: 4.4 | H26: 0.24 | I26: 4.4 | J26: 240
B27: 7440-41-7 | C27: Beryllium and compounds | D27: 0.00042 | E27: 0.007 | F27: 0.011 | G27: 0.031 | H27: 0.005 | I27: 0.031 | J27: 0.02
B28: 111-44-4 | C28: Bis(2-chloroethyl) ether (DCEE) | D28: 0.0014 | E28: -- | F28: 0.037 | G28: -- | H28: 0.017 | I28: -- | J28: 120
B29: 542-88-1 | C29: Bis(chloromethyl) ether | D29: 7.7e-05 | E29: -- | F29: 0.002 | G29: -- | H29: 0.00092 | I29: -- | J29: 1.4
B30: 117-81-7 | C30: Bis(2-ethylhexyl) phthalate (DEHP) | D30: 0.08 | E30: -- | F30: 11 | G30: -- | H30: 5 | I30: -- | J30: --
B31: 75-25-2 | C31: Bromoform | D31: 0.91 | E31: -- | F31: 24 | G31: -- | H31: 11 | I31: -- | J31: --
B32: 74-83-9 | C32: Bromomethane (Methyl bromide) | D32: -- | E32: 5 | F32: -- | G32: 22 | H32: -- | I32: 22 | J32: 3900
B33: 106-94-5 | C33: 1-Bromopropane (n-propyl bromide) | D33: 0.48 | E33: 33 | F33: 12 | G33: 150 | H33: 5.7 | I33: 150 | J33: 1700
B34: 106-99-0 | C34: 1,3-Butadiene | D34: 0.033 | E34: 2 | F34: 0.86 | G34: 8.8 | H34: 0.4 | I34: 8.8 | J34: 660
B35: 78-93-3 | C35: 2-Butanone (Methyl ethyl ketone) | D35: -- | E35: 5000 | F35: -- | G35: 22000 | H35: -- | I35: 22000 | J35: 5000
B36: 78-92-2 | C36: sec-Butyl alcohol | D36: -- | E36: 30000 | F36: -- | G36: 130000 | H36: -- | I36: 130000 | J36: --
B37: 7440-43-9 | C37: Cadmium and compounds | D37: 0.00056 | E37: 0.005 | F37: 0.014 | G37: 0.037 | H37: 0.0067 | I37: 0.037 | J37: 0.03
B38: 105-60-2 | C38: Caprolactam | D38: -- | E38: 2.2 | F38: -- | G38: 9.7 | H38: -- | I38: 9.7 | J38: 50
B39: 75-15-0 | C39: Carbon disulfide | D39: -- | E39: 800 | F39: -- | G39: 3500 | H39: -- | I39: 3500 | J39: 6200
B40: 56-23-5 | C40: Carbon tetrachloride | D40: 0.17 | E40: 100 | F40: 4.3 | G40: 440 | H40: 2 | I40: 440 | J40: 1900
B41: 463-58-1 | C41: Carbonyl sulfide | D41: -- | E41: 10 | F41: -- | G41: 44 | H41: -- | I41: 44 | J41: 660
B42: 57-74-9 | C42: Chlordane | D42: 0.01 | E42: 0.02 | F42: 0.26 | G42: 0.088 | H42: 0.12 | I42: 0.088 | J42: 0.2
B43: 108171-26-2 | C43: Chlorinated paraffins | D43: 0.04 | E43: -- | F43: 1 | G43: -- | H43: 0.48 | I43: -- | J43: --
B44: 7782-50-5 | C44: Chlorine | D44: -- | E44: 0.15 | F44: -- | G44: 0.66 | H44: -- | I44: 0.66 | J44: 170
B45: 10049-04-4 | C45: Chlorine dioxide | D45: -- | E45: 0.6 | F45: -- | G45: 2.6 | H45: -- | I45: 2.6 | J45: 2.8
B46: 532-27-4 | C46: 2-Chloroacetophenone | D46: -- | E46: 0.03 | F46: -- | G46: 0.13 | H46: -- | I46: 0.13 | J46: --
B47: 108-90-7 | C47: Chlorobenzene | D47: -- | E47: 50 | F47: -- | G47: 220 | H47: -- | I47: 220 | J47: --
B48: 75-68-3 | C48: 1-Chloro-1,1-difluoroethane | D48: -- | E48: 50000 | F48: -- | G48: 220000 | H48: -- | I48: 220000 | J48: --
B49: 75-45-6 | C49: Chlorodifluoromethane (Freon 22) | D49: -- | E49: 50000 | F49: -- | G49: 220000 | H49: -- | I49: 220000 | J49: --
B50: 75-00-3 | C50: Chloroethane (Ethyl chloride) | D50: -- | E50: 30000 | F50: -- | G50: 130000 | H50: -- | I50: 130000 | J50: 40000
B51: 67-66-3 | C51: Chloroform | D51: -- | E51: 300 | F51: -- | G51: 1300 | H51: -- | I51: 1300 | J51: 490
B52: 74-87-3 | C52: Chloromethane (Methyl chloride) | D52: -- | E52: 90 | F52: -- | G52: 400 | H52: -- | I52: 400 | J52: 1000
B53: 95-83-0 | C53: 4-Chloro-o-phenylenediamine | D53: 0.22 | E53: -- | F53: 5.7 | G53: -- | H53: 2.6 | I53: -- | J53: --
B54: 76-06-2 | C54: Chloropicrin | D54: -- | E54: 0.4 | F54: -- | G54: 1.8 | H54: -- | I54: 1.8 | J54: 29
B55: 126-99-8 | C55: Chloroprene | D55: 0.0033 | E55: 20 | F55: 0.087 | G55: 88 | H55: 0.04 | I55: 88 | J55: --
B56: 95-69-2 | C56: p-Chloro-o-toluidine | D56: 0.013 | E56: -- | F56: 0.34 | G56: -- | H56: 0.16 | I56: -- | J56: --
B57: 18540-29-9 | C57: Chromium VI, chromate and dichromate particulate | D57: 3.1e-05 | E57: 0.083 | F57: 0.00052 | G57: 0.88 | H57: 0.001 | I57: 0.88 | J57: 0.3
B58: 7738-94-5 | C58: Chromium VI, chromic acid aerosol mist | D58: 3.1e-05 | E58: 0.0021 | F58: 0.00052 | G58: 0.022 | H58: 0.001 | I58: 0.022 | J58: 0.005
B59: 7440-48-4 | C59: Cobalt and compounds | D59: -- | E59: 0.1 | F59: -- | G59: 0.44 | H59: -- | I59: 0.44 | J59: --
B60: 148 | C60: Coke Oven Emissions | D60: 0.00095 | E60: -- | F60: 0.01 | G60: -- | H60: 0.019 | I60: -- | J60: --
B61: 7440-50-8 | C61: Copper and compounds | D61: -- | E61: -- | F61: -- | G61: -- | H61: -- | I61: -- | J61: 100
B62: 120-71-8 | C62: p-Cresidine | D62: 0.023 | E62: -- | F62: 0.6 | G62: -- | H62: 0.28 | I62: -- | J62: --
B63: 1319-77-3 | C63: Cresols (mixture), including m-cresol, o-cresol, p-cresol | D63: -- | E63: 600 | F63: -- | G63: 2600 | H63: -- | I63: 2600 | J63: --
B64: 135-20-6 | C64: Cupferron | D64: 0.016 | E64: -- | F64: 0.41 | G64: -- | H64: 0.19 | I64: -- | J64: --
B65: 74-90-8 | C65: Cyanide, Hydrogen | D65: -- | E65: 0.8 | F65: -- | G65: 3.5 | H65: -- | I65: 3.5 | J65: 340
B66: 110-82-7 | C66: Cyclohexane | D66: -- | E66: 6000 | F66: -- | G66: 26000 | H66: -- | I66: 26000 | J66: --
B67: 50-29-3 | C67: DDT | D67: 0.01 | E67: -- | F67: 0.27 | G67: -- | H67: 0.12 | I67: -- | J67: --
B68: 615-05-4 | C68: 2,4-Diaminoanisole | D68: 0.15 | E68: -- | F68: 3.9 | G68: -- | H68: 1.8 | I68: -- | J68: --
B69: 95-80-7 | C69: 2,4-Diaminotoluene (2,4-Toluene diamine) | D69: 0.00091 | E69: -- | F69: 0.024 | G69: -- | H69: 0.011 | I69: -- | J69: --
B70: 333-41-5 | C70: Diazinon | D70: -- | E70: -- | F70: -- | G70: -- | H70: -- | I70: -- | J70: 10
B71: 96-12-8 | C71: 1,2-Dibromo-3-chloropropane (DBCP) | D71: 9.8e-05 | E71: 0.2 | F71: 0.001 | G71: 0.88 | H71: 0.002 | I71: 0.88 | J71: 1.9
B72: 106-46-7 | C72: p-Dichlorobenzene (1,4-Dichlorobenzene) | D72: 0.091 | E72: 60 | F72: 2.4 | G72: 260 | H72: 1.1 | I72: 260 | J72: 12000
B73: 91-94-1 | C73: 3,3'-Dichlorobenzidine | D73: 0.0029 | E73: -- | F73: 0.076 | G73: -- | H73: 0.035 | I73: -- | J73: --
B74: 75-34-3 | C74: 1,1-Dichloroethane (Ethylidene dichloride) | D74: 0.63 | E74: -- | F74: 16 | G74: -- | H74: 7.5 | I74: -- | J74: --
B75: 156-60-5 | C75: trans-1,2-dichloroethene | D75: -- | E75: -- | F75: -- | G75: -- | H75: -- | I75: -- | J75: 790
B76: 75-09-2 | C76: Dichloromethane (Methylene chloride) | D76: 59 | E76: 600 | F76: 620 | G76: 2600 | H76: 1200 | I76: 2600 | J76: 2100
B77: 78-87-5 | C77: 1,2-Dichloropropane (Propylene dichloride) | D77: -- | E77: 4 | F77: -- | G77: 18 | H77: -- | I77: 18 | J77: 230
B78: 542-75-6 | C78: 1,3-Dichloropropene | D78: 0.25 | E78: 32 | F78: 6.5 | G78: 140 | H78: 3 | I78: 140 | J78: 36
B79: 62-73-7 | C79: Dichlorovos (DDVP) | D79: -- | E79: 0.54 | F79: -- | G79: 2.4 | H79: -- | I79: 2.4 | J79: 18
B80: 60-57-1 | C80: Dieldrin | D80: 0.00022 | E80: -- | F80: 0.0057 | G80: -- | H80: 0.0026 | I80: -- | J80: --
B81: 200 | C81: Diesel Particulate Matter | D81: 0.1 | E81: 5 | F81: 2.6 | G81: 22 | H81: 1.2 | I81: 22 | J81: --
B82: 111-42-2 | C82: Diethanolamine | D82: -- | E82: 0.2 | F82: -- | G82: 0.88 | H82: -- | I82: 0.88 | J82: --
B83: 112-34-5 | C83: Diethylene glycol monobutyl ether | D83: -- | E83: 0.1 | F83: -- | G83: 0.44 | H83: -- | I83: 0.44 | J83: --
B84: 111-90-0 | C84: Diethylene glycol monoethyl ether | D84: -- | E84: 0.3 | F84: -- | G84: 1.3 | H84: -- | I84: 1.3 | J84: --
B85: 75-37-6 | C85: 1,1-Difluoroethane | D85: -- | E85: 40000 | F85: -- | G85: 180000 | H85: -- | I85: 180000 | J85: --
B86: 60-11-7 | C86: 4-Dimethylaminoazobenzene | D86: 0.00077 | E86: -- | F86: 0.02 | G86: -- | H86: 0.0092 | I86: -- | J86: --
B87: 68-12-2 | C87: Dimethyl formamide | D87: -- | E87: 80 | F87: -- | G87: 350 | H87: -- | I87: 350 | J87: --
B88: 57-14-7 | C88: 1,1-Dimethylhydrazine | D88: -- | E88: -- | F88: -- | G88: -- | H88: -- | I88: -- | J88: 0.49
B89: 121-14-2 | C89: 2,4-Dinitrotoluene | D89: 0.011 | E89: -- | F89: 0.29 | G89: -- | H89: 0.13 | I89: -- | J89: --
B90: 123-91-1 | C90: 1,4-Dioxane | D90: 0.2 | E90: 30 | F90: 5.2 | G90: 130 | H90: 2.4 | I90: 130 | J90: 7200
B91: 122-66-7 | C91: 1,2-Diphenylhydrazine (Hydrazobenzene) | D91: 0.0045 | E91: -- | F91: 0.12 | G91: -- | H91: 0.055 | I91: -- | J91: --
B92: 1937-37-7 | C92: Direct Black 38 | D92: 7.1e-06 | E92: -- | F92: 0.00019 | G92: -- | H92: 8.6e-05 | I92: -- | J92: --
B93: 2602-46-2 | C93: Direct Blue 6 | D93: 7.1e-06 | E93: -- | F93: 0.00019 | G93: -- | H93: 8.6e-05 | I93: -- | J93: --
B94: 16071-86-6 | C94: Direct Brown 95 (technical grade) | D94: 7.1e-06 | E94: -- | F94: 0.00019 | G94: -- | H94: 8.6e-05 | I94: -- | J94: --
B95: 298-04-4 | C95: Disulfoton | D95: -- | E95: -- | F95: -- | G95: -- | H95: -- | I95: -- | J95: 6
B96: 106-89-8 | C96: Epichlorohydrin | D96: 0.043 | E96: 3 | F96: 1.1 | G96: 13 | H96: 0.52 | I96: 13 | J96: 1300
B97: 106-88-7 | C97: 1,2-Epoxybutane | D97: -- | E97: 20 | F97: -- | G97: 88 | H97: -- | I97: 88 | J97: --
B98: 140-88-5 | C98: Ethyl acrylate | D98: -- | E98: 8 | F98: -- | G98: 35 | H98: -- | I98: 35 | J98: --
B99: 100-41-4 | C99: Ethyl benzene | D99: 0.4 | E99: 260 | F99: 10 | G99: 1100 | H99: 4.8 | I99: 1100 | J99: 22000
B100: 106-93-4 | C100: Ethylene dibromide (EDB, 1,2-Dibromoethane) | D100: 0.0017 | E100: 9 | F100: 0.043 | G100: 40 | H100: 0.02 | I100: 40 | J100: --
B101: 107-06-2 | C101: Ethylene dichloride (EDC, 1,2-Dichloroethane) | D101: 0.038 | E101: 7 | F101: 1 | G101: 31 | H101: 0.46 | I101: 31 | J101: --
B102: 107-21-1 | C102: Ethylene glycol | D102: -- | E102: 400 | F102: -- | G102: 1800 | H102: -- | I102: 1800 | J102: 2000
B103: 111-76-2 | C103: Ethylene glycol monobutyl ether | D103: -- | E103: 82 | F103: -- | G103: 360 | H103: -- | I103: 360 | J103: 29000
B104: 110-80-5 | C104: Ethylene glycol monoethyl ether | D104: -- | E104: 70 | F104: -- | G104: 310 | H104: -- | I104: 310 | J104: 370
B105: 111-15-9 | C105: Ethylene glycol monoethyl ether acetate | D105: -- | E105: 60 | F105: -- | G105: 260 | H105: -- | I105: 260 | J105: 140
B106: 109-86-4 | C106: Ethylene glycol monomethyl ether | D106: -- | E106: 60 | F106: -- | G106: 260 | H106: -- | I106: 260 | J106: 93
B107: 110-49-6 | C107: Ethylene glycol monomethyl ether acetate | D107: -- | E107: 1 | F107: -- | G107: 4.4 | H107: -- | I107: 4.4 | J107: --
B108: 75-21-8 | C108: Ethylene oxide | D108: 0.0002 | E108: 30 | F108: 0.0021 | G108: 130 | H108: 0.004 | I108: 130 | J108: 160
B109: 96-45-7 | C109: Ethylene thiourea | D109: 0.077 | E109: -- | F109: 2 | G109: -- | H109: 0.92 | I109: -- | J109: --
B110: 239 | C110: Fluorides | D110: -- | E110: 2.3 | F110: -- | G110: 20 | H110: -- | I110: 20 | J110: 240
B111: 7782-41-4 | C111: Fluorine gas | D111: -- | E111: -- | F111: -- | G111: -- | H111: -- | I111: -- | J111: 16
B112: 50-00-0 | C112: Formaldehyde | D112: 0.17 | E112: 9 | F112: 4.3 | G112: 40 | H112: 2 | I112: 40 | J112: 49
B113: 111-30-8 | C113: Glutaraldehyde | D113: -- | E113: 0.08 | F113: -- | G113: 0.35 | H113: -- | I113: 0.35 | J113: 4.1
B114: 76-44-8 | C114: Heptachlor | D114: 0.00077 | E114: -- | F114: 0.02 | G114: -- | H114: 0.0092 | I114: -- | J114: --
B115: 1024-57-3 | C115: Heptachlor epoxide | D115: 0.00038 | E115: -- | F115: 0.01 | G115: -- | H115: 0.0046 | I115: -- | J115: --
B116: 118-74-1 | C116: Hexachlorobenzene | D116: 0.002 | E116: -- | F116: 0.051 | G116: -- | H116: 0.024 | I116: -- | J116: --
B117: 87-68-3 | C117: Hexachlorobutadiene | D117: 0.045 | E117: -- | F117: 1.2 | G117: -- | H117: 0.55 | I117: -- | J117: --
B118: 608-73-1 | C118: Hexachlorocyclohexanes (mixture) including but not limited to: | D118: 0.00017 | E118: -- | F118: 0.018 | G118: -- | H118: 0.0084 | I118: -- | J118: --
B119: 319-84-6 | C119: Hexachlorocyclohexane, alpha- | D119: 0.00017 | E119: -- | F119: 0.018 | G119: -- | H119: 0.0084 | I119: -- | J119: --
B120: 319-85-7 | C120: Hexachlorocyclohexane, beta- | D120: 0.00017 | E120: -- | F120: 0.018 | G120: -- | H120: 0.0084 | I120: -- | J120: --
B121: 58-89-9 | C121: Hexachlorocyclohexane, gamma- (Lindane) | D121: 0.0006 | E121: -- | F121: 0.065 | G121: -- | H121: 0.03 | I121: -- | J121: --
B122: 77-47-4 | C122: Hexachlorocyclopentadiene | D122: -- | E122: 0.2 | F122: -- | G122: 0.88 | H122: -- | I122: 0.88 | J122: 110
B123: 67-72-1 | C123: Hexachloroethane | D123: -- | E123: 30 | F123: -- | G123: 130 | H123: -- | I123: 130 | J123: 58000
B124: 822-06-0 | C124: Hexamethylene-1,6-diisocyanate | D124: -- | E124: 0.069 | F124: -- | G124: 0.3 | H124: -- | I124: 0.3 | J124: 0.21
B125: 110-54-3 | C125: Hexane | D125: -- | E125: 700 | F125: -- | G125: 3100 | H125: -- | I125: 3100 | J125: --
B126: 302-01-2 | C126: Hydrazine | D126: 0.0002 | E126: 0.03 | F126: 0.0053 | G126: 0.13 | H126: 0.0024 | I126: 0.13 | J126: 5.2
B127: 7647-01-0 | C127: Hydrochloric acid | D127: -- | E127: 20 | F127: -- | G127: 88 | H127: -- | I127: 88 | J127: 2100
B128: 7664-39-3 | C128: Hydrogen fluoride | D128: -- | E128: 2.1 | F128: -- | G128: 19 | H128: -- | I128: 19 | J128: 16
B129: 7783-06-4 | C129: Hydrogen sulfide | D129: -- | E129: 2 | F129: -- | G129: 8.8 | H129: -- | I129: 8.8 | J129: 98
B130: 78-59-1 | C130: Isophorone | D130: -- | E130: 2000 | F130: -- | G130: 8800 | H130: -- | I130: 8800 | J130: --
B131: 67-63-0 | C131: Isopropyl alcohol | D131: -- | E131: 200 | F131: -- | G131: 880 | H131: -- | I131: 880 | J131: 3200
B132: 98-82-8 | C132: Isopropylbenzene (Cumene) | D132: -- | E132: 400 | F132: -- | G132: 1800 | H132: -- | I132: 1800 | J132: --
B133: 7439-92-1 | C133: Lead and compounds | D133: -- | E133: 0.15 | F133: -- | G133: 0.66 | H133: -- | I133: 0.66 | J133: 0.15
B134: 108-31-6 | C134: Maleic anhydride | D134: -- | E134: 0.7 | F134: -- | G134: 3.1 | H134: -- | I134: 3.1 | J134: --
B135: 7439-96-5 | C135: Manganese and compounds | D135: -- | E135: 0.09 | F135: -- | G135: 0.4 | H135: -- | I135: 0.4 | J135: 0.3
B136: 7439-97-6 | C136: Mercury and compounds | D136: -- | E136: 0.077 | F136: -- | G136: 0.63 | H136: -- | I136: 0.63 | J136: 0.6
B137: 67-56-1 | C137: Methanol | D137: -- | E137: 4000 | F137: -- | G137: 18000 | H137: -- | I137: 18000 | J137: 28000
B138: 101-14-4 | C138: 4,4'-Methylene bis(2-chloroaniline) (MOCA) | D138: 0.0023 | E138: -- | F138: 0.06 | G138: -- | H138: 0.028 | I138: -- | J138: --
B139: 101-77-9 | C139: 4,4'-Methylenedianiline (and its dichloride) | D139: 0.0003 | E139: 20 | F139: 0.023 | G139: 88 | H139: 0.01 | I139: 88 | J139: --
B140: 101-68-8 | C140: Methylene diphenyl diisocyanate (MDI) | D140: -- | E140: 0.08 | F140: -- | G140: 0.35 | H140: -- | I140: 0.35 | J140: 12
B141: 108-10-1 | C141: Methyl isobutyl ketone (MIBK, Hexone) | D141: -- | E141: 3000 | F141: -- | G141: 13000 | H141: -- | I141: 13000 | J141: --
B142: 624-83-9 | C142: Methyl isocyanate | D142: -- | E142: 1 | F142: -- | G142: 4.4 | H142: -- | I142: 4.4 | J142: --
B143: 80-62-6 | C143: Methyl methacrylate | D143: -- | E143: 700 | F143: -- | G143: 3100 | H143: -- | I143: 3100 | J143: --
B144: 1634-04-4 | C144: Methyl tert-butyl ether | D144: 3.8 | E144: 8000 | F144: 100 | G144: 35000 | H144: 46 | I144: 35000 | J144: 8000
B145: 90-94-8 | C145: Michler's ketone | D145: 0.004 | E145: -- | F145: 0.1 | G145: -- | H145: 0.048 | I145: -- | J145: --
B146: 91-20-3 | C146: Naphthalene | D146: 0.029 | E146: 3.7 | F146: 0.76 | G146: 16 | H146: 0.35 | I146: 16 | J146: 200
B147: 365 | C147: Nickel compounds, insoluble | D147: 0.0038 | E147: 0.014 | F147: 0.1 | G147: 0.062 | H147: 0.046 | I147: 0.062 | J147: 0.2
B148: 368 | C148: Nickel compounds, soluble | D148: -- | E148: 0.014 | F148: -- | G148: 0.062 | H148: -- | I148: 0.062 | J148: 0.2
B149: 7697-37-2 | C149: Nitric acid | D149: -- | E149: -- | F149: -- | G149: -- | H149: -- | I149: -- | J149: 86
B150: 98-95-3 | C150: Nitrobenzene | D150: 0.025 | E150: 9 | F150: 0.65 | G150: 40 | H150: 0.3 | I150: 40 | J150: --
B151: 79-46-9 | C151: 2-Nitropropane | D151: -- | E151: 20 | F151: -- | G151: 88 | H151: -- | I151: 88 | J151: --
B152: 924-16-3 | C152: N-Nitrosodi-n-butylamine | D152: 0.00032 | E152: -- | F152: 0.0084 | G152: -- | H152: 0.0039 | I152: -- | J152: --
B153: 55-18-5 | C153: N-Nitrosodiethylamine | D153: 5.9e-05 | E153: -- | F153: 0.00062 | G153: -- | H153: 0.0012 | I153: -- | J153: --
B154: 62-75-9 | C154: N-Nitrosodimethylamine | D154: 0.00013 | E154: -- | F154: 0.0013 | G154: -- | H154: 0.0026 | I154: -- | J154: --
B155: 86-30-6 | C155: N-Nitrosodiphenylamine | D155: 0.38 | E155: -- | F155: 10 | G155: -- | H155: 4.6 | I155: -- | J155: --
B156: 156-10-5 | C156: p-Nitrosodiphenylamine | D156: 0.16 | E156: -- | F156: 4.1 | G156: -- | H156: 1.9 | I156: -- | J156: --
B157: 621-64-7 | C157: N-Nitrosodi-n-propylamine | D157: 0.0005 | E157: -- | F157: 0.013 | G157: -- | H157: 0.006 | I157: -- | J157: --
B158: 10595-95-6 | C158: N-Nitrosomethylethylamine | D158: 0.00016 | E158: -- | F158: 0.0041 | G158: -- | H158: 0.0019 | I158: -- | J158: --
B159: 59-89-2 | C159: N-Nitrosomorpholine | D159: 0.00053 | E159: -- | F159: 0.014 | G159: -- | H159: 0.0063 | I159: -- | J159: --
B160: 100-75-4 | C160: N-Nitrosopiperidine | D160: 0.00037 | E160: -- | F160: 0.0096 | G160: -- | H160: 0.0044 | I160: -- | J160: --
B161: 930-55-2 | C161: N-Nitrosopyrrolidine | D161: 0.0017 | E161: -- | F161: 0.043 | G161: -- | H161: 0.02 | I161: -- | J161: --
B162: 8014-95-7 | C162: Oleum (fuming sulfuric acid) | D162: -- | E162: -- | F162: -- | G162: -- | H162: -- | I162: -- | J162: 120
B163: 56-38-2 | C163: Parathion | D163: -- | E163: -- | F163: -- | G163: -- | H163: -- | I163: -- | J163: 0.02
B164: 87-86-5 | C164: Pentachlorophenol | D164: 0.2 | E164: -- | F164: 5.1 | G164: -- | H164: 2.4 | I164: -- | J164: --
B165: 108-95-2 | C165: Phenol | D165: -- | E165: 200 | F165: -- | G165: 880 | H165: -- | I165: 880 | J165: 5800
B166: 75-44-5 | C166: Phosgene | D166: -- | E166: 0.3 | F166: -- | G166: 1.3 | H166: -- | I166: 1.3 | J166: 4
B167: 7803-51-2 | C167: Phosphine | D167: -- | E167: 0.8 | F167: -- | G167: 3.5 | H167: -- | I167: 3.5 | J167: --
B168: 7664-38-2 | C168: Phosphoric acid | D168: -- | E168: 10 | F168: -- | G168: 44 | H168: -- | I168: 44 | J168: --
B169: 12185-10-3 | C169: Phosphorus, white | D169: -- | E169: 9 | F169: -- | G169: 40 | H169: -- | I169: 40 | J169: 20
B170: 85-44-9 | C170: Phthalic anhydride | D170: -- | E170: 20 | F170: -- | G170: 88 | H170: -- | I170: 88 | J170: --
B171: 447 | C171: Polybrominated diphenyl ethers (PBDEs) | D171: -- | E171: -- | F171: -- | G171: -- | H171: -- | I171: -- | J171: 6
B172: 1336-36-3 | C172: Polychlorinated biphenyls (PCBs) | D172: 0.00053 | E172: -- | F172: 0.02 | G172: -- | H172: 0.0092 | I172: -- | J172: --
B173: 645 | C173: Polychlorinated biphenyls (PCBs) TEQ | D173: 1e-09 | E173: 1.3e-07 | F173: 9e-08 | G173: 2.6e-05 | H173: 4.2e-08 | I173: 2.6e-05 | J173: --
B174: 32598-13-3 | C174: PCB 77 [3,3',4,4'-tetrachlorobiphenyl] | D174: 1e-05 | E174: 0.0013 | F174: 0.0009 | G174: 0.26 | H174: 0.00042 | I174: 0.26 | J174: --
B175: 70362-50-4 | C175: PCB 81 [3,4,4',5-tetrachlorobiphenyl] | D175: 3.4e-06 | E175: 0.00042 | F175: 0.0003 | G175: 0.085 | H175: 0.00014 | I175: 0.085 | J175: --
B176: 32598-14-4 | C176: PCB 105 [2,3,3',4,4'-pentachlorobiphenyl] | D176: 3.4e-05 | E176: 0.0042 | F176: 0.003 | G176: 0.85 | H176: 0.0014 | I176: 0.85 | J176: --
B177: 74472-37-0 | C177: PCB 114 [2,3,4,4',5-pentachlorobiphenyl] | D177: 3.4e-05 | E177: 0.0042 | F177: 0.003 | G177: 0.85 | H177: 0.0014 | I177: 0.85 | J177: --
B178: 31508-00-6 | C178: PCB 118 [2,3',4,4',5-pentachlorobiphenyl] | D178: 3.4e-05 | E178: 0.0042 | F178: 0.003 | G178: 0.85 | H178: 0.0014 | I178: 0.85 | J178: --
B179: 65510-44-3 | C179: PCB 123 [2,3',4,4',5'-pentachlorobiphenyl] | D179: 3.4e-05 | E179: 0.0042 | F179: 0.003 | G179: 0.85 | H179: 0.0014 | I179: 0.85 | J179: --
B180: 57465-28-8 | C180: PCB 126 [3,3',4,4',5-pentachlorobiphenyl] | D180: 1e-08 | E180: 1.3e-06 | F180: 9e-07 | G180: 0.00026 | H180: 4.2e-07 | I180: 0.00026 | J180: --
B181: 38380-08-4 | C181: PCB 156 [2,3,3',4,4',5-hexachlorobiphenyl] | D181: 3.4e-05 | E181: 0.0042 | F181: 0.003 | G181: 0.85 | H181: 0.0014 | I181: 0.85 | J181: --
B182: 69782-90-7 | C182: PCB 157 [2,3,3',4,4',5'-hexachlorobiphenyl] | D182: 3.4e-05 | E182: 0.0042 | F182: 0.003 | G182: 0.85 | H182: 0.0014 | I182: 0.85 | J182: --
B183: 52663-72-6 | C183: PCB 167 [2,3',4,4',5,5'-hexachlorobiphenyl] | D183: 3.4e-05 | E183: 0.0042 | F183: 0.003 | G183: 0.85 | H183: 0.0014 | I183: 0.85 | J183: --
B184: 32774-16-6 | C184: PCB 169 [3,3',4,4',5,5'-hexachlorobiphenyl] | D184: 3.4e-08 | E184: 4.2e-06 | F184: 3e-06 | G184: 0.00085 | H184: 1.4e-06 | I184: 0.00085 | J184: --
B185: 39635-31-9 | C185: PCB 189 [2,3,3',4,4',5,5'-heptachlorobiphenyl] | D185: 0.00088 | E185: 1.3 | F185: 0.023 | G185: 5.7 | H185: 0.011 | I185: 5.7 | J185: --
B186: 646 | C186: Polychlorinated dibenzo-p-dioxins (PCDDs) & dibenzofurans (PCDFs) TEQ | D186: 1e-09 | E186: 1.3e-07 | F186: 9e-08 | G186: 2.6e-05 | H186: 4.2e-08 | I186: 2.6e-05 | J186: --
B187: 1746-01-6 | C187: 2,3,7,8-Tetrachlorodibenzo-p-dioxin (TCDD) | D187: 1e-09 | E187: 1.3e-07 | F187: 9e-08 | G187: 2.6e-05 | H187: 4.2e-08 | I187: 2.6e-05 | J187: --
B188: 40321-76-4 | C188: 1,2,3,7,8-Pentachlorodibenzo-p-dioxin (PeCDD) | D188: 1e-09 | E188: 1.3e-07 | F188: 9e-08 | G188: 2.6e-05 | H188: 4.2e-08 | I188: 2.6e-05 | J188: --
B189: 39227-28-6 | C189: 1,2,3,4,7,8-Hexachlorodibenzo-p-dioxin (HxCDD) | D189: 1e-08 | E189: 1.3e-06 | F189: 9e-07 | G189: 0.00026 | H189: 4.2e-07 | I189: 0.00026 | J189: --
B190: 57653-85-7 | C190: 1,2,3,6,7,8-Hexachlorodibenzo-p-dioxin (HxCDD) | D190: 1e-08 | E190: 1.3e-06 | F190: 9e-07 | G190: 0.00026 | H190: 4.2e-07 | I190: 0.00026 | J190: --
B191: 19408-74-3 | C191: 1,2,3,7,8,9-Hexachlorodibenzo-p-dioxin (HxCDD) | D191: 1e-08 | E191: 1.3e-06 | F191: 9e-07 | G191: 0.00026 | H191: 4.2e-07 | I191: 0.00026 | J191: --
B192: 35822-46-9 | C192: 1,2,3,4,6,7,8-Heptachlorodibenzo-p-dioxin (HpCDD) | D192: 1e-07 | E192: 1.3e-05 | F192: 9e-06 | G192: 0.0026 | H192: 4.2e-06 | I192: 0.0026 | J192: --
B193: 3268-87-9 | C193: Octachlorodibenzo-p-dioxin (OCDD) | D193: 3.4e-06 | E193: 0.00042 | F193: 0.0003 | G193: 0.085 | H193: 0.00014 | I193: 0.085 | J193: --
B194: 51207-31-9 | C194: 2,3,7,8-Tetrachlorodibenzofuran (TcDF) | D194: 1e-08 | E194: 1.3e-06 | F194: 9e-07 | G194: 0.00026 | H194: 4.2e-07 | I194: 0.00026 | J194: --
B195: 57117-41-6 | C195: 1,2,3,7,8-Pentachlorodibenzofuran (PeCDF) | D195: 3.4e-08 | E195: 4.2e-06 | F195: 3e-06 | G195: 0.00085 | H195: 1.4e-06 | I195: 0.00085 | J195: --
B196: 57117-31-4 | C196: 2,3,4,7,8-Pentachlorodibenzofuran (PeCDF) | D196: 3.4e-09 | E196: 4.2e-07 | F196: 3e-07 | G196: 8.5e-05 | H196: 1.4e-07 | I196: 8.5e-05 | J196: --
B197: 70648-26-9 | C197: 1,2,3,4,7,8-Hexachlorodibenzofuran (HxCDF) | D197: 1e-08 | E197: 1.3e-06 | F197: 9e-07 | G197: 0.00026 | H197: 4.2e-07 | I197: 0.00026 | J197: --
B198: 57117-44-9 | C198: 1,2,3,6,7,8-Hexachlorodibenzofuran (HxCDF) | D198: 1e-08 | E198: 1.3e-06 | F198: 9e-07 | G198: 0.00026 | H198: 4.2e-07 | I198: 0.00026 | J198: --
B199: 72918-21-9 | C199: 1,2,3,7,8,9-Hexachlorodibenzofuran (HxCDF) | D199: 1e-08 | E199: 1.3e-06 | F199: 9e-07 | G199: 0.00026 | H199: 4.2e-07 | I199: 0.00026 | J199: --
B200: 60851-34-5 | C200: 2,3,4,6,7,8-Hexachlorodibenzofuran (HxCDF) | D200: 1e-08 | E200: 1.3e-06 | F200: 9e-07 | G200: 0.00026 | H200: 4.2e-07 | I200: 0.00026 | J200: --
B201: 67562-39-4 | C201: 1,2,3,4,6,7,8-Heptachlorodibenzofuran (HpCDF) | D201: 1e-07 | E201: 1.3e-05 | F201: 9e-06 | G201: 0.0026 | H201: 4.2e-06 | I201: 0.0026 | J201: --
... 64 more rows

Sheet TACs
B2: Chemical | C2: CAS# | D2: RBC?
B3: Acetaldehyde | C3: 75-07-0
B4: Acetamide | C4: 60-35-5
B5: Acetone | C5: 67-64-1
B6: Acetonitrile | C6: 75-05-8
B7: Acetophenone | C7: 98-86-2 | D7: =IFERROR(VLOOKUP(C7,RBCs!$B$5:$C$265,2,FALSE),"NoRBC") -> NoRBC
B8: Acrolein | C8: 107-02-8
B9: Acrylamide | C9: 79-06-1
B10: Acrylic acid | C10: 79-10-7
B11: Acrylonitrile | C11: 107-13-1
B12: Actinomycin D | C12: 50-76-0 | D12: =IFERROR(VLOOKUP(C12,RBCs!$B$5:$C$265,2,FALSE),"NoRBC") -> NoRBC
B13: Alar | C13: 1596-84-5 | D13: =IFERROR(VLOOKUP(C13,RBCs!$B$5:$C$265,2,FALSE),"NoRBC") -> NoRBC
B14: Aldrin | C14: 309-00-2
B15: Allyl chloride | C15: 107-05-1
B16: Aluminum and compounds | C16: 7429-90-5
B17: Aluminum oxide (fibrous forms) | C17: 1344-28-1 | D17: =IFERROR(VLOOKUP(C17,RBCs!$B$5:$C$265,2,FALSE),"NoRBC") -> NoRBC
B18: ortho-Aminoazotoluene | C18: 97-56-3 | D18: =IFERROR(VLOOKUP(C18,RBCs!$B$5:$C$265,2,FALSE),"NoRBC") -> NoRBC
B19: 3-Amino-9-ethylcarbazole hydrochloride | C19: 6109-97-3 | D19: =IFERROR(VLOOKUP(C19,RBCs!$B$5:$C$265,2,FALSE),"NoRBC") -> NoRBC
B20: 2-Amino-3-methyl-9H pyrido[2,3-b]indole | C20: 68006-83-7 | D20: =IFERROR(VLOOKUP(C20,RBCs!$B$5:$C$265,2,FALSE),"NoRBC") -> NoRBC
B21: 1-Amino-2-methylanthraquinone | C21: 82-28-0 | D21: =IFERROR(VLOOKUP(C21,RBCs!$B$5:$C$265,2,FALSE),"NoRBC") -> NoRBC
B22: 2-Amino-3-methylimidazo-[4,5-f]quinoline | C22: 76180-96-6 | D22: =IFERROR(VLOOKUP(C22,RBCs!$B$5:$C$265,2,FALSE),"NoRBC") -> NoRBC
B23: 2-Amino-5-(5-Nitro-2-Furyl)-1,3,4-Thiadiazol | C23: 712-68-5 | D23: =IFERROR(VLOOKUP(C23,RBCs!$B$5:$C$265,2,FALSE),"NoRBC") -> NoRBC
B24: A-alpha-c(2-amino-9h-pyrido[2,3-b]indole) | C24: 26148-68-5 | D24: =IFERROR(VLOOKUP(C24,RBCs!$B$5:$C$265,2,FALSE),"NoRBC") -> NoRBC
B25: 4-Aminobiphenyl | C25: 92-67-1 | D25: =IFERROR(VLOOKUP(C25,RBCs!$B$5:$C$265,2,FALSE),"NoRBC") -> NoRBC
B26: Amitrole | C26: 61-82-5 | D26: =IFERROR(VLOOKUP(C26,RBCs!$B$5:$C$265,2,FALSE),"NoRBC") -> NoRBC
B27: Ammonia | C27: 7664-41-7
B28: Ammonium bisulfate | C28: 7803-63-6 | D28: =IFERROR(VLOOKUP(C28,RBCs!$B$5:$C$265,2,FALSE),"NoRBC") -> NoRBC
B29: Ammonium nitrate | C29: 6484-52-2 | D29: =IFERROR(VLOOKUP(C29,RBCs!$B$5:$C$265,2,FALSE),"NoRBC") -> NoRBC
B30: Ammonium sulfate | C30: 7783-20-2 | D30: =IFERROR(VLOOKUP(C30,RBCs!$B$5:$C$265,2,FALSE),"NoRBC") -> NoRBC
B31: Aniline | C31: 62-53-3
B32: o-Anisidine | C32: 90-04-0 | D32: =IFERROR(VLOOKUP(C32,RBCs!$B$5:$C$265,2,FALSE),"NoRBC") -> NoRBC
B33: o-Anisidine hydrochloride | C33: 134-29-2 | D33: =IFERROR(VLOOKUP(C33,RBCs!$B$5:$C$265,2,FALSE),"NoRBC") -> NoRBC
B34: Antimony and compounds | C34: 7440-36-0
B35: Antimony trioxide | C35: 1309-64-4 | D35: =IFERROR(VLOOKUP(C35,RBCs!$B$5:$C$265,2,FALSE),"NoRBC") -> NoRBC
B36: Aramite | C36: 140-57-8
B37: Arsenic and compounds | C37: 7440-38-2
B38: Arsine | C38: 7784-42-1
B39: Asbestos | C39: 1332-21-4
B40: Auramine | C40: 492-80-8 | D40: =IFERROR(VLOOKUP(C40,RBCs!$B$5:$C$265,2,FALSE),"NoRBC") -> NoRBC
B41: Azaserine | C41: 115-02-6 | D41: =IFERROR(VLOOKUP(C41,RBCs!$B$5:$C$265,2,FALSE),"NoRBC") -> NoRBC
B42: Azathioprine | C42: 446-86-6 | D42: =IFERROR(VLOOKUP(C42,RBCs!$B$5:$C$265,2,FALSE),"NoRBC") -> NoRBC
B43: Tris-(1-Aziridinyl)phosphine sulfide | C43: 52-24-4 | D43: =IFERROR(VLOOKUP(C43,RBCs!$B$5:$C$265,2,FALSE),"NoRBC") -> NoRBC
B44: Azobenzene | C44: 103-33-3
B45: Barium and compounds | C45: 7440-39-3 | D45: =IFERROR(VLOOKUP(C45,RBCs!$B$5:$C$265,2,FALSE),"NoRBC") -> NoRBC
B46: Benzene | C46: 71-43-2
B47: Benzidine (and its salts) | C47: 92-87-5
B48: Benzofuran | C48: 271-89-6 | D48: =IFERROR(VLOOKUP(C48,RBCs!$B$5:$C$265,2,FALSE),"NoRBC") -> NoRBC
B49: Benzoic trichloride (Benzotrichloride) | C49: 98-07-7 | D49: =IFERROR(VLOOKUP(C49,RBCs!$B$5:$C$265,2,FALSE),"NoRBC") -> NoRBC
B50: Benzoyl chloride | C50: 98-88-4 | D50: =IFERROR(VLOOKUP(C50,RBCs!$B$5:$C$265,2,FALSE),"NoRBC") -> NoRBC
B51: Benzoyl peroxide | C51: 94-36-0 | D51: =IFERROR(VLOOKUP(C51,RBCs!$B$5:$C$265,2,FALSE),"NoRBC") -> NoRBC
B52: Benzyl chloride | C52: 100-44-7
B53: Benzyl Violet 4B | C53: 1694-09-3 | D53: =IFERROR(VLOOKUP(C53,RBCs!$B$5:$C$265,2,FALSE),"NoRBC") -> NoRBC
B54: Beryllium and compounds | C54: 7440-41-7
B55: Beryllium Oxide | C55: 1304-56-9 | D55: =IFERROR(VLOOKUP(C55,RBCs!$B$5:$C$265,2,FALSE),"NoRBC") -> NoRBC
B56: Beryllium Sulfate | C56: 13510-49-1 | D56: =IFERROR(VLOOKUP(C56,RBCs!$B$5:$C$265,2,FALSE),"NoRBC") -> NoRBC
B57: Biphenyl | C57: 92-52-4 | D57: =IFERROR(VLOOKUP(C57,RBCs!$B$5:$C$265,2,FALSE),"NoRBC") -> NoRBC
B58: Bis(2-chloroethyl) ether (DCEE) | C58: 111-44-4
B59: Bis(chloromethyl) ether | C59: 542-88-1
B60: Bis(2-ethylhexyl) adipate | C60: 103-23-1 | D60: =IFERROR(VLOOKUP(C60,RBCs!$B$5:$C$265,2,FALSE),"NoRBC") -> NoRBC
B61: Bis(2-ethylhexyl) phthalate (DEHP) | C61: 117-81-7
B62: Bromine and compounds | C62: 7726-95-6 | D62: =IFERROR(VLOOKUP(C62,RBCs!$B$5:$C$265,2,FALSE),"NoRBC") -> NoRBC
B63: Bromine pentafluoride | C63: 7789-30-2 | D63: =IFERROR(VLOOKUP(C63,RBCs!$B$5:$C$265,2,FALSE),"NoRBC") -> NoRBC
B64: Bromodichloromethane | C64: 75-27-4 | D64: =IFERROR(VLOOKUP(C64,RBCs!$B$5:$C$265,2,FALSE),"NoRBC") -> NoRBC
B65: Bromoform | C65: 75-25-2
B66: Bromomethane (Methyl bromide) | C66: 74-83-9
B67: 1-Bromopropane (n-propyl bromide) | C67: 106-94-5
B68: Tris(2,3-dibromopropyl)phosphate | C68: 126-72-7 | D68: =IFERROR(VLOOKUP(C68,RBCs!$B$5:$C$265,2,FALSE),"NoRBC") -> NoRBC
B69: 1,3-Butadiene | C69: 106-99-0
B70: 2-Butanone (Methyl ethyl ketone) | C70: 78-93-3
B71: t-Butyl acetate | C71: 540-88-5 | D71: =IFERROR(VLOOKUP(C71,RBCs!$B$5:$C$265,2,FALSE),"NoRBC") -> NoRBC
B72: Butyl acrylate | C72: 141-32-2 | D72: =IFERROR(VLOOKUP(C72,RBCs!$B$5:$C$265,2,FALSE),"NoRBC") -> NoRBC
B73: n-Butyl alcohol | C73: 71-36-3 | D73: =IFERROR(VLOOKUP(C73,RBCs!$B$5:$C$265,2,FALSE),"NoRBC") -> NoRBC
B74: sec-Butyl alcohol | C74: 78-92-2
B75: tert-Butyl alcohol | C75: 75-65-0 | D75: =IFERROR(VLOOKUP(C75,RBCs!$B$5:$C$265,2,FALSE),"NoRBC") -> NoRBC
B76: Butyl benzyl phthalate | C76: 85-68-7 | D76: =IFERROR(VLOOKUP(C76,RBCs!$B$5:$C$265,2,FALSE),"NoRBC") -> NoRBC
B77: Butylated hydroxyanisole | C77: 25013-16-5 | D77: =IFERROR(VLOOKUP(C77,RBCs!$B$5:$C$265,2,FALSE),"NoRBC") -> NoRBC
B78: beta-Butyrolactone | C78: 3068-88-0 | D78: =IFERROR(VLOOKUP(C78,RBCs!$B$5:$C$265,2,FALSE),"NoRBC") -> NoRBC
B79: Cadmium and compounds | C79: 7440-43-9
B80: Calcium cyanamide | C80: 156-62-7 | D80: =IFERROR(VLOOKUP(C80,RBCs!$B$5:$C$265,2,FALSE),"NoRBC") -> NoRBC
B81: Caprolactam | C81: 105-60-2
B82: Captafol | C82: 2425-06-1 | D82: =IFERROR(VLOOKUP(C82,RBCs!$B$5:$C$265,2,FALSE),"NoRBC") -> NoRBC
B83: Captan | C83: 133-06-2 | D83: =IFERROR(VLOOKUP(C83,RBCs!$B$5:$C$265,2,FALSE),"NoRBC") -> NoRBC
B84: Carbon black extracts | C84: 89 | D84: =IFERROR(VLOOKUP(C84,RBCs!$B$5:$C$265,2,FALSE),"NoRBC") -> NoRBC
B85: Carbon disulfide | C85: 75-15-0
B86: Carbon tetrachloride | C86: 56-23-5
B87: Carbonyl sulfide | C87: 463-58-1
B88: Carrageenan (degraded) | C88: 9000-07-1 | D88: =IFERROR(VLOOKUP(C88,RBCs!$B$5:$C$265,2,FALSE),"NoRBC") -> NoRBC
B89: Catechol | C89: 120-80-9 | D89: =IFERROR(VLOOKUP(C89,RBCs!$B$5:$C$265,2,FALSE),"NoRBC") -> NoRBC
B90: Ceramic fibers | C90: 351 | D90: =IFERROR(VLOOKUP(C90,RBCs!$B$5:$C$265,2,FALSE),"NoRBC") -> NoRBC
B91: Chloramben | C91: 133-90-4 | D91: =IFERROR(VLOOKUP(C91,RBCs!$B$5:$C$265,2,FALSE),"NoRBC") -> NoRBC
B92: Chlorambucil | C92: 305-03-3 | D92: =IFERROR(VLOOKUP(C92,RBCs!$B$5:$C$265,2,FALSE),"NoRBC") -> NoRBC
B93: Chlordane | C93: 57-74-9
B94: Chlordecone | C94: 143-50-0 | D94: =IFERROR(VLOOKUP(C94,RBCs!$B$5:$C$265,2,FALSE),"NoRBC") -> NoRBC
B95: Chlorendic Acid | C95: 115-28-6 | D95: =IFERROR(VLOOKUP(C95,RBCs!$B$5:$C$265,2,FALSE),"NoRBC") -> NoRBC
B96: Chlorinated fluorocarbon (1,1,2-Trichloro-1,2,2-trifluoroethane, CFC-113) | C96: 76-13-1 | D96: =IFERROR(VLOOKUP(C96,RBCs!$B$5:$C$265,2,FALSE),"NoRBC") -> NoRBC
B97: Chlorinated paraffins | C97: 108171-26-2
B98: Chlorine | C98: 7782-50-5
B99: Chlorine dioxide | C99: 10049-04-4
B100: Chloroacetic acid | C100: 79-11-8 | D100: =IFERROR(VLOOKUP(C100,RBCs!$B$5:$C$265,2,FALSE),"NoRBC") -> NoRBC
B101: 2-Chloroacetophenone | C101: 532-27-4
B102: Chloroalkanes C10-13 (Chlorinated paraffins) | C102: 85535-84-8 | D102: =IFERROR(VLOOKUP(C102,RBCs!$B$5:$C$265,2,FALSE),"NoRBC") -> NoRBC
B103: p-Chloroaniline | C103: 106-47-8 | D103: =IFERROR(VLOOKUP(C103,RBCs!$B$5:$C$265,2,FALSE),"NoRBC") -> NoRBC
B104: Chlorobenzene | C104: 108-90-7
B105: Chlorobenzilate (Ethyl-4,4'-dichlorobenzilate) | C105: 510-15-6 | D105: =IFERROR(VLOOKUP(C105,RBCs!$B$5:$C$265,2,FALSE),"NoRBC") -> NoRBC
B106: 1-Chloro-1,1-difluoroethane | C106: 75-68-3
B107: Chlorodifluoromethane (Freon 22) | C107: 75-45-6
B108: Chloroethane (Ethyl chloride) | C108: 75-00-3
B109: Chloroform | C109: 67-66-3
B110: Chloromethane (Methyl chloride) | C110: 74-87-3
B111: Chloromethyl methyl ether (technical grade) | C111: 107-30-2 | D111: =IFERROR(VLOOKUP(C111,RBCs!$B$5:$C$265,2,FALSE),"NoRBC") -> NoRBC
B112: 3-Chloro-2-methyl-1-propene | C112: 563-47-3 | D112: =IFERROR(VLOOKUP(C112,RBCs!$B$5:$C$265,2,FALSE),"NoRBC") -> NoRBC
B113: 2-Chlorophenol | C113: 95-57-8 | D113: =IFERROR(VLOOKUP(C113,RBCs!$B$5:$C$265,2,FALSE),"NoRBC") -> NoRBC
B114: 4-Chloro-o-phenylenediamine | C114: 95-83-0
B115: Chloropicrin | C115: 76-06-2
B116: Chloroprene | C116: 126-99-8
B117: Chlorothalonil | C117: 1897-45-6 | D117: =IFERROR(VLOOKUP(C117,RBCs!$B$5:$C$265,2,FALSE),"NoRBC") -> NoRBC
B118: p-Chloro-o-toluidine | C118: 95-69-2
B119: Chlorozotocin | C119: 54749-90-5 | D119: =IFERROR(VLOOKUP(C119,RBCs!$B$5:$C$265,2,FALSE),"NoRBC") -> NoRBC
B120: Chromic(VI) Acid | C120: 7738-94-5
B121: Chromium VI, chromate, and dichromate particulate | C121: 18540-29-9
B122: Chromium trioxide | C122: 1333-82-0 | D122: =IFERROR(VLOOKUP(C122,RBCs!$B$5:$C$265,2,FALSE),"NoRBC") -> NoRBC
B123: C.I. Basic Red 9 Monohydrochloride | C123: 569-61-9 | D123: =IFERROR(VLOOKUP(C123,RBCs!$B$5:$C$265,2,FALSE),"NoRBC") -> NoRBC
B124: Cinnamyl anthranilate | C124: 87-29-6 | D124: =IFERROR(VLOOKUP(C124,RBCs!$B$5:$C$265,2,FALSE),"NoRBC") -> NoRBC
B125: Cobalt and compounds | C125: 7440-48-4
B126: Coke Oven Emissions | C126: 148
B127: Copper and compounds | C127: 7440-50-8
B128: Creosotes | C128: 150 | D128: =IFERROR(VLOOKUP(C128,RBCs!$B$5:$C$265,2,FALSE),"NoRBC") -> NoRBC
B129: p-Cresidine | C129: 120-71-8
B130: Cresols (mixture), including m-cresol, o-cresol, p-cresol | C130: 1319-77-3
B131: m-Cresol | C131: 108-39-4 | D131: =IFERROR(VLOOKUP(C131,RBCs!$B$5:$C$265,2,FALSE),"NoRBC") -> NoRBC
B132: o-Cresol | C132: 95-48-7 | D132: =IFERROR(VLOOKUP(C132,RBCs!$B$5:$C$265,2,FALSE),"NoRBC") -> NoRBC
B133: p-Cresol | C133: 106-44-5 | D133: =IFERROR(VLOOKUP(C133,RBCs!$B$5:$C$265,2,FALSE),"NoRBC") -> NoRBC
B134: Crotonaldehyde | C134: 4170-30-3 | D134: =IFERROR(VLOOKUP(C134,RBCs!$B$5:$C$265,2,FALSE),"NoRBC") -> NoRBC
B135: Cumene hydroperoxide | C135: 80-15-9 | D135: =IFERROR(VLOOKUP(C135,RBCs!$B$5:$C$265,2,FALSE),"NoRBC") -> NoRBC
B136: Cupferron | C136: 135-20-6
B137: Cyanide compounds | C137: 57-12-5 | D137: =IFERROR(VLOOKUP(C137,RBCs!$B$5:$C$265,2,FALSE),"NoRBC") -> NoRBC
B138: Cyanide, hydrogen | C138: 74-90-8
B139: Cyclohexane | C139: 110-82-7
B140: Cyclohexanol | C140: 108-93-0 | D140: =IFERROR(VLOOKUP(C140,RBCs!$B$5:$C$265,2,FALSE),"NoRBC") -> NoRBC
B141: Cycloheximide | C141: 66-81-9 | D141: =IFERROR(VLOOKUP(C141,RBCs!$B$5:$C$265,2,FALSE),"NoRBC") -> NoRBC
B142: Cyclophosphamide (anhydrous) | C142: 50-18-0 | D142: =IFERROR(VLOOKUP(C142,RBCs!$B$5:$C$265,2,FALSE),"NoRBC") -> NoRBC
B143: Cyclophosphamide (hydrated) | C143: 6055-19-2 | D143: =IFERROR(VLOOKUP(C143,RBCs!$B$5:$C$265,2,FALSE),"NoRBC") -> NoRBC
B144: D & C Red No. 9 | C144: 5160-02-1 | D144: =IFERROR(VLOOKUP(C144,RBCs!$B$5:$C$265,2,FALSE),"NoRBC") -> NoRBC
B145: Dacarbazine | C145: 4342-03-4 | D145: =IFERROR(VLOOKUP(C145,RBCs!$B$5:$C$265,2,FALSE),"NoRBC") -> NoRBC
B146: Dantron | C146: 117-10-2 | D146: =IFERROR(VLOOKUP(C146,RBCs!$B$5:$C$265,2,FALSE),"NoRBC") -> NoRBC
B147: 4,4'-DDD (4,4'-dichlorodiphenyldichloroethane) | C147: 72-54-8 | D147: =IFERROR(VLOOKUP(C147,RBCs!$B$5:$C$265,2,FALSE),"NoRBC") -> NoRBC
B148: 2,4'-DDD (2,4'-dichlorodiphenyldichloroethane) | C148: 53-19-0 | D148: =IFERROR(VLOOKUP(C148,RBCs!$B$5:$C$265,2,FALSE),"NoRBC") -> NoRBC
B149: DDE (1-chloro-4-[1-(4-chlorophenyl)ethyl]benzene) | C149: 3547-04-4 | D149: =IFERROR(VLOOKUP(C149,RBCs!$B$5:$C$265,2,FALSE),"NoRBC") -> NoRBC
B150: 2,4'-DDE (2,4'-dichlorodiphenyldichloroethene) | C150: 3424-82-6 | D150: =IFERROR(VLOOKUP(C150,RBCs!$B$5:$C$265,2,FALSE),"NoRBC") -> NoRBC
B151: 4,4'-DDE (4,4'-dichlorodiphenyldichloroethene) | C151: 72-55-9 | D151: =IFERROR(VLOOKUP(C151,RBCs!$B$5:$C$265,2,FALSE),"NoRBC") -> NoRBC
B152: 2,4'-DDT (2,4'-dichlorodiphenyltrichloroethane) | C152: 789-02-6 | D152: =IFERROR(VLOOKUP(C152,RBCs!$B$5:$C$265,2,FALSE),"NoRBC") -> NoRBC
B153: DDT | C153: 50-29-3
B154: 2,4-Diaminoanisole | C154: 615-05-4
B155: 2,4-Diaminoanisole sulfate | C155: 39156-41-7 | D155: =IFERROR(VLOOKUP(C155,RBCs!$B$5:$C$265,2,FALSE),"NoRBC") -> NoRBC
B156: 4,4'-Diaminodiphenyl ether | C156: 101-80-4 | D156: =IFERROR(VLOOKUP(C156,RBCs!$B$5:$C$265,2,FALSE),"NoRBC") -> NoRBC
B157: 2,4-Diaminotoluene (2,4-Toluene diamine) | C157: 95-80-7
B158: Diazomethane | C158: 334-88-3 | D158: =IFERROR(VLOOKUP(C158,RBCs!$B$5:$C$265,2,FALSE),"NoRBC") -> NoRBC
B159: Diazinon | C159: 333-41-5
B160: Dibenzofuran | C160: 132-64-9 | D160: =IFERROR(VLOOKUP(C160,RBCs!$B$5:$C$265,2,FALSE),"NoRBC") -> NoRBC
B161: Dibromochloromethane | C161: 124-48-1 | D161: =IFERROR(VLOOKUP(C161,RBCs!$B$5:$C$265,2,FALSE),"NoRBC") -> NoRBC
B162: 1,2-Dibromo-3-chloropropane (DBCP) | C162: 96-12-8
B163: 2,3-Dibromo-1-propanol | C163: 96-13-9 | D163: =IFERROR(VLOOKUP(C163,RBCs!$B$5:$C$265,2,FALSE),"NoRBC") -> NoRBC
B164: Dibutyl phthalate | C164: 84-74-2 | D164: =IFERROR(VLOOKUP(C164,RBCs!$B$5:$C$265,2,FALSE),"NoRBC") -> NoRBC
B165: 1,2-Dichlorobenzene | C165: 95-50-1 | D165: =IFERROR(VLOOKUP(C165,RBCs!$B$5:$C$265,2,FALSE),"NoRBC") -> NoRBC
B166: 1,3-Dichlorobenzene | C166: 541-73-1 | D166: =IFERROR(VLOOKUP(C166,RBCs!$B$5:$C$265,2,FALSE),"NoRBC") -> NoRBC
B167: p-Dichlorobenzene (1,4-Dichlorobenzene) | C167: 106-46-7
B168: 3,3'-Dichlorobenzidine | C168: 91-94-1
B169: Dichlorodifluoromethane (Freon 12) | C169: 75-71-8 | D169: =IFERROR(VLOOKUP(C169,RBCs!$B$5:$C$265,2,FALSE),"NoRBC") -> NoRBC
B170: Dichlorofluoromethane (Freon 21) | C170: 75-43-4 | D170: =IFERROR(VLOOKUP(C170,RBCs!$B$5:$C$265,2,FALSE),"NoRBC") -> NoRBC
B171: 1,1-Dichloroethane (Ethylidene dichloride) | C171: 75-34-3
B172: trans-1,2-dichloroethene | C172: 156-60-5
B173: Dichloromethane (Methylene chloride) | C173: 75-09-2
B174: 2,4-Dichlorophenol | C174: 120-83-2 | D174: =IFERROR(VLOOKUP(C174,RBCs!$B$5:$C$265,2,FALSE),"NoRBC") -> NoRBC
B175: Dichlorophenoxyacetic acid, salts and esters (2,4-D) | C175: 94-75-7 | D175: =IFERROR(VLOOKUP(C175,RBCs!$B$5:$C$265,2,FALSE),"NoRBC") -> NoRBC
B176: 1,2-Dichloropropane (Propylene dichloride) | C176: 78-87-5
B177: 1,3-Dichloropropene | C177: 542-75-6
B178: Dichlorovos (DDVP) | C178: 62-73-7
B179: Dicofol | C179: 115-32-2 | D179: =IFERROR(VLOOKUP(C179,RBCs!$B$5:$C$265,2,FALSE),"NoRBC") -> NoRBC
B180: Di-cyclohexyl phthalate (DCHP) | C180: 84-61-7 | D180: =IFERROR(VLOOKUP(C180,RBCs!$B$5:$C$265,2,FALSE),"NoRBC") -> NoRBC
B181: Dieldrin | C181: 60-57-1
B182: Diesel Particulate Matter | C182: 200
B183: Diethanolamine | C183: 111-42-2
B184: Diethylene glycol | C184: 111-46-6 | D184: =IFERROR(VLOOKUP(C184,RBCs!$B$5:$C$265,2,FALSE),"NoRBC") -> NoRBC
B185: Diethylene glycol dimethyl ether | C185: 111-96-6 | D185: =IFERROR(VLOOKUP(C185,RBCs!$B$5:$C$265,2,FALSE),"NoRBC") -> NoRBC
B186: Diethylene glycol monobutyl ether | C186: 112-34-5
B187: Diethylene glycol monoethyl ether | C187: 111-90-0
B188: Diethylene glycol monomethyl ether | C188: 111-77-3 | D188: =IFERROR(VLOOKUP(C188,RBCs!$B$5:$C$265,2,FALSE),"NoRBC") -> NoRBC
B189: Diethylphthalate | C189: 84-66-2 | D189: =IFERROR(VLOOKUP(C189,RBCs!$B$5:$C$265,2,FALSE),"NoRBC") -> NoRBC
B190: Diethyl sulfate | C190: 64-67-5 | D190: =IFERROR(VLOOKUP(C190,RBCs!$B$5:$C$265,2,FALSE),"NoRBC") -> NoRBC
B191: Diethyltoluamide, N,N- (DEET) | C191: 134-62-3 | D191: =IFERROR(VLOOKUP(C191,RBCs!$B$5:$C$265,2,FALSE),"NoRBC") -> NoRBC
B192: 1,1-Difluoroethane | C192: 75-37-6
B193: Diglycidyl resorcinol ether | C193: 101-90-6 | D193: =IFERROR(VLOOKUP(C193,RBCs!$B$5:$C$265,2,FALSE),"NoRBC") -> NoRBC
B194: Dihydrosafrole | C194: 94-58-6 | D194: =IFERROR(VLOOKUP(C194,RBCs!$B$5:$C$265,2,FALSE),"NoRBC") -> NoRBC
B195: 3,3'-Dimethoxybenzidine | C195: 119-90-4 | D195: =IFERROR(VLOOKUP(C195,RBCs!$B$5:$C$265,2,FALSE),"NoRBC") -> NoRBC
B196: 4-Dimethylaminoazobenzene | C196: 60-11-7
B197: N,N-Dimethylaniline | C197: 121-69-7 | D197: =IFERROR(VLOOKUP(C197,RBCs!$B$5:$C$265,2,FALSE),"NoRBC") -> NoRBC
B198: 3,3'-Dimethylbenzidine (o-Tolidine) | C198: 119-93-7 | D198: =IFERROR(VLOOKUP(C198,RBCs!$B$5:$C$265,2,FALSE),"NoRBC") -> NoRBC
B199: Dimethyl carbamoyl chloride | C199: 79-44-7 | D199: =IFERROR(VLOOKUP(C199,RBCs!$B$5:$C$265,2,FALSE),"NoRBC") -> NoRBC
B200: Dimethyl formamide | C200: 68-12-2
B201: 1,1-Dimethylhydrazine | C201: 57-14-7
... 409 more rows

Sheet Dispersion Factors
B1: OAR 340-245-8050 Table 5
B2: Level 1 Risk Assessment Tool
B3: Dispersion Factors
B4: Table 5A: Stack Emission Dispersion Factors for Annual Exposure (µg/m3 / pounds/year)
B5: Stack | G5: Exposure Location Distance (meters)
B6: Ht (m) | C6: 10 | D6: 20 | E6: 30 | F6: 40 | G6: 50 | H6: 60 | I6: 70 | J6: 80 | K6: 90 | L6: 100 | M6: 110 | N6: 120 | O6: 130 | P6: 140 | Q6: 150 | R6: 160 | S6: 170 | T6: 180 | U6: 190 | V6: 200 | W6: 250 | X6: 300 | Y6: 350 | Z6: 400 | AA6: 450 | AB6: 500 | AC6: 600 | AD6: 700 | AE6: 800 | AF6: 1000
B7: 5 | C7: 0.011 | D7: 0.006 | E7: 0.0052 | F7: 0.0041 | G7: 0.0033 | H7: 0.0026 | I7: 0.0021 | J7: 0.0017 | K7: 0.0014 | L7: 0.0012 | M7: 0.001 | N7: 0.00088 | O7: 0.00076 | P7: 0.00066 | Q7: 0.00058 | R7: 0.00051 | S7: 0.00046 | T7: 0.00041 | U7: 0.00037 | V7: 0.00034 | W7: 0.00023 | X7: 0.00017 | Y7: 0.00013 | Z7: 0.0001 | AA7: 8.4e-05 | AB7: 7.1e-05 | AC7: 5.2e-05 | AD7: 4e-05 | AE7: 3.2e-05 | AF7: 2.2e-05
B8: 10 | C8: 0.0095 | D8: 0.0046 | E8: 0.0027 | F8: 0.0016 | G8: 0.0014 | H8: 0.0012 | I8: 0.0011 | J8: 0.00094 | K8: 0.00084 | L8: 0.00075 | M8: 0.00068 | N8: 0.00062 | O8: 0.00057 | P8: 0.00052 | Q8: 0.00048 | R8: 0.00044 | S8: 0.00041 | T8: 0.00038 | U8: 0.00035 | V8: 0.00033 | W8: 0.00023 | X8: 0.00017 | Y8: 0.00013 | Z8: 9.8e-05 | AA8: 7.8e-05 | AB8: 6.4e-05 | AC8: 4.7e-05 | AD8: 3.6e-05 | AE8: 2.9e-05 | AF8: 2.1e-05
B9: 15 | C9: 0.0043 | D9: 0.003 | E9: 0.0018 | F9: 0.0013 | G9: 0.00075 | H9: 0.00061 | I9: 0.00054 | J9: 0.00049 | K9: 0.00044 | L9: 0.0004 | M9: 0.00037 | N9: 0.00034 | O9: 0.00031 | P9: 0.00029 | Q9: 0.00027 | R9: 0.00025 | S9: 0.00024 | T9: 0.00023 | U9: 0.00021 | V9: 0.0002 | W9: 0.00016 | X9: 0.00013 | Y9: 0.0001 | Z9: 8.3e-05 | AA9: 6.9e-05 | AB9: 5.7e-05 | AC9: 4.1e-05 | AD9: 3.2e-05 | AE9: 2.5e-05 | AF9: 1.8e-05
B10: 20 | C10: 0.0023 | D10: 0.0018 | E10: 0.0013 | F10: 0.00088 | G10: 0.00072 | H10: 0.00054 | I10: 0.00035 | J10: 0.00031 | K10: 0.00028 | L10: 0.00026 | M10: 0.00023 | N10: 0.00022 | O10: 0.0002 | P10: 0.00019 | Q10: 0.00017 | R10: 0.00016 | S10: 0.00015 | T10: 0.00014 | U10: 0.00014 | V10: 0.00013 | W10: 0.0001 | X10: 8.6e-05 | Y10: 7.3e-05 | Z10: 6.2e-05 | AA10: 5.3e-05 | AB10: 4.6e-05 | AC10: 3.5e-05 | AD10: 2.7e-05 | AE10: 2.1e-05 | AF10: 1.5e-05
B11: 25 | C11: 0.0013 | D11: 0.0011 | E11: 0.00091 | F11: 0.00066 | G11: 0.0005 | H11: 0.00041 | I11: 0.00035 | J11: 0.00025 | K11: 0.00019 | L11: 0.00018 | M11: 0.00016 | N11: 0.00015 | O11: 0.00014 | P11: 0.00013 | Q11: 0.00012 | R11: 0.00012 | S11: 0.00011 | T11: 0.0001 | U11: 9.6e-05 | V11: 9.1e-05 | W11: 7.2e-05 | X11: 5.9e-05 | Y11: 5.1e-05 | Z11: 4.4e-05 | AA11: 3.9e-05 | AB11: 3.4e-05 | AC11: 2.7e-05 | AD11: 2.2e-05 | AE11: 1.8e-05 | AF11: 1.3e-05
B12: 30 | C12: 0.00082 | D12: 0.00073 | E12: 0.00062 | F12: 0.0005 | G12: 0.00037 | H12: 0.0003 | I12: 0.00026 | J12: 0.00023 | K12: 0.00019 | L12: 0.00013 | M12: 0.00012 | N12: 0.00011 | O12: 0.0001 | P12: 9.6e-05 | Q12: 9e-05 | R12: 8.5e-05 | S12: 8e-05 | T12: 7.5e-05 | U12: 7.1e-05 | V12: 6.8e-05 | W12: 5.3e-05 | X12: 4.4e-05 | Y12: 3.7e-05 | Z12: 3.2e-05 | AA12: 2.8e-05 | AB12: 2.5e-05 | AC12: 2.1e-05 | AD12: 1.7e-05 | AE12: 1.4e-05 | AF12: 1e-05
B13: 35 | C13: 0.00053 | D13: 0.00049 | E13: 0.00043 | F13: 0.00037 | G13: 0.0003 | H13: 0.00023 | I13: 0.00019 | J13: 0.00017 | K13: 0.00015 | L13: 0.00013 | M13: 0.00011 | N13: 8.1e-05 | O13: 7.5e-05 | P13: 7.1e-05 | Q13: 6.8e-05 | R13: 6.4e-05 | S13: 6.1e-05 | T13: 5.8e-05 | U13: 5.5e-05 | V13: 5.2e-05 | W13: 4.2e-05 | X13: 3.4e-05 | Y13: 2.9e-05 | Z13: 2.5e-05 | AA13: 2.2e-05 | AB13: 1.9e-05 | AC13: 1.6e-05 | AD13: 1.4e-05 | AE13: 1.1e-05 | AF13: 8.443530838e-06
B14: 40 | C14: 0.00037 | D14: 0.00034 | E14: 0.00031 | F14: 0.00027 | G14: 0.00023 | H14: 0.00019 | I14: 0.00015 | J14: 0.00013 | K14: 0.00012 | L14: 0.00011 | M14: 9.6e-05 | N14: 8.1e-05 | O14: 6.4e-05 | P14: 5.4e-05 | Q14: 5.1e-05 | R14: 4.9e-05 | S14: 4.7e-05 | T14: 4.5e-05 | U14: 4.3e-05 | V14: 4.1e-05 | W14: 3.3e-05 | X14: 2.8e-05 | Y14: 2.3e-05 | Z14: 2e-05 | AA14: 1.8e-05 | AB14: 1.6e-05 | AC14: 1.3e-05 | AD14: 1.1e-05 | AE14: 9.330695726e-06 | AF14: 7.046386192e-06
B15: 45 | C15: 0.00027 | D15: 0.00025 | E15: 0.00023 | F15: 0.00021 | G15: 0.00018 | H15: 0.00016 | I15: 0.00013 | J15: 0.00011 | K15: 9.5e-05 | L15: 8.5e-05 | M15: 7.8e-05 | N15: 7.2e-05 | O15: 6.3e-05 | P15: 5.3e-05 | Q15: 4.2e-05 | R15: 3.8e-05 | S15: 3.7e-05 | T15: 3.6e-05 | U15: 3.4e-05 | V15: 3.3e-05 | W15: 2.7e-05 | X15: 2.3e-05 | Y15: 1.9e-05 | Z15: 1.7e-05 | AA15: 1.5e-05 | AB15: 1.3e-05 | AC15: 1.1e-05 | AD15: 8.991429275e-06 | AE15: 7.803942094e-06 | AF15: 5.978644106e-06
B16: 50 | C16: 0.00019 | D16: 0.00018 | E16: 0.00017 | F16: 0.00016 | G16: 0.00014 | H16: 0.00013 | I16: 0.00011 | J16: 9e-05 | K16: 7.7e-05 | L16: 6.8e-05 | M16: 6.2e-05 | N16: 5.7e-05 | O16: 5.3e-05 | P16: 4.8e-05 | Q16: 4.2e-05 | R16: 3.5e-05 | S16: 2.9e-05 | T16: 2.7e-05 | U16: 2.6e-05 | V16: 2.6e-05 | W16: 2.2e-05 | X16: 1.9e-05 | Y16: 1.6e-05 | Z16: 1.4e-05 | AA16: 1.2e-05 | AB16: 1.1e-05 | AC16: 8.906363951e-06 | AD16: 7.492317578e-06 | AE16: 6.487869405e-06 | AF16: 5.077207772e-06
B18: Table 5B: Stack Emission Dispersion Factors for 24 hour Exposure (µg/m3 / pounds/day)
B19: Stack | G19: Exposure Location Distance (meters)
B20: Ht (m) | C20: 10 | D20: 20 | E20: 30 | F20: 40 | G20: 50 | H20: 60 | I20: 70 | J20: 80 | K20: 90 | L20: 100 | M20: 110 | N20: 120 | O20: 130 | P20: 140 | Q20: 150 | R20: 160 | S20: 170 | T20: 180 | U20: 190 | V20: 200 | W20: 250 | X20: 300 | Y20: 350 | Z20: 400 | AA20: 450 | AB20: 500 | AC20: 600 | AD20: 700 | AE20: 800 | AF20: 1000
B21: 5 | C21: 27 | D21: 13 | E21: 12 | F21: 9.7 | G21: 8.3 | H21: 7.1 | I21: 6.1 | J21: 5.2 | K21: 4.4 | L21: 3.8 | M21: 3.2 | N21: 2.7 | O21: 2.4 | P21: 2.1 | Q21: 1.8 | R21: 1.6 | S21: 1.4 | T21: 1.3 | U21: 1.2 | V21: 1.1 | W21: 0.72 | X21: 0.55 | Y21: 0.44 | Z21: 0.36 | AA21: 0.3 | AB21: 0.26 | AC21: 0.2 | AD21: 0.16 | AE21: 0.13 | AF21: 0.092
B22: 10 | C22: 9.8 | D22: 8.8 | E22: 6.5 | F22: 4.1 | G22: 3.8 | H22: 3.4 | I22: 3.1 | J22: 2.8 | K22: 2.6 | L22: 2.4 | M22: 2.2 | N22: 2.1 | O22: 2 | P22: 1.8 | Q22: 1.7 | R22: 1.6 | S22: 1.5 | T22: 1.4 | U22: 1.3 | V22: 1.3 | W22: 0.91 | X22: 0.67 | Y22: 0.5 | Z22: 0.38 | AA22: 0.3 | AB22: 0.25 | AC22: 0.18 | AD22: 0.14 | AE22: 0.12 | AF22: 0.088
B23: 15 | C23: 3.3 | D23: 3.7 | E23: 3.4 | F23: 3 | G23: 1.8 | H23: 1.6 | I23: 1.6 | J23: 1.5 | K23: 1.4 | L23: 1.3 | M23: 1.2 | N23: 1.1 | O23: 1.1 | P23: 1 | Q23: 0.95 | R23: 0.91 | S23: 0.87 | T23: 0.83 | U23: 0.8 | V23: 0.77 | W23: 0.64 | X23: 0.53 | Y23: 0.43 | Z23: 0.36 | AA23: 0.3 | AB23: 0.25 | AC23: 0.18 | AD23: 0.13 | AE23: 0.1 | AF23: 0.075
B24: 20 | C24: 1.6 | D24: 1.9 | E24: 1.8 | F24: 1.7 | G24: 1.6 | H24: 1.3 | I24: 0.91 | J24: 0.86 | K24: 0.82 | L24: 0.77 | M24: 0.73 | N24: 0.69 | O24: 0.65 | P24: 0.62 | Q24: 0.59 | R24: 0.56 | S24: 0.54 | T24: 0.52 | U24: 0.49 | V24: 0.48 | W24: 0.4 | X24: 0.35 | Y24: 0.31 | Z24: 0.27 | AA24: 0.23 | AB24: 0.2 | AC24: 0.16 | AD24: 0.12 | AE24: 0.096 | AF24: 0.064
B25: 25 | C25: 0.83 | D25: 0.99 | E25: 1.1 | F25: 1 | G25: 0.97 | H25: 0.93 | I25: 0.85 | J25: 0.64 | K25: 0.52 | L25: 0.5 | M25: 0.48 | N25: 0.46 | O25: 0.44 | P25: 0.42 | Q25: 0.4 | R25: 0.38 | S25: 0.36 | T25: 0.35 | U25: 0.34 | V25: 0.32 | W25: 0.27 | X25: 0.23 | Y25: 0.21 | Z25: 0.19 | AA25: 0.17 | AB25: 0.15 | AC25: 0.12 | AD25: 0.1 | AE25: 0.082 | AF25: 0.057
B26: 30 | C26: 0.49 | D26: 0.57 | E26: 0.64 | F26: 0.65 | G26: 0.62 | H26: 0.59 | I26: 0.57 | J26: 0.55 | K26: 0.49 | L26: 0.34 | M26: 0.32 | N26: 0.31 | O26: 0.3 | P26: 0.29 | Q26: 0.28 | R26: 0.27 | S26: 0.26 | T26: 0.25 | U26: 0.24 | V26: 0.23 | W26: 0.19 | X26: 0.17 | Y26: 0.15 | Z26: 0.13 | AA26: 0.12 | AB26: 0.11 | AC26: 0.095 | AD26: 0.078 | AE26: 0.066 | AF26: 0.048
B27: 35 | C27: 0.31 | D27: 0.35 | E27: 0.4 | F27: 0.42 | G27: 0.42 | H27: 0.41 | I27: 0.39 | J27: 0.38 | K27: 0.37 | L27: 0.34 | M27: 0.29 | N27: 0.22 | O27: 0.21 | P27: 0.21 | Q27: 0.2 | R27: 0.2 | S27: 0.19 | T27: 0.18 | U27: 0.18 | V27: 0.17 | W27: 0.15 | X27: 0.13 | Y27: 0.11 | Z27: 0.099 | AA27: 0.09 | AB27: 0.083 | AC27: 0.072 | AD27: 0.062 | AE27: 0.053 | AF27: 0.04
B28: 40 | C28: 0.21 | D28: 0.24 | E28: 0.27 | F28: 0.29 | G28: 0.3 | H28: 0.29 | I28: 0.28 | J28: 0.28 | K28: 0.27 | L28: 0.26 | M28: 0.25 | N28: 0.22 | O28: 0.17 | P28: 0.15 | Q28: 0.15 | R28: 0.15 | S28: 0.14 | T28: 0.14 | U28: 0.14 | V28: 0.13 | W28: 0.11 | X28: 0.1 | Y28: 0.088 | Z28: 0.078 | AA28: 0.07 | AB28: 0.064 | AC28: 0.056 | AD28: 0.049 | AE28: 0.044 | AF28: 0.033
B29: 45 | C29: 0.15 | D29: 0.17 | E29: 0.19 | F29: 0.21 | G29: 0.22 | H29: 0.22 | I29: 0.21 | J29: 0.21 | K29: 0.2 | L29: 0.2 | M29: 0.19 | N29: 0.19 | O29: 0.17 | P29: 0.16 | Q29: 0.12 | R29: 0.11 | S29: 0.11 | T29: 0.11 | U29: 0.11 | V29: 0.1 | W29: 0.092 | X29: 0.081 | Y29: 0.072 | Z29: 0.065 | AA29: 0.058 | AB29: 0.053 | AC29: 0.045 | AD29: 0.04 | AE29: 0.036 | AF29: 0.028
B30: 50 | C30: 0.11 | D30: 0.12 | E30: 0.14 | F30: 0.15 | G30: 0.16 | H30: 0.16 | I30: 0.16 | J30: 0.16 | K30: 0.16 | L30: 0.15 | M30: 0.15 | N30: 0.14 | O30: 0.14 | P30: 0.13 | Q30: 0.12 | R30: 0.1 | S30: 0.082 | T30: 0.081 | U30: 0.08 | V30: 0.079 | W30: 0.072 | X30: 0.065 | Y30: 0.059 | Z30: 0.053 | AA30: 0.048 | AB30: 0.044 | AC30: 0.037 | AD30: 0.032 | AE30: 0.029 | AF30: 0.024
B32: Table 5C: Fugitive Emission Dispersion Factors for Annual Exposure (µg/m3 / pounds/year)
B33: Building Area | C33: Building | H33: Exposure Location Distance (meters)
B34: (1,000 ft2) | C34: Height (ft) | D34: 10 | E34: 20 | F34: 30 | G34: 40 | H34: 50 | I34: 60 | J34: 70 | K34: 80 | L34: 90 | M34: 100 | N34: 110 | O34: 120 | P34: 130 | Q34: 140 | R34: 150 | S34: 160 | T34: 170 | U34: 180 | V34: 190 | W34: 200 | X34: 250 | Y34: 300 | Z34: 350 | AA34: 400 | AB34: 450 | AC34: 500 | AD34: 600 | AE34: 700 | AF34: 800 | AG34: 1000
A35: =B35&"_"&C35 -> ≤3_≤20 | B35: ≤3 | C35: ≤20 | D35: 0.011 | E35: 0.006 | F35: 0.0052 | G35: 0.0041 | H35: 0.0045 | I35: 0.0033 | J35: 0.0026 | K35: 0.002 | L35: 0.0017 | M35: 0.0014 | N35: 0.0012 | O35: 0.001 | P35: 0.00089 | Q35: 0.00078 | R35: 0.00069 | S35: 0.00062 | T35: 0.00056 | U35: 0.0005 | V35: 0.00046 | W35: 0.00042 | X35: 0.00029 | Y35: 0.00021 | Z35: 0.00016 | AA35: 0.00013 | AB35: 0.0001 | AC35: 8.7e-05 | AD35: 6.4e-05 | AE35: 4.9e-05 | AF35: 3.9e-05 | AG35: 2.7e-05
A36: =B36&"_"&C36 -> >3 to 6_≤20 | B36: >3 to 6 | C36: ≤20 | D36: 0.0095 | E36: 0.0046 | F36: 0.0027 | G36: 0.0016 | H36: 0.0044 | I36: 0.0032 | J36: 0.0025 | K36: 0.002 | L36: 0.0016 | M36: 0.0014 | N36: 0.0012 | O36: 0.001 | P36: 0.00088 | Q36: 0.00077 | R36: 0.00069 | S36: 0.00061 | T36: 0.00055 | U36: 0.0005 | V36: 0.00046 | W36: 0.00042 | X36: 0.00028 | Y36: 0.00021 | Z36: 0.00016 | AA36: 0.00013 | AB36: 0.0001 | AC36: 8.7e-05 | AD36: 6.4e-05 | AE36: 4.9e-05 | AF36: 3.9e-05 | AG36: 2.7e-05
A37: >3 to 6_>20 | B37: >3 to 6 | C37: >20 | D37: 0.0043 | E37: 0.003 | F37: 0.0018 | G37: 0.0013 | H37: 0.0041 | I37: 0.0031 | J37: 0.0024 | K37: 0.0019 | L37: 0.0016 | M37: 0.0013 | N37: 0.0011 | O37: 0.00098 | P37: 0.00086 | Q37: 0.00076 | R37: 0.00067 | S37: 0.0006 | T37: 0.00054 | U37: 0.00049 | V37: 0.00045 | W37: 0.00041 | X37: 0.00028 | Y37: 0.00021 | Z37: 0.00016 | AA37: 0.00013 | AB37: 0.0001 | AC37: 8.7e-05 | AD37: 6.4e-05 | AE37: 4.9e-05 | AF37: 3.9e-05 | AG37: 2.7e-05
A38: >6 to 10_≤20 | B38: >6 to 10 | C38: ≤20 | D38: 0.0023 | E38: 0.0018 | F38: 0.0013 | G38: 0.00088 | H38: 0.0044 | I38: 0.0033 | J38: 0.0025 | K38: 0.002 | L38: 0.0017 | M38: 0.0014 | N38: 0.0012 | O38: 0.001 | P38: 0.00088 | Q38: 0.00077 | R38: 0.00069 | S38: 0.00062 | T38: 0.00055 | U38: 0.0005 | V38: 0.00046 | W38: 0.00042 | X38: 0.00028 | Y38: 0.00021 | Z38: 0.00016 | AA38: 0.00013 | AB38: 0.0001 | AC38: 8.7e-05 | AD38: 6.4e-05 | AE38: 4.9e-05 | AF38: 3.9e-05 | AG38: 2.7e-05
A39: >6 to 10_>20 | B39: >6 to 10 | C39: >20 | D39: 0.0013 | E39: 0.0011 | F39: 0.00091 | G39: 0.00066 | H39: 0.0037 | I39: 0.0028 | J39: 0.0022 | K39: 0.0018 | L39: 0.0015 | M39: 0.0013 | N39: 0.0011 | O39: 0.00095 | P39: 0.00083 | Q39: 0.00074 | R39: 0.00066 | S39: 0.00059 | T39: 0.00053 | U39: 0.00048 | V39: 0.00044 | W39: 0.00041 | X39: 0.00028 | Y39: 0.0002 | Z39: 0.00016 | AA39: 0.00013 | AB39: 0.0001 | AC39: 8.6e-05 | AD39: 6.4e-05 | AE39: 4.9e-05 | AF39: 3.9e-05 | AG39: 2.7e-05
A40: >10 to 15_≤20 | B40: >10 to 15 | C40: ≤20 | D40: 0.00082 | E40: 0.00073 | F40: 0.00062 | G40: 0.0005 | H40: 0.0044 | I40: 0.0033 | J40: 0.0025 | K40: 0.002 | L40: 0.0017 | M40: 0.0014 | N40: 0.0012 | O40: 0.001 | P40: 0.00088 | Q40: 0.00077 | R40: 0.00069 | S40: 0.00062 | T40: 0.00055 | U40: 0.0005 | V40: 0.00046 | W40: 0.00042 | X40: 0.00028 | Y40: 0.00021 | Z40: 0.00016 | AA40: 0.00013 | AB40: 0.0001 | AC40: 8.7e-05 | AD40: 6.4e-05 | AE40: 4.9e-05 | AF40: 3.9e-05 | AG40: 2.7e-05
A41: >10 to 15_>20 | B41: >10 to 15 | C41: >20 | D41: 0.00053 | E41: 0.00049 | F41: 0.00043 | G41: 0.00037 | H41: 0.0034 | I41: 0.0027 | J41: 0.0021 | K41: 0.0018 | L41: 0.0015 | M41: 0.0012 | N41: 0.0011 | O41: 0.00093 | P41: 0.00081 | Q41: 0.00072 | R41: 0.00064 | S41: 0.00058 | T41: 0.00052 | U41: 0.00048 | V41: 0.00044 | W41: 0.0004 | X41: 0.00028 | Y41: 0.0002 | Z41: 0.00016 | AA41: 0.00012 | AB41: 0.0001 | AC41: 8.6e-05 | AD41: 6.3e-05 | AE41: 4.9e-05 | AF41: 3.9e-05 | AG41: 2.7e-05
A42: >15 to 30_≤20 | B42: >15 to 30 | C42: ≤20 | D42: 0.00037 | E42: 0.00034 | F42: 0.00031 | G42: 0.00027 | H42: 0.0043 | I42: 0.0032 | J42: 0.0025 | K42: 0.002 | L42: 0.0016 | M42: 0.0014 | N42: 0.0012 | O42: 0.001 | P42: 0.00088 | Q42: 0.00077 | R42: 0.00069 | S42: 0.00061 | T42: 0.00055 | U42: 0.0005 | V42: 0.00046 | W42: 0.00042 | X42: 0.00028 | Y42: 0.00021 | Z42: 0.00016 | AA42: 0.00013 | AB42: 0.0001 | AC42: 8.7e-05 | AD42: 6.4e-05 | AE42: 4.9e-05 | AF42: 3.9e-05 | AG42: 2.7e-05
A43: >15 to 30_>20 | B43: >15 to 30 | C43: >20 | D43: 0.00027 | E43: 0.00025 | F43: 0.00023 | G43: 0.00021 | H43: 0.0034 | I43: 0.0027 | J43: 0.0021 | K43: 0.0018 | L43: 0.0015 | M43: 0.0012 | N43: 0.0011 | O43: 0.00093 | P43: 0.00082 | Q43: 0.00072 | R43: 0.00065 | S43: 0.00058 | T43: 0.00052 | U43: 0.00048 | V43: 0.00044 | W43: 0.0004 | X43: 0.00028 | Y43: 0.0002 | Z43: 0.00016 | AA43: 0.00013 | AB43: 0.0001 | AC43: 8.6e-05 | AD43: 6.3e-05 | AE43: 4.9e-05 | AF43: 3.9e-05 | AG43: 2.7e-05
A44: >30_>20 | B44: >30 | C44: >20 | D44: 0.00019 | E44: 0.00018 | F44: 0.00017 | G44: 0.00016 | H44: 0.0022 | I44: 0.0018 | J44: 0.0015 | K44: 0.0013 | L44: 0.0011 | M44: 0.00098 | N44: 0.00086 | O44: 0.00076 | P44: 0.00068 | Q44: 0.00061 | R44: 0.00055 | S44: 0.0005 | T44: 0.00046 | U44: 0.00042 | V44: 0.00039 | W44: 0.00036 | X44: 0.00025 | Y44: 0.00019 | Z44: 0.00015 | AA44: 0.00012 | AB44: 9.8e-05 | AC44: 8.3e-05 | AD44: 6.1e-05 | AE44: 4.8e-05 | AF44: 3.8e-05 | AG44: 2.7e-05
B46: Table 5D: Fugitive Emission Dispersion Factors for 24 hour Exposure (µg/m3 / pounds/day)
B47: Building Area | C47: Building | H47: Exposure Location Distance (meters)
B48: (1,000 ft2) | C48: Height (ft) | D48: 10 | E48: 20 | F48: 30 | G48: 40 | H48: 50 | I48: 60 | J48: 70 | K48: 80 | L48: 90 | M48: 100 | N48: 110 | O48: 120 | P48: 130 | Q48: 140 | R48: 150 | S48: 160 | T48: 170 | U48: 180 | V48: 190 | W48: 200 | X48: 250 | Y48: 300 | Z48: 350 | AA48: 400 | AB48: 450 | AC48: 500 | AD48: 600 | AE48: 700 | AF48: 800 | AG48: 1000
A49: =B49&"_"&C49 -> ≤3_≤20 | B49: ≤3 | C49: ≤20 | D49: 0.011 | E49: 0.006 | F49: 0.0052 | G49: 0.0041 | H49: 4.8 | I49: 3.7 | J49: 2.9 | K49: 2.4 | L49: 2 | M49: 1.7 | N49: 1.4 | O49: 1.2 | P49: 1.1 | Q49: 0.97 | R49: 0.87 | S49: 0.78 | T49: 0.71 | U49: 0.65 | V49: 0.59 | W49: 0.55 | X49: 0.38 | Y49: 0.29 | Z49: 0.22 | AA49: 0.18 | AB49: 0.15 | AC49: 0.13 | AD49: 0.095 | AE49: 0.074 | AF49: 0.06 | AG49: 0.043
A50: =B50&"_"&C50 -> >3 to 6_≤20 | B50: >3 to 6 | C50: ≤20 | D50: 0.0095 | E50: 0.0046 | F50: 0.0027 | G50: 0.0016 | H50: 4.1 | I50: 3.1 | J50: 2.5 | K50: 2 | L50: 1.7 | M50: 1.4 | N50: 1.2 | O50: 1.1 | P50: 0.95 | Q50: 0.84 | R50: 0.76 | S50: 0.68 | T50: 0.62 | U50: 0.57 | V50: 0.52 | W50: 0.48 | X50: 0.33 | Y50: 0.25 | Z50: 0.2 | AA50: 0.16 | AB50: 0.13 | AC50: 0.11 | AD50: 0.083 | AE50: 0.065 | AF50: 0.053 | AG50: 0.038
A51: >3 to 6_>20 | B51: >3 to 6 | C51: >20 | D51: 0.0043 | E51: 0.003 | F51: 0.0018 | G51: 0.0013 | H51: 3.5 | I51: 2.8 | J51: 2.2 | K51: 1.9 | L51: 1.6 | M51: 1.3 | N51: 1.2 | O51: 1 | P51: 0.9 | Q51: 0.8 | R51: 0.72 | S51: 0.65 | T51: 0.59 | U51: 0.54 | V51: 0.5 | W51: 0.46 | X51: 0.32 | Y51: 0.24 | Z51: 0.19 | AA51: 0.15 | AB51: 0.13 | AC51: 0.11 | AD51: 0.081 | AE51: 0.064 | AF51: 0.052 | AG51: 0.037
A52: >6 to 10_≤20 | B52: >6 to 10 | C52: ≤20 | D52: 0.0023 | E52: 0.0018 | F52: 0.0013 | G52: 0.00088 | H52: 4 | I52: 3.1 | J52: 2.5 | K52: 2 | L52: 1.7 | M52: 1.4 | N52: 1.2 | O52: 1.1 | P52: 0.94 | Q52: 0.84 | R52: 0.75 | S52: 0.68 | T52: 0.62 | U52: 0.56 | V52: 0.52 | W52: 0.48 | X52: 0.33 | Y52: 0.25 | Z52: 0.2 | AA52: 0.16 | AB52: 0.13 | AC52: 0.11 | AD52: 0.083 | AE52: 0.065 | AF52: 0.053 | AG52: 0.038
A53: >6 to 10_>20 | B53: >6 to 10 | C53: >20 | D53: 0.0013 | E53: 0.0011 | F53: 0.00091 | G53: 0.00066 | H53: 3.3 | I53: 2.6 | J53: 2.1 | K53: 1.8 | L53: 1.5 | M53: 1.3 | N53: 1.1 | O53: 0.97 | P53: 0.86 | Q53: 0.77 | R53: 0.69 | S53: 0.63 | T53: 0.57 | U53: 0.53 | V53: 0.48 | W53: 0.45 | X53: 0.31 | Y53: 0.24 | Z53: 0.19 | AA53: 0.15 | AB53: 0.12 | AC53: 0.11 | AD53: 0.08 | AE53: 0.063 | AF53: 0.051 | AG53: 0.036
A54: >10 to 15_≤20 | B54: >10 to 15 | C54: ≤20 | D54: 0.00082 | E54: 0.00073 | F54: 0.00062 | G54: 0.0005 | H54: 4 | I54: 3.1 | J54: 2.4 | K54: 2 | L54: 1.7 | M54: 1.4 | N54: 1.2 | O54: 1.1 | P54: 0.94 | Q54: 0.84 | R54: 0.75 | S54: 0.68 | T54: 0.62 | U54: 0.56 | V54: 0.52 | W54: 0.48 | X54: 0.33 | Y54: 0.25 | Z54: 0.19 | AA54: 0.16 | AB54: 0.13 | AC54: 0.11 | AD54: 0.083 | AE54: 0.065 | AF54: 0.053 | AG54: 0.038
A55: >10 to 15_>20 | B55: >10 to 15 | C55: >20 | D55: 0.00053 | E55: 0.00049 | F55: 0.00043 | G55: 0.00037 | H55: 2.9 | I55: 2.4 | J55: 2 | K55: 1.6 | L55: 1.4 | M55: 1.2 | N55: 1.1 | O55: 0.93 | P55: 0.83 | Q55: 0.74 | R55: 0.67 | S55: 0.61 | T55: 0.56 | U55: 0.51 | V55: 0.47 | W55: 0.43 | X55: 0.31 | Y55: 0.23 | Z55: 0.18 | AA55: 0.15 | AB55: 0.12 | AC55: 0.1 | AD55: 0.078 | AE55: 0.062 | AF55: 0.05 | AG55: 0.035
A56: >15 to 30_≤20 | B56: >15 to 30 | C56: ≤20 | D56: 0.00037 | E56: 0.00034 | F56: 0.00031 | G56: 0.00027 | H56: 3.7 | I56: 2.9 | J56: 2.3 | K56: 1.9 | L56: 1.6 | M56: 1.4 | N56: 1.2 | O56: 1 | P56: 0.92 | Q56: 0.82 | R56: 0.74 | S56: 0.67 | T56: 0.61 | U56: 0.55 | V56: 0.51 | W56: 0.47 | X56: 0.33 | Y56: 0.25 | Z56: 0.19 | AA56: 0.16 | AB56: 0.13 | AC56: 0.11 | AD56: 0.083 | AE56: 0.065 | AF56: 0.053 | AG56: 0.037
A57: >15 to 30_>20 | B57: >15 to 30 | C57: >20 | D57: 0.00027 | E57: 0.00025 | F57: 0.00023 | G57: 0.00021 | H57: 2.9 | I57: 2.3 | J57: 1.9 | K57: 1.6 | L57: 1.4 | M57: 1.2 | N57: 1 | O57: 0.92 | P57: 0.82 | Q57: 0.74 | R57: 0.67 | S57: 0.6 | T57: 0.55 | U57: 0.51 | V57: 0.47 | W57: 0.43 | X57: 0.31 | Y57: 0.23 | Z57: 0.18 | AA57: 0.15 | AB57: 0.12 | AC57: 0.1 | AD57: 0.078 | AE57: 0.062 | AF57: 0.05 | AG57: 0.035
A58: >30_>20 | B58: >30 | C58: >20 | D58: 0.00019 | E58: 0.00018 | F58: 0.00017 | G58: 0.00016 | H58: 1.8 | I58: 1.5 | J58: 1.3 | K58: 1.2 | L58: 1 | M58: 0.92 | N58: 0.82 | O58: 0.73 | P58: 0.66 | Q58: 0.6 | R58: 0.55 | S58: 0.51 | T58: 0.47 | U58: 0.43 | V58: 0.4 | W58: 0.37 | X58: 0.27 | Y58: 0.21 | Z58: 0.17 | AA58: 0.14 | AB58: 0.12 | AC58: 0.098 | AD58: 0.075 | AE58: 0.059 | AF58: 0.048 | AG58: 0.034
